Workbook

Sheet PACIFIC BASIN VALUES
A1: ECOSYSTEM TYPE | B1: TRANSFORMATION DEGREE | C1: BIOME | D1: GENERAL ECOSYSTEM | E1: LAND USE /LAND COVER | F1: DEPARTMENT NAME | G1: MUNICIPALITY NAME | H1: BIOME AREA (Ha) | I1: Silva - Arroyave & Correa- Restrepo, 2010. Pollination. Int.$.2020/ha/year | J1: Melo-Leon, et al., 2017. Pollination. Int.$.2020/ha/year | K1: Average Pollination. Int.$.2020/ha/year | L1: Silva - Arroyave & Correa- Restrepo, 2010. Biological control. Int.$.2020/ha/year | M1: Silva - Arroyave & Correa- Restrepo, 2010. Food. Int.$.2020/ha/year | N1: Ochoa-Cardona et al., 2021. Food. Int.$.2020/ha/year | O1: Toledo et al., 2018. Food. Int.$.2020/ha/year | P1: Average Food. Int.$.2020/ha/year | Q1: Silva - Arroyave & Correa- Restrepo, 2010). Regulation of water flows. Int.$.2020/ha/year | R1: Toledo etal., 2018. Regulation of water flows. Int.$.2020/ha/year | S1: Average Regulation of water flows. Int.$.2020/ha/year | T1: Silva - Arroyave & Correa- Restrepo, 2010). Water . Int.$.2020/ha/year | U1: Ochoa-Cardona et al., 2021. Water. Int.$.2020/ha/year | V1: Sánchez- Rodríguez & Bedoya -Paniagua, 2017. Water. Int.$.2020/ha/year | W1: Baracaldo-Silva & Acevedo-Sandoval, 2018. Water. Int.$.2020/ha/year | X1: Pérez-Rincón & Fabricio-Malheiros, 2013. Water. Int.$.2020/ha/year | Y1: Toledo et al., 2018. Water. Int.$.2020/ha/year | Z1: Bedoya-Paniagua, 2020. Water. Int.$.2020/ha/year | AA1: Average Water. Int.$.2020/ha/year | AB1: Silva - Arroyave & Correa- Restrepo, 2010). Erosion prevention . Int.$.2020/ha/year | AC1: Bedoya-Paniagua, 2017. Erosion prevention. Int.$.2020/ha/year | AD1: Toledo et al., 2018. Erosion prevention. Int.$.2020/ha/year | AE1: Average Erosion Prevention. Int.$.2020/ha/year | AF1: Silva - Arroyave & Correa- Restrepo, 2010). Maintenance of soil fertility. Int.$.2020/ha/year | AG1: Silva - Arroyave & Correa- Restrepo, 2010. Raw materials. Int.$.2020/ha/year | AH1: Toledo et al., 2018. Raw materials. Int.$.2020/ha/year | AI1: Average Raw materials. Int.$.2020/ha/year | AJ1: Silva - Arroyave & Correa- Restrepo, 2010. Climate regulation. Int.$.2020/ha/year | AK1: Banerjee et al., 2020. Climate regulation. Int.$.2020/ha/year | AL1: Ochoa-Cardona et al., 2021. Climate regulation. Int.$.2020/ha/year | AM1: Lozano-Torres, 2007. Climate regulation. Int.$.2020/ha/year | AN1: Toledo et al., 2018. Climate regulation. Int.$.2020/ha/year | AO1: Palacios-Peñaranda, 2019. Climate regulation. Int.$.2020/ha/year | AP1: Melo-León et al., 2017. Climate regulation. Int.$.2020/ha/year | AQ1: Zarate-Barrera & Maldonado, 2015. Climate regulation. Int.$.2020/ha/year | AR1: Zeng et al., 2021. Climate regulation. Int.$.2020/ha/year | AS1: FEDESARROLLO, 2012. Climate regulation. Int.$.2020/ha/year | AT1: Maldonado et al., 2013. Climate regulation. Int.$.2020/ha/year | AU1: Average Climate regulation. Int.$.2020/ha/year | AV1: Carriazo et al., 2003. Opportunities for recreation and tourism. Int.$.2020/ha/year | AW1: Pupo-García & Parada-Corrales, J. 2016. Opportunities for recreation and tourism. Int.$.2020/ha/year | AX1: Escobar & Erazo, 2006. Opportunities for recreation and tourism. Int.$.2020/ha/year | AY1: Figueroa-Pelaez, 2017. Opportunities for recreation and tourism. Int.$.2020/ha/year | AZ1: Toledo et al., 2018. Opportunities for recreation and tourism. Int.$.2020/ha/year | BA1: Londono-Diaz & Johnston, 2010. Opportunities for recreation and tourism. Int.$.2020/ha/year | BB1: Average Opportunities for recreation and tourism. Int.$.2020/ha/year | BC1: Rausser-Gordon & Small, 2000. Genetic resources. Int.$.2020/ha/year | BD1: Simpson et al., 1996. Genetic resources. Int.$.2020/ha/year | BE1: Toledo et al., 2018. Genetic resources. Int.$.2020/ha/year | BF1: Average Genetic resources. Int.$.2020/ha/year | BG1: Rojas et al., 2019. Habitat Conservation. Int.$.2020/ha/year | BH1: Escobar-Jaramillo & Ramírez-Zárate, 2009. Habitat Conservation. Int.$.2020/ha/year | BI1: Bustamante- Caballero, 2012. Habitat Conservation. Int.$.2020/ha/year | BJ1: INSTITUTO DE INVESTIGACIONES AMBIENTALES DEL PACÍFICO “John Von Neumann”, 2012. Habitat Conservation. Int.$.2020/ha/year | BK1: Toledo et al., 2018.Habitat Conservation. Int.$.2020/ha/year | BL1: Murcia & Guariguata, 2014. Habitat Conservation. Int.$.2020/ha/year | BM1: Cabrera & Ramirez, 2014. Habitat Conservation. Int.$.2020/ha/year | BN1: Spurgeon, 1998. Habitat Conservation. Int.$.2020/ha/year | BO1: Onofri & Nunes, 2020. Habitat Conservation. Int.$.2020/ha/year | BP1: Average Habitat Conservation. Int.$.2020/ha/year | BQ1: Toledo et al., 2018. Fishing. Int.$.2020/ha/year | BR1: FEDESARROLLO, 2012. Fishing. Int.$.2020/ha/year | BS1: Maldonado, et al., 2013. Fishing. Int.$.2020/ha/year | BT1: Average Fishing. Int.$.2020/ha/year | BU1: Toledo et al., 2018. Information for cognitive development. Int.$.2020/ha/year | BV1: Melo-León et al., 2017. Moderation of extreme events. Int.$.2020/ha/year | BW1: TOTAL VALUE BIOME $2020int/ha/year | BX1: TOTAL VALUE BIOME $2020int/year
A2: Aquatic | B2: Natural | C2: Helobioma Darién –Tacarcuna | D2: Basal floodplain forest | E2: Tall dense forest | F2: CHOCO | G2: JURADO | H2: 25.59 | I2: 0.00 | J2: 122.34 | K2: =J2 -> 122.34 | L2: 0.00 | M2: 0.00 | N2: 246.09 | O2: 0.00 | P2: =N2 -> 246.09 | Q2: 0.00 | R2: 0.00 | S2: 0.00 | T2: 0.00 | U2: 185.50 | V2: 0.00 | W2: 0.00 | X2: 0.00 | Y2: 0.00 | Z2: 31.73 | AA2: =(U2+Z2)/2 -> 108.62 | AB2: 0.00 | AC2: 0.00 | AD2: 0.00 | AE2: 0.00 | AF2: 0.00 | AG2: 0.00 | AH2: 0.00 | AI2: 0.00 | AJ2: 0.00 | AK2: 1,901.29 | AL2: 45.35 | AM2: 0.00 | AN2: 0.00 | AO2: 0.00 | AP2: 8,335.38 | AQ2: 0.00 | AR2: 0.00 | AS2: 0.00 | AT2: 0.00 | AU2: =(AK2+AL2+AP2)/3 -> 3,427.34 | AV2: 0.70 | AW2: 0.00 | AX2: 0.00 | AY2: 0.00 | AZ2: 0.00 | BA2: 0.00 | BB2: =AV2 -> 0.70 | BC2: 41.02 | BD2: 1,638.71 | BE2: 0.00 | BF2: =(BC2+BD2)/2 -> 839.86 | BG2: 0.00 | BH2: 0.00 | BI2: 0.00 | BJ2: 0.00 | BK2: 0.00 | BL2: 4,572.74 | BM2: 0.00 | BN2: 0.00 | BO2: 0.00 | BP2: =BL2 -> 4,572.74 | BQ2: 0.00 | BR2: 0.00 | BS2: 0.00 | BT2: 0.00 | BU2: 0.00 | BV2: 269.15 | BW2: =K2+L2+P2+S2+AA2+AE2+AF2+AI2+AU2+BB2+BF2+BP2+BT2+BU2+BV2 -> $ 9,586.84 | BX2: =BW2*H2 -> $ 245,327.22
A3: Aquatic | B3: Natural | C3: Helobioma Darién –Tacarcuna | D3: Basal floodplain forest | E3: Tall dense forest | F3: CHOCO | G3: JURADO | H3: 59.93 | I3: 0.00 | J3: 122.34 | K3: =J3 -> 122.34 | L3: 0.00 | M3: 0.00 | N3: 246.09 | O3: 0.00 | P3: =N3 -> 246.09 | Q3: 0.00 | R3: 0.00 | S3: 0.00 | T3: 0.00 | U3: 185.50 | V3: 0.00 | W3: 0.00 | X3: 0.00 | Y3: 0.00 | Z3: 31.73 | AA3: =(U3+Z3)/2 -> 108.62 | AB3: 0.00 | AC3: 0.00 | AD3: 0.00 | AE3: 0.00 | AF3: 0.00 | AG3: 0.00 | AH3: 0.00 | AI3: 0.00 | AJ3: 0.00 | AK3: 1,901.29 | AL3: 45.35 | AM3: 0.00 | AN3: 0.00 | AO3: 0.00 | AP3: 8,335.38 | AQ3: 0.00 | AR3: 0.00 | AS3: 0.00 | AT3: 0.00 | AU3: =(AK3+AL3+AP3)/3 -> 3,427.34 | AV3: 0.70 | AW3: 0.00 | AX3: 0.00 | AY3: 0.00 | AZ3: 0.00 | BA3: 0.00 | BB3: =AV3 -> 0.70 | BC3: 41.02 | BD3: 1,638.71 | BE3: 0.00 | BF3: =(BC3+BD3)/2 -> 839.86 | BG3: 0.00 | BH3: 0.00 | BI3: 0.00 | BJ3: 0.00 | BK3: 0.00 | BL3: 4,572.74 | BM3: 0.00 | BN3: 0.00 | BO3: 0.00 | BP3: =BL3 -> 4,572.74 | BQ3: 0.00 | BR3: 0.00 | BS3: 0.00 | BT3: 0.00 | BU3: 0.00 | BV3: 269.15 | BW3: =K3+L3+P3+S3+AA3+AE3+AF3+AI3+AU3+BB3+BF3+BP3+BT3+BU3+BV3 -> $ 9,586.84 | BX3: =BW3*H3 -> $ 574,539.28
A4: Aquatic | B4: Natural | C4: Helobioma Darién –Tacarcuna | D4: Basal floodplain forest | E4: Tall dense forest | F4: CHOCO | G4: JURADO | H4: 100.16 | I4: 0.00 | J4: 122.34 | K4: 122.34 | L4: 0.00 | M4: 0.00 | N4: 246.09 | O4: 0.00 | P4: 246.09 | Q4: 0.00 | R4: 0.00 | S4: 0.00 | T4: 0.00 | U4: 185.50 | V4: 0.00 | W4: 0.00 | X4: 0.00 | Y4: 0.00 | Z4: 31.73 | AA4: 108.62 | AB4: 0.00 | AC4: 0.00 | AD4: 0.00 | AE4: 0.00 | AF4: 0.00 | AG4: 0.00 | AH4: 0.00 | AI4: 0.00 | AJ4: 0.00 | AK4: 1,901.29 | AL4: 45.35 | AM4: 0.00 | AN4: 0.00 | AO4: 0.00 | AP4: 8,335.38 | AQ4: 0.00 | AR4: 0.00 | AS4: 0.00 | AT4: 0.00 | AU4: 3,427.34 | AV4: 0.70 | AW4: 0.00 | AX4: 0.00 | AY4: 0.00 | AZ4: 0.00 | BA4: 0.00 | BB4: 0.70 | BC4: 41.02 | BD4: 1,638.71 | BE4: 0.00 | BF4: 839.86 | BG4: 0.00 | BH4: 0.00 | BI4: 0.00 | BJ4: 0.00 | BK4: 0.00 | BL4: 4,572.74 | BM4: 0.00 | BN4: 0.00 | BO4: 0.00 | BP4: 4,572.74 | BQ4: 0.00 | BR4: 0.00 | BS4: 0.00 | BT4: 0.00 | BU4: 0.00 | BV4: 269.15 | BW4: $ 9,586.84 | BX4: $ 960,217.82
A5: Aquatic | B5: Natural | C5: Helobioma Darién –Tacarcuna | D5: Basal floodplain forest | E5: Tall dense forest | F5: CHOCO | G5: JURADO | H5: 34.85 | I5: 0.00 | J5: 122.34 | K5: 122.34 | L5: 0.00 | M5: 0.00 | N5: 246.09 | O5: 0.00 | P5: 246.09 | Q5: 0.00 | R5: 0.00 | S5: 0.00 | T5: 0.00 | U5: 185.50 | V5: 0.00 | W5: 0.00 | X5: 0.00 | Y5: 0.00 | Z5: 31.73 | AA5: 108.62 | AB5: 0.00 | AC5: 0.00 | AD5: 0.00 | AE5: 0.00 | AF5: 0.00 | AG5: 0.00 | AH5: 0.00 | AI5: 0.00 | AJ5: 0.00 | AK5: 1,901.29 | AL5: 45.35 | AM5: 0.00 | AN5: 0.00 | AO5: 0.00 | AP5: 8,335.38 | AQ5: 0.00 | AR5: 0.00 | AS5: 0.00 | AT5: 0.00 | AU5: 3,427.34 | AV5: 0.70 | AW5: 0.00 | AX5: 0.00 | AY5: 0.00 | AZ5: 0.00 | BA5: 0.00 | BB5: 0.70 | BC5: 41.02 | BD5: 1,638.71 | BE5: 0.00 | BF5: 839.86 | BG5: 0.00 | BH5: 0.00 | BI5: 0.00 | BJ5: 0.00 | BK5: 0.00 | BL5: 4,572.74 | BM5: 0.00 | BN5: 0.00 | BO5: 0.00 | BP5: 4,572.74 | BQ5: 0.00 | BR5: 0.00 | BS5: 0.00 | BT5: 0.00 | BU5: 0.00 | BV5: 269.15 | BW5: $ 9,586.84 | BX5: $ 334,101.35
A6: Aquatic | B6: Natural | C6: Helobioma Darién –Tacarcuna | D6: Basal floodplain forest | E6: Tall dense forest | F6: CHOCO | G6: JURADO | H6: 30.79 | I6: 0.00 | J6: 122.34 | K6: 122.34 | L6: 0.00 | M6: 0.00 | N6: 246.09 | O6: 0.00 | P6: 246.09 | Q6: 0.00 | R6: 0.00 | S6: 0.00 | T6: 0.00 | U6: 185.50 | V6: 0.00 | W6: 0.00 | X6: 0.00 | Y6: 0.00 | Z6: 31.73 | AA6: 108.62 | AB6: 0.00 | AC6: 0.00 | AD6: 0.00 | AE6: 0.00 | AF6: 0.00 | AG6: 0.00 | AH6: 0.00 | AI6: 0.00 | AJ6: 0.00 | AK6: 1,901.29 | AL6: 45.35 | AM6: 0.00 | AN6: 0.00 | AO6: 0.00 | AP6: 8,335.38 | AQ6: 0.00 | AR6: 0.00 | AS6: 0.00 | AT6: 0.00 | AU6: 3,427.34 | AV6: 0.70 | AW6: 0.00 | AX6: 0.00 | AY6: 0.00 | AZ6: 0.00 | BA6: 0.00 | BB6: 0.70 | BC6: 41.02 | BD6: 1,638.71 | BE6: 0.00 | BF6: 839.86 | BG6: 0.00 | BH6: 0.00 | BI6: 0.00 | BJ6: 0.00 | BK6: 0.00 | BL6: 4,572.74 | BM6: 0.00 | BN6: 0.00 | BO6: 0.00 | BP6: 4,572.74 | BQ6: 0.00 | BR6: 0.00 | BS6: 0.00 | BT6: 0.00 | BU6: 0.00 | BV6: 269.15 | BW6: $ 9,586.84 | BX6: $ 295,178.78
A7: Aquatic | B7: Natural | C7: Helobioma Darién –Tacarcuna | D7: Basal floodplain forest | E7: Tall dense forest | F7: CHOCO | G7: JURADO | H7: 46.27 | I7: 0.00 | J7: 122.34 | K7: 122.34 | L7: 0.00 | M7: 0.00 | N7: 246.09 | O7: 0.00 | P7: 246.09 | Q7: 0.00 | R7: 0.00 | S7: 0.00 | T7: 0.00 | U7: 185.50 | V7: 0.00 | W7: 0.00 | X7: 0.00 | Y7: 0.00 | Z7: 31.73 | AA7: 108.62 | AB7: 0.00 | AC7: 0.00 | AD7: 0.00 | AE7: 0.00 | AF7: 0.00 | AG7: 0.00 | AH7: 0.00 | AI7: 0.00 | AJ7: 0.00 | AK7: 1,901.29 | AL7: 45.35 | AM7: 0.00 | AN7: 0.00 | AO7: 0.00 | AP7: 8,335.38 | AQ7: 0.00 | AR7: 0.00 | AS7: 0.00 | AT7: 0.00 | AU7: 3,427.34 | AV7: 0.70 | AW7: 0.00 | AX7: 0.00 | AY7: 0.00 | AZ7: 0.00 | BA7: 0.00 | BB7: 0.70 | BC7: 41.02 | BD7: 1,638.71 | BE7: 0.00 | BF7: 839.86 | BG7: 0.00 | BH7: 0.00 | BI7: 0.00 | BJ7: 0.00 | BK7: 0.00 | BL7: 4,572.74 | BM7: 0.00 | BN7: 0.00 | BO7: 0.00 | BP7: 4,572.74 | BQ7: 0.00 | BR7: 0.00 | BS7: 0.00 | BT7: 0.00 | BU7: 0.00 | BV7: 269.15 | BW7: $ 9,586.84 | BX7: $ 443,583.05
A8: Aquatic | B8: Natural | C8: Helobioma Darién –Tacarcuna | D8: Basal floodplain forest | E8: Tall dense forest | F8: CHOCO | G8: JURADO | H8: 1,171.46 | I8: 0.00 | J8: 122.34 | K8: 122.34 | L8: 0.00 | M8: 0.00 | N8: 246.09 | O8: 0.00 | P8: 246.09 | Q8: 0.00 | R8: 0.00 | S8: 0.00 | T8: 0.00 | U8: 185.50 | V8: 0.00 | W8: 0.00 | X8: 0.00 | Y8: 0.00 | Z8: 31.73 | AA8: 108.62 | AB8: 0.00 | AC8: 0.00 | AD8: 0.00 | AE8: 0.00 | AF8: 0.00 | AG8: 0.00 | AH8: 0.00 | AI8: 0.00 | AJ8: 0.00 | AK8: 1,901.29 | AL8: 45.35 | AM8: 0.00 | AN8: 0.00 | AO8: 0.00 | AP8: 8,335.38 | AQ8: 0.00 | AR8: 0.00 | AS8: 0.00 | AT8: 0.00 | AU8: 3,427.34 | AV8: 0.70 | AW8: 0.00 | AX8: 0.00 | AY8: 0.00 | AZ8: 0.00 | BA8: 0.00 | BB8: 0.70 | BC8: 41.02 | BD8: 1,638.71 | BE8: 0.00 | BF8: 839.86 | BG8: 0.00 | BH8: 0.00 | BI8: 0.00 | BJ8: 0.00 | BK8: 0.00 | BL8: 4,572.74 | BM8: 0.00 | BN8: 0.00 | BO8: 0.00 | BP8: 4,572.74 | BQ8: 0.00 | BR8: 0.00 | BS8: 0.00 | BT8: 0.00 | BU8: 0.00 | BV8: 269.15 | BW8: $ 9,586.84 | BX8: $ 11,230,598.77
A9: Aquatic | B9: Natural | C9: Helobioma Darién –Tacarcuna | D9: Basal floodplain forest | E9: Tall dense forest | F9: CHOCO | G9: JURADO | H9: 64.18 | I9: 0.00 | J9: 122.34 | K9: 122.34 | L9: 0.00 | M9: 0.00 | N9: 246.09 | O9: 0.00 | P9: 246.09 | Q9: 0.00 | R9: 0.00 | S9: 0.00 | T9: 0.00 | U9: 185.50 | V9: 0.00 | W9: 0.00 | X9: 0.00 | Y9: 0.00 | Z9: 31.73 | AA9: 108.62 | AB9: 0.00 | AC9: 0.00 | AD9: 0.00 | AE9: 0.00 | AF9: 0.00 | AG9: 0.00 | AH9: 0.00 | AI9: 0.00 | AJ9: 0.00 | AK9: 1,901.29 | AL9: 45.35 | AM9: 0.00 | AN9: 0.00 | AO9: 0.00 | AP9: 8,335.38 | AQ9: 0.00 | AR9: 0.00 | AS9: 0.00 | AT9: 0.00 | AU9: 3,427.34 | AV9: 0.70 | AW9: 0.00 | AX9: 0.00 | AY9: 0.00 | AZ9: 0.00 | BA9: 0.00 | BB9: 0.70 | BC9: 41.02 | BD9: 1,638.71 | BE9: 0.00 | BF9: 839.86 | BG9: 0.00 | BH9: 0.00 | BI9: 0.00 | BJ9: 0.00 | BK9: 0.00 | BL9: 4,572.74 | BM9: 0.00 | BN9: 0.00 | BO9: 0.00 | BP9: 4,572.74 | BQ9: 0.00 | BR9: 0.00 | BS9: 0.00 | BT9: 0.00 | BU9: 0.00 | BV9: 269.15 | BW9: $ 9,586.84 | BX9: $ 615,283.35
A10: Aquatic | B10: Natural | C10: Helobioma Darién –Tacarcuna | D10: Basal floodplain forest | E10: Tall dense forest | F10: CHOCO | G10: JURADO | H10: 234.50 | I10: 0.00 | J10: 122.34 | K10: 122.34 | L10: 0.00 | M10: 0.00 | N10: 246.09 | O10: 0.00 | P10: 246.09 | Q10: 0.00 | R10: 0.00 | S10: 0.00 | T10: 0.00 | U10: 185.50 | V10: 0.00 | W10: 0.00 | X10: 0.00 | Y10: 0.00 | Z10: 31.73 | AA10: 108.62 | AB10: 0.00 | AC10: 0.00 | AD10: 0.00 | AE10: 0.00 | AF10: 0.00 | AG10: 0.00 | AH10: 0.00 | AI10: 0.00 | AJ10: 0.00 | AK10: 1,901.29 | AL10: 45.35 | AM10: 0.00 | AN10: 0.00 | AO10: 0.00 | AP10: 8,335.38 | AQ10: 0.00 | AR10: 0.00 | AS10: 0.00 | AT10: 0.00 | AU10: 3,427.34 | AV10: 0.70 | AW10: 0.00 | AX10: 0.00 | AY10: 0.00 | AZ10: 0.00 | BA10: 0.00 | BB10: 0.70 | BC10: 41.02 | BD10: 1,638.71 | BE10: 0.00 | BF10: 839.86 | BG10: 0.00 | BH10: 0.00 | BI10: 0.00 | BJ10: 0.00 | BK10: 0.00 | BL10: 4,572.74 | BM10: 0.00 | BN10: 0.00 | BO10: 0.00 | BP10: 4,572.74 | BQ10: 0.00 | BR10: 0.00 | BS10: 0.00 | BT10: 0.00 | BU10: 0.00 | BV10: 269.15 | BW10: $ 9,586.84 | BX10: $ 2,248,113.82
A11: Aquatic | B11: Natural | C11: Helobioma Darién –Tacarcuna | D11: Basal floodplain forest | E11: Tall dense forest | F11: CHOCO | G11: JURADO | H11: 77.76 | I11: 0.00 | J11: 122.34 | K11: 122.34 | L11: 0.00 | M11: 0.00 | N11: 246.09 | O11: 0.00 | P11: 246.09 | Q11: 0.00 | R11: 0.00 | S11: 0.00 | T11: 0.00 | U11: 185.50 | V11: 0.00 | W11: 0.00 | X11: 0.00 | Y11: 0.00 | Z11: 31.73 | AA11: 108.62 | AB11: 0.00 | AC11: 0.00 | AD11: 0.00 | AE11: 0.00 | AF11: 0.00 | AG11: 0.00 | AH11: 0.00 | AI11: 0.00 | AJ11: 0.00 | AK11: 1,901.29 | AL11: 45.35 | AM11: 0.00 | AN11: 0.00 | AO11: 0.00 | AP11: 8,335.38 | AQ11: 0.00 | AR11: 0.00 | AS11: 0.00 | AT11: 0.00 | AU11: 3,427.34 | AV11: 0.70 | AW11: 0.00 | AX11: 0.00 | AY11: 0.00 | AZ11: 0.00 | BA11: 0.00 | BB11: 0.70 | BC11: 41.02 | BD11: 1,638.71 | BE11: 0.00 | BF11: 839.86 | BG11: 0.00 | BH11: 0.00 | BI11: 0.00 | BJ11: 0.00 | BK11: 0.00 | BL11: 4,572.74 | BM11: 0.00 | BN11: 0.00 | BO11: 0.00 | BP11: 4,572.74 | BQ11: 0.00 | BR11: 0.00 | BS11: 0.00 | BT11: 0.00 | BU11: 0.00 | BV11: 269.15 | BW11: $ 9,586.84 | BX11: $ 745,472.62
A12: Aquatic | B12: Natural | C12: Helobioma San Juan | D12: Basal floodplain forest | E12: Tall dense forest | F12: CHOCO | G12: BAJO BAUDO | H12: 39.06 | I12: 0.00 | J12: 122.34 | K12: 122.34 | L12: 0.00 | M12: 0.00 | N12: 246.09 | O12: 0.00 | P12: 246.09 | Q12: 0.00 | R12: 0.00 | S12: 0.00 | T12: 0.00 | U12: 185.50 | V12: 0.00 | W12: 0.00 | X12: 0.00 | Y12: 0.00 | Z12: 31.73 | AA12: 108.62 | AB12: 0.00 | AC12: 0.00 | AD12: 0.00 | AE12: 0.00 | AF12: 0.00 | AG12: 0.00 | AH12: 0.00 | AI12: 0.00 | AJ12: 0.00 | AK12: 1,901.29 | AL12: 45.35 | AM12: 0.00 | AN12: 0.00 | AO12: 0.00 | AP12: 8,335.38 | AQ12: 0.00 | AR12: 0.00 | AS12: 0.00 | AT12: 0.00 | AU12: 3,427.34 | AV12: 0.70 | AW12: 0.00 | AX12: 0.00 | AY12: 0.00 | AZ12: 0.00 | BA12: 0.00 | BB12: 0.70 | BC12: 41.02 | BD12: 1,638.71 | BE12: 0.00 | BF12: 839.86 | BG12: 0.00 | BH12: 0.00 | BI12: 0.00 | BJ12: 0.00 | BK12: 0.00 | BL12: 4,572.74 | BM12: 0.00 | BN12: 0.00 | BO12: 0.00 | BP12: 4,572.74 | BQ12: 0.00 | BR12: 0.00 | BS12: 0.00 | BT12: 0.00 | BU12: 0.00 | BV12: 269.15 | BW12: $ 9,586.84 | BX12: $ 374,461.94
A13: Aquatic | B13: Natural | C13: Helobioma San Juan | D13: Basal floodplain forest | E13: Tall dense forest | F13: CHOCO | G13: BAJO BAUDO | H13: 76.25 | I13: 0.00 | J13: 122.34 | K13: 122.34 | L13: 0.00 | M13: 0.00 | N13: 246.09 | O13: 0.00 | P13: 246.09 | Q13: 0.00 | R13: 0.00 | S13: 0.00 | T13: 0.00 | U13: 185.50 | V13: 0.00 | W13: 0.00 | X13: 0.00 | Y13: 0.00 | Z13: 31.73 | AA13: 108.62 | AB13: 0.00 | AC13: 0.00 | AD13: 0.00 | AE13: 0.00 | AF13: 0.00 | AG13: 0.00 | AH13: 0.00 | AI13: 0.00 | AJ13: 0.00 | AK13: 1,901.29 | AL13: 45.35 | AM13: 0.00 | AN13: 0.00 | AO13: 0.00 | AP13: 8,335.38 | AQ13: 0.00 | AR13: 0.00 | AS13: 0.00 | AT13: 0.00 | AU13: 3,427.34 | AV13: 0.70 | AW13: 0.00 | AX13: 0.00 | AY13: 0.00 | AZ13: 0.00 | BA13: 0.00 | BB13: 0.70 | BC13: 41.02 | BD13: 1,638.71 | BE13: 0.00 | BF13: 839.86 | BG13: 0.00 | BH13: 0.00 | BI13: 0.00 | BJ13: 0.00 | BK13: 0.00 | BL13: 4,572.74 | BM13: 0.00 | BN13: 0.00 | BO13: 0.00 | BP13: 4,572.74 | BQ13: 0.00 | BR13: 0.00 | BS13: 0.00 | BT13: 0.00 | BU13: 0.00 | BV13: 269.15 | BW13: $ 9,586.84 | BX13: $ 730,996.50
A14: Aquatic | B14: Natural | C14: Helobioma San Juan | D14: Basal floodplain forest | E14: Tall dense forest | F14: CHOCO | G14: BAJO BAUDO | H14: 29.19 | I14: 0.00 | J14: 122.34 | K14: 122.34 | L14: 0.00 | M14: 0.00 | N14: 246.09 | O14: 0.00 | P14: 246.09 | Q14: 0.00 | R14: 0.00 | S14: 0.00 | T14: 0.00 | U14: 185.50 | V14: 0.00 | W14: 0.00 | X14: 0.00 | Y14: 0.00 | Z14: 31.73 | AA14: 108.62 | AB14: 0.00 | AC14: 0.00 | AD14: 0.00 | AE14: 0.00 | AF14: 0.00 | AG14: 0.00 | AH14: 0.00 | AI14: 0.00 | AJ14: 0.00 | AK14: 1,901.29 | AL14: 45.35 | AM14: 0.00 | AN14: 0.00 | AO14: 0.00 | AP14: 8,335.38 | AQ14: 0.00 | AR14: 0.00 | AS14: 0.00 | AT14: 0.00 | AU14: 3,427.34 | AV14: 0.70 | AW14: 0.00 | AX14: 0.00 | AY14: 0.00 | AZ14: 0.00 | BA14: 0.00 | BB14: 0.70 | BC14: 41.02 | BD14: 1,638.71 | BE14: 0.00 | BF14: 839.86 | BG14: 0.00 | BH14: 0.00 | BI14: 0.00 | BJ14: 0.00 | BK14: 0.00 | BL14: 4,572.74 | BM14: 0.00 | BN14: 0.00 | BO14: 0.00 | BP14: 4,572.74 | BQ14: 0.00 | BR14: 0.00 | BS14: 0.00 | BT14: 0.00 | BU14: 0.00 | BV14: 269.15 | BW14: $ 9,586.84 | BX14: $ 279,839.84
A15: Aquatic | B15: Natural | C15: Helobioma San Juan | D15: Basal floodplain forest | E15: Tall dense forest | F15: CHOCO | G15: BAJO BAUDO | H15: 96.93 | I15: 0.00 | J15: 122.34 | K15: 122.34 | L15: 0.00 | M15: 0.00 | N15: 246.09 | O15: 0.00 | P15: 246.09 | Q15: 0.00 | R15: 0.00 | S15: 0.00 | T15: 0.00 | U15: 185.50 | V15: 0.00 | W15: 0.00 | X15: 0.00 | Y15: 0.00 | Z15: 31.73 | AA15: 108.62 | AB15: 0.00 | AC15: 0.00 | AD15: 0.00 | AE15: 0.00 | AF15: 0.00 | AG15: 0.00 | AH15: 0.00 | AI15: 0.00 | AJ15: 0.00 | AK15: 1,901.29 | AL15: 45.35 | AM15: 0.00 | AN15: 0.00 | AO15: 0.00 | AP15: 8,335.38 | AQ15: 0.00 | AR15: 0.00 | AS15: 0.00 | AT15: 0.00 | AU15: 3,427.34 | AV15: 0.70 | AW15: 0.00 | AX15: 0.00 | AY15: 0.00 | AZ15: 0.00 | BA15: 0.00 | BB15: 0.70 | BC15: 41.02 | BD15: 1,638.71 | BE15: 0.00 | BF15: 839.86 | BG15: 0.00 | BH15: 0.00 | BI15: 0.00 | BJ15: 0.00 | BK15: 0.00 | BL15: 4,572.74 | BM15: 0.00 | BN15: 0.00 | BO15: 0.00 | BP15: 4,572.74 | BQ15: 0.00 | BR15: 0.00 | BS15: 0.00 | BT15: 0.00 | BU15: 0.00 | BV15: 269.15 | BW15: $ 9,586.84 | BX15: $ 929,252.33
A16: Aquatic | B16: Natural | C16: Helobioma San Juan | D16: Basal floodplain forest | E16: Tall dense forest | F16: CHOCO | G16: MEDIO BAUDO | H16: 14.46 | I16: 0.00 | J16: 122.34 | K16: 122.34 | L16: 0.00 | M16: 0.00 | N16: 246.09 | O16: 0.00 | P16: 246.09 | Q16: 0.00 | R16: 0.00 | S16: 0.00 | T16: 0.00 | U16: 185.50 | V16: 0.00 | W16: 0.00 | X16: 0.00 | Y16: 0.00 | Z16: 31.73 | AA16: 108.62 | AB16: 0.00 | AC16: 0.00 | AD16: 0.00 | AE16: 0.00 | AF16: 0.00 | AG16: 0.00 | AH16: 0.00 | AI16: 0.00 | AJ16: 0.00 | AK16: 1,901.29 | AL16: 45.35 | AM16: 0.00 | AN16: 0.00 | AO16: 0.00 | AP16: 8,335.38 | AQ16: 0.00 | AR16: 0.00 | AS16: 0.00 | AT16: 0.00 | AU16: 3,427.34 | AV16: 0.70 | AW16: 0.00 | AX16: 0.00 | AY16: 0.00 | AZ16: 0.00 | BA16: 0.00 | BB16: 0.70 | BC16: 41.02 | BD16: 1,638.71 | BE16: 0.00 | BF16: 839.86 | BG16: 0.00 | BH16: 0.00 | BI16: 0.00 | BJ16: 0.00 | BK16: 0.00 | BL16: 4,572.74 | BM16: 0.00 | BN16: 0.00 | BO16: 0.00 | BP16: 4,572.74 | BQ16: 0.00 | BR16: 0.00 | BS16: 0.00 | BT16: 0.00 | BU16: 0.00 | BV16: 269.15 | BW16: $ 9,586.84 | BX16: $ 138,625.70
A17: Aquatic | B17: Natural | C17: Helobioma San Juan | D17: Basal floodplain forest | E17: Tall dense forest | F17: CHOCO | G17: BAJO BAUDO | H17: 123.45 | I17: 0.00 | J17: 122.34 | K17: 122.34 | L17: 0.00 | M17: 0.00 | N17: 246.09 | O17: 0.00 | P17: 246.09 | Q17: 0.00 | R17: 0.00 | S17: 0.00 | T17: 0.00 | U17: 185.50 | V17: 0.00 | W17: 0.00 | X17: 0.00 | Y17: 0.00 | Z17: 31.73 | AA17: 108.62 | AB17: 0.00 | AC17: 0.00 | AD17: 0.00 | AE17: 0.00 | AF17: 0.00 | AG17: 0.00 | AH17: 0.00 | AI17: 0.00 | AJ17: 0.00 | AK17: 1,901.29 | AL17: 45.35 | AM17: 0.00 | AN17: 0.00 | AO17: 0.00 | AP17: 8,335.38 | AQ17: 0.00 | AR17: 0.00 | AS17: 0.00 | AT17: 0.00 | AU17: 3,427.34 | AV17: 0.70 | AW17: 0.00 | AX17: 0.00 | AY17: 0.00 | AZ17: 0.00 | BA17: 0.00 | BB17: 0.70 | BC17: 41.02 | BD17: 1,638.71 | BE17: 0.00 | BF17: 839.86 | BG17: 0.00 | BH17: 0.00 | BI17: 0.00 | BJ17: 0.00 | BK17: 0.00 | BL17: 4,572.74 | BM17: 0.00 | BN17: 0.00 | BO17: 0.00 | BP17: 4,572.74 | BQ17: 0.00 | BR17: 0.00 | BS17: 0.00 | BT17: 0.00 | BU17: 0.00 | BV17: 269.15 | BW17: $ 9,586.84 | BX17: $ 1,183,495.31
A18: Aquatic | B18: Natural | C18: Helobioma San Juan | D18: Basal floodplain forest | E18: Low open forest | F18: CHOCO | G18: BAJO BAUDO | H18: 48.74 | I18: 0.00 | J18: 122.34 | K18: 122.34 | L18: 0.00 | M18: 0.00 | N18: 246.09 | O18: 0.00 | P18: 246.09 | Q18: 0.00 | R18: 0.00 | S18: 0.00 | T18: 0.00 | U18: 185.50 | V18: 0.00 | W18: 0.00 | X18: 0.00 | Y18: 0.00 | Z18: 31.73 | AA18: 108.62 | AB18: 0.00 | AC18: 0.00 | AD18: 0.00 | AE18: 0.00 | AF18: 0.00 | AG18: 0.00 | AH18: 0.00 | AI18: 0.00 | AJ18: 0.00 | AK18: 1,901.29 | AL18: 45.35 | AM18: 0.00 | AN18: 0.00 | AO18: 0.00 | AP18: 8,335.38 | AQ18: 0.00 | AR18: 0.00 | AS18: 0.00 | AT18: 0.00 | AU18: 3,427.34 | AV18: 0.70 | AW18: 0.00 | AX18: 0.00 | AY18: 0.00 | AZ18: 0.00 | BA18: 0.00 | BB18: 0.70 | BC18: 41.02 | BD18: 1,638.71 | BE18: 0.00 | BF18: 839.86 | BG18: 0.00 | BH18: 0.00 | BI18: 0.00 | BJ18: 0.00 | BK18: 0.00 | BL18: 4,572.74 | BM18: 0.00 | BN18: 0.00 | BO18: 0.00 | BP18: 4,572.74 | BQ18: 0.00 | BR18: 0.00 | BS18: 0.00 | BT18: 0.00 | BU18: 0.00 | BV18: 269.15 | BW18: $ 9,586.84 | BX18: $ 467,262.55
A19: Aquatic | B19: Natural | C19: Helobioma San Juan | D19: Basal floodplain forest | E19: Tall dense forest | F19: CHOCO | G19: BAJO BAUDO | H19: 170.80 | I19: 0.00 | J19: 122.34 | K19: 122.34 | L19: 0.00 | M19: 0.00 | N19: 246.09 | O19: 0.00 | P19: 246.09 | Q19: 0.00 | R19: 0.00 | S19: 0.00 | T19: 0.00 | U19: 185.50 | V19: 0.00 | W19: 0.00 | X19: 0.00 | Y19: 0.00 | Z19: 31.73 | AA19: 108.62 | AB19: 0.00 | AC19: 0.00 | AD19: 0.00 | AE19: 0.00 | AF19: 0.00 | AG19: 0.00 | AH19: 0.00 | AI19: 0.00 | AJ19: 0.00 | AK19: 1,901.29 | AL19: 45.35 | AM19: 0.00 | AN19: 0.00 | AO19: 0.00 | AP19: 8,335.38 | AQ19: 0.00 | AR19: 0.00 | AS19: 0.00 | AT19: 0.00 | AU19: 3,427.34 | AV19: 0.70 | AW19: 0.00 | AX19: 0.00 | AY19: 0.00 | AZ19: 0.00 | BA19: 0.00 | BB19: 0.70 | BC19: 41.02 | BD19: 1,638.71 | BE19: 0.00 | BF19: 839.86 | BG19: 0.00 | BH19: 0.00 | BI19: 0.00 | BJ19: 0.00 | BK19: 0.00 | BL19: 4,572.74 | BM19: 0.00 | BN19: 0.00 | BO19: 0.00 | BP19: 4,572.74 | BQ19: 0.00 | BR19: 0.00 | BS19: 0.00 | BT19: 0.00 | BU19: 0.00 | BV19: 269.15 | BW19: $ 9,586.84 | BX19: $ 1,637,432.15
A20: Aquatic | B20: Natural | C20: Helobioma San Juan | D20: Basal floodplain forest | E20: Tall dense forest | F20: CHOCO | G20: BAJO BAUDO | H20: 78.20 | I20: 0.00 | J20: 122.34 | K20: 122.34 | L20: 0.00 | M20: 0.00 | N20: 246.09 | O20: 0.00 | P20: 246.09 | Q20: 0.00 | R20: 0.00 | S20: 0.00 | T20: 0.00 | U20: 185.50 | V20: 0.00 | W20: 0.00 | X20: 0.00 | Y20: 0.00 | Z20: 31.73 | AA20: 108.62 | AB20: 0.00 | AC20: 0.00 | AD20: 0.00 | AE20: 0.00 | AF20: 0.00 | AG20: 0.00 | AH20: 0.00 | AI20: 0.00 | AJ20: 0.00 | AK20: 1,901.29 | AL20: 45.35 | AM20: 0.00 | AN20: 0.00 | AO20: 0.00 | AP20: 8,335.38 | AQ20: 0.00 | AR20: 0.00 | AS20: 0.00 | AT20: 0.00 | AU20: 3,427.34 | AV20: 0.70 | AW20: 0.00 | AX20: 0.00 | AY20: 0.00 | AZ20: 0.00 | BA20: 0.00 | BB20: 0.70 | BC20: 41.02 | BD20: 1,638.71 | BE20: 0.00 | BF20: 839.86 | BG20: 0.00 | BH20: 0.00 | BI20: 0.00 | BJ20: 0.00 | BK20: 0.00 | BL20: 4,572.74 | BM20: 0.00 | BN20: 0.00 | BO20: 0.00 | BP20: 4,572.74 | BQ20: 0.00 | BR20: 0.00 | BS20: 0.00 | BT20: 0.00 | BU20: 0.00 | BV20: 269.15 | BW20: $ 9,586.84 | BX20: $ 749,690.83
A21: Aquatic | B21: Natural | C21: Helobioma San Juan | D21: Basal floodplain forest | E21: Tall dense forest | F21: CHOCO | G21: BAJO BAUDO | H21: 154.08 | I21: 0.00 | J21: 122.34 | K21: 122.34 | L21: 0.00 | M21: 0.00 | N21: 246.09 | O21: 0.00 | P21: 246.09 | Q21: 0.00 | R21: 0.00 | S21: 0.00 | T21: 0.00 | U21: 185.50 | V21: 0.00 | W21: 0.00 | X21: 0.00 | Y21: 0.00 | Z21: 31.73 | AA21: 108.62 | AB21: 0.00 | AC21: 0.00 | AD21: 0.00 | AE21: 0.00 | AF21: 0.00 | AG21: 0.00 | AH21: 0.00 | AI21: 0.00 | AJ21: 0.00 | AK21: 1,901.29 | AL21: 45.35 | AM21: 0.00 | AN21: 0.00 | AO21: 0.00 | AP21: 8,335.38 | AQ21: 0.00 | AR21: 0.00 | AS21: 0.00 | AT21: 0.00 | AU21: 3,427.34 | AV21: 0.70 | AW21: 0.00 | AX21: 0.00 | AY21: 0.00 | AZ21: 0.00 | BA21: 0.00 | BB21: 0.70 | BC21: 41.02 | BD21: 1,638.71 | BE21: 0.00 | BF21: 839.86 | BG21: 0.00 | BH21: 0.00 | BI21: 0.00 | BJ21: 0.00 | BK21: 0.00 | BL21: 4,572.74 | BM21: 0.00 | BN21: 0.00 | BO21: 0.00 | BP21: 4,572.74 | BQ21: 0.00 | BR21: 0.00 | BS21: 0.00 | BT21: 0.00 | BU21: 0.00 | BV21: 269.15 | BW21: $ 9,586.84 | BX21: $ 1,477,140.20
A22: Aquatic | B22: Natural | C22: Helobioma San Juan | D22: Basal floodplain forest | E22: Tall dense forest | F22: CHOCO | G22: BAJO BAUDO | H22: 833.22 | I22: 0.00 | J22: 122.34 | K22: 122.34 | L22: 0.00 | M22: 0.00 | N22: 246.09 | O22: 0.00 | P22: 246.09 | Q22: 0.00 | R22: 0.00 | S22: 0.00 | T22: 0.00 | U22: 185.50 | V22: 0.00 | W22: 0.00 | X22: 0.00 | Y22: 0.00 | Z22: 31.73 | AA22: 108.62 | AB22: 0.00 | AC22: 0.00 | AD22: 0.00 | AE22: 0.00 | AF22: 0.00 | AG22: 0.00 | AH22: 0.00 | AI22: 0.00 | AJ22: 0.00 | AK22: 1,901.29 | AL22: 45.35 | AM22: 0.00 | AN22: 0.00 | AO22: 0.00 | AP22: 8,335.38 | AQ22: 0.00 | AR22: 0.00 | AS22: 0.00 | AT22: 0.00 | AU22: 3,427.34 | AV22: 0.70 | AW22: 0.00 | AX22: 0.00 | AY22: 0.00 | AZ22: 0.00 | BA22: 0.00 | BB22: 0.70 | BC22: 41.02 | BD22: 1,638.71 | BE22: 0.00 | BF22: 839.86 | BG22: 0.00 | BH22: 0.00 | BI22: 0.00 | BJ22: 0.00 | BK22: 0.00 | BL22: 4,572.74 | BM22: 0.00 | BN22: 0.00 | BO22: 0.00 | BP22: 4,572.74 | BQ22: 0.00 | BR22: 0.00 | BS22: 0.00 | BT22: 0.00 | BU22: 0.00 | BV22: 269.15 | BW22: $ 9,586.84 | BX22: $ 7,987,946.24
A23: Aquatic | B23: Natural | C23: Helobioma San Juan | D23: Basal floodplain forest | E23: Tall dense forest | F23: CHOCO | G23: BAJO BAUDO | H23: 52.92 | I23: 0.00 | J23: 122.34 | K23: 122.34 | L23: 0.00 | M23: 0.00 | N23: 246.09 | O23: 0.00 | P23: 246.09 | Q23: 0.00 | R23: 0.00 | S23: 0.00 | T23: 0.00 | U23: 185.50 | V23: 0.00 | W23: 0.00 | X23: 0.00 | Y23: 0.00 | Z23: 31.73 | AA23: 108.62 | AB23: 0.00 | AC23: 0.00 | AD23: 0.00 | AE23: 0.00 | AF23: 0.00 | AG23: 0.00 | AH23: 0.00 | AI23: 0.00 | AJ23: 0.00 | AK23: 1,901.29 | AL23: 45.35 | AM23: 0.00 | AN23: 0.00 | AO23: 0.00 | AP23: 8,335.38 | AQ23: 0.00 | AR23: 0.00 | AS23: 0.00 | AT23: 0.00 | AU23: 3,427.34 | AV23: 0.70 | AW23: 0.00 | AX23: 0.00 | AY23: 0.00 | AZ23: 0.00 | BA23: 0.00 | BB23: 0.70 | BC23: 41.02 | BD23: 1,638.71 | BE23: 0.00 | BF23: 839.86 | BG23: 0.00 | BH23: 0.00 | BI23: 0.00 | BJ23: 0.00 | BK23: 0.00 | BL23: 4,572.74 | BM23: 0.00 | BN23: 0.00 | BO23: 0.00 | BP23: 4,572.74 | BQ23: 0.00 | BR23: 0.00 | BS23: 0.00 | BT23: 0.00 | BU23: 0.00 | BV23: 269.15 | BW23: $ 9,586.84 | BX23: $ 507,335.54
A24: Aquatic | B24: Natural | C24: Helobioma San Juan | D24: Basal floodplain forest | E24: Tall dense forest | F24: CHOCO | G24: BAJO BAUDO | H24: 56.28 | I24: 0.00 | J24: 122.34 | K24: 122.34 | L24: 0.00 | M24: 0.00 | N24: 246.09 | O24: 0.00 | P24: 246.09 | Q24: 0.00 | R24: 0.00 | S24: 0.00 | T24: 0.00 | U24: 185.50 | V24: 0.00 | W24: 0.00 | X24: 0.00 | Y24: 0.00 | Z24: 31.73 | AA24: 108.62 | AB24: 0.00 | AC24: 0.00 | AD24: 0.00 | AE24: 0.00 | AF24: 0.00 | AG24: 0.00 | AH24: 0.00 | AI24: 0.00 | AJ24: 0.00 | AK24: 1,901.29 | AL24: 45.35 | AM24: 0.00 | AN24: 0.00 | AO24: 0.00 | AP24: 8,335.38 | AQ24: 0.00 | AR24: 0.00 | AS24: 0.00 | AT24: 0.00 | AU24: 3,427.34 | AV24: 0.70 | AW24: 0.00 | AX24: 0.00 | AY24: 0.00 | AZ24: 0.00 | BA24: 0.00 | BB24: 0.70 | BC24: 41.02 | BD24: 1,638.71 | BE24: 0.00 | BF24: 839.86 | BG24: 0.00 | BH24: 0.00 | BI24: 0.00 | BJ24: 0.00 | BK24: 0.00 | BL24: 4,572.74 | BM24: 0.00 | BN24: 0.00 | BO24: 0.00 | BP24: 4,572.74 | BQ24: 0.00 | BR24: 0.00 | BS24: 0.00 | BT24: 0.00 | BU24: 0.00 | BV24: 269.15 | BW24: $ 9,586.84 | BX24: $ 539,547.32
A25: Aquatic | B25: Natural | C25: Helobioma San Juan | D25: Basal floodplain forest | E25: Tall dense forest | F25: CHOCO | G25: BAJO BAUDO | H25: 78.07 | I25: 0.00 | J25: 122.34 | K25: 122.34 | L25: 0.00 | M25: 0.00 | N25: 246.09 | O25: 0.00 | P25: 246.09 | Q25: 0.00 | R25: 0.00 | S25: 0.00 | T25: 0.00 | U25: 185.50 | V25: 0.00 | W25: 0.00 | X25: 0.00 | Y25: 0.00 | Z25: 31.73 | AA25: 108.62 | AB25: 0.00 | AC25: 0.00 | AD25: 0.00 | AE25: 0.00 | AF25: 0.00 | AG25: 0.00 | AH25: 0.00 | AI25: 0.00 | AJ25: 0.00 | AK25: 1,901.29 | AL25: 45.35 | AM25: 0.00 | AN25: 0.00 | AO25: 0.00 | AP25: 8,335.38 | AQ25: 0.00 | AR25: 0.00 | AS25: 0.00 | AT25: 0.00 | AU25: 3,427.34 | AV25: 0.70 | AW25: 0.00 | AX25: 0.00 | AY25: 0.00 | AZ25: 0.00 | BA25: 0.00 | BB25: 0.70 | BC25: 41.02 | BD25: 1,638.71 | BE25: 0.00 | BF25: 839.86 | BG25: 0.00 | BH25: 0.00 | BI25: 0.00 | BJ25: 0.00 | BK25: 0.00 | BL25: 4,572.74 | BM25: 0.00 | BN25: 0.00 | BO25: 0.00 | BP25: 4,572.74 | BQ25: 0.00 | BR25: 0.00 | BS25: 0.00 | BT25: 0.00 | BU25: 0.00 | BV25: 269.15 | BW25: $ 9,586.84 | BX25: $ 748,444.54
A26: Aquatic | B26: Natural | C26: Helobioma San Juan | D26: Basal floodplain forest | E26: Tall dense forest | F26: CHOCO | G26: NUQUI | H26: 83.66 | I26: 0.00 | J26: 122.34 | K26: 122.34 | L26: 0.00 | M26: 0.00 | N26: 246.09 | O26: 0.00 | P26: 246.09 | Q26: 0.00 | R26: 0.00 | S26: 0.00 | T26: 0.00 | U26: 185.50 | V26: 0.00 | W26: 0.00 | X26: 0.00 | Y26: 0.00 | Z26: 31.73 | AA26: 108.62 | AB26: 0.00 | AC26: 0.00 | AD26: 0.00 | AE26: 0.00 | AF26: 0.00 | AG26: 0.00 | AH26: 0.00 | AI26: 0.00 | AJ26: 0.00 | AK26: 1,901.29 | AL26: 45.35 | AM26: 0.00 | AN26: 0.00 | AO26: 0.00 | AP26: 8,335.38 | AQ26: 0.00 | AR26: 0.00 | AS26: 0.00 | AT26: 0.00 | AU26: 3,427.34 | AV26: 0.70 | AW26: 3.35 | AX26: 0.00 | AY26: 0.00 | AZ26: 0.00 | BA26: 0.00 | BB26: =(AV26+AW26)/2 -> 2.03 | BC26: 41.02 | BD26: 1,638.71 | BE26: 0.00 | BF26: 839.86 | BG26: 0.00 | BH26: 0.00 | BI26: 0.00 | BJ26: 0.00 | BK26: 0.00 | BL26: 4,572.74 | BM26: 0.00 | BN26: 0.00 | BO26: 0.00 | BP26: 4,572.74 | BQ26: 0.00 | BR26: 0.00 | BS26: 0.00 | BT26: 0.00 | BU26: 0.00 | BV26: 269.15 | BW26: $ 9,588.16 | BX26: $ 802,145.83
A27: Aquatic | B27: Natural | C27: Helobioma San Juan | D27: Basal floodplain forest | E27: Tall dense forest | F27: CHOCO | G27: BAJO BAUDO | H27: 17.60 | I27: 0.00 | J27: 122.34 | K27: 122.34 | L27: 0.00 | M27: 0.00 | N27: 246.09 | O27: 0.00 | P27: 246.09 | Q27: 0.00 | R27: 0.00 | S27: 0.00 | T27: 0.00 | U27: 185.50 | V27: 0.00 | W27: 0.00 | X27: 0.00 | Y27: 0.00 | Z27: 31.73 | AA27: 108.62 | AB27: 0.00 | AC27: 0.00 | AD27: 0.00 | AE27: 0.00 | AF27: 0.00 | AG27: 0.00 | AH27: 0.00 | AI27: 0.00 | AJ27: 0.00 | AK27: 1,901.29 | AL27: 45.35 | AM27: 0.00 | AN27: 0.00 | AO27: 0.00 | AP27: 8,335.38 | AQ27: 0.00 | AR27: 0.00 | AS27: 0.00 | AT27: 0.00 | AU27: 3,427.34 | AV27: 0.70 | AW27: 0.00 | AX27: 0.00 | AY27: 0.00 | AZ27: 0.00 | BA27: 0.00 | BB27: =AV27 -> 0.70 | BC27: 41.02 | BD27: 1,638.71 | BE27: 0.00 | BF27: 839.86 | BG27: 0.00 | BH27: 0.00 | BI27: 0.00 | BJ27: 0.00 | BK27: 0.00 | BL27: 4,572.74 | BM27: 0.00 | BN27: 0.00 | BO27: 0.00 | BP27: 4,572.74 | BQ27: 0.00 | BR27: 0.00 | BS27: 0.00 | BT27: 0.00 | BU27: 0.00 | BV27: 269.15 | BW27: $ 9,586.84 | BX27: $ 168,728.37
A28: Aquatic | B28: Natural | C28: Helobioma San Juan | D28: Basal floodplain forest | E28: Tall dense forest | F28: CHOCO | G28: NUQUI | H28: 53.26 | I28: 0.00 | J28: 122.34 | K28: 122.34 | L28: 0.00 | M28: 0.00 | N28: 246.09 | O28: 0.00 | P28: 246.09 | Q28: 0.00 | R28: 0.00 | S28: 0.00 | T28: 0.00 | U28: 185.50 | V28: 0.00 | W28: 0.00 | X28: 0.00 | Y28: 0.00 | Z28: 31.73 | AA28: 108.62 | AB28: 0.00 | AC28: 0.00 | AD28: 0.00 | AE28: 0.00 | AF28: 0.00 | AG28: 0.00 | AH28: 0.00 | AI28: 0.00 | AJ28: 0.00 | AK28: 1,901.29 | AL28: 45.35 | AM28: 0.00 | AN28: 0.00 | AO28: 0.00 | AP28: 8,335.38 | AQ28: 0.00 | AR28: 0.00 | AS28: 0.00 | AT28: 0.00 | AU28: 3,427.34 | AV28: 0.70 | AW28: 3.35 | AX28: 0.00 | AY28: 0.00 | AZ28: 0.00 | BA28: 0.00 | BB28: =(AV28+AW28)/2 -> 2.03 | BC28: 41.02 | BD28: 1,638.71 | BE28: 0.00 | BF28: 839.86 | BG28: 0.00 | BH28: 0.00 | BI28: 0.00 | BJ28: 0.00 | BK28: 0.00 | BL28: 4,572.74 | BM28: 0.00 | BN28: 0.00 | BO28: 0.00 | BP28: 4,572.74 | BQ28: 0.00 | BR28: 0.00 | BS28: 0.00 | BT28: 0.00 | BU28: 0.00 | BV28: 269.15 | BW28: $ 9,588.16 | BX28: $ 510,665.63
A29: Aquatic | B29: Natural | C29: Helobioma San Juan | D29: Basal floodplain forest | E29: Tall dense forest | F29: CHOCO | G29: NUQUI | H29: 330.55 | I29: 0.00 | J29: 122.34 | K29: 122.34 | L29: 0.00 | M29: 0.00 | N29: 246.09 | O29: 0.00 | P29: 246.09 | Q29: 0.00 | R29: 0.00 | S29: 0.00 | T29: 0.00 | U29: 185.50 | V29: 0.00 | W29: 0.00 | X29: 0.00 | Y29: 0.00 | Z29: 31.73 | AA29: 108.62 | AB29: 0.00 | AC29: 0.00 | AD29: 0.00 | AE29: 0.00 | AF29: 0.00 | AG29: 0.00 | AH29: 0.00 | AI29: 0.00 | AJ29: 0.00 | AK29: 1,901.29 | AL29: 45.35 | AM29: 0.00 | AN29: 0.00 | AO29: 0.00 | AP29: 8,335.38 | AQ29: 0.00 | AR29: 0.00 | AS29: 0.00 | AT29: 0.00 | AU29: 3,427.34 | AV29: 0.70 | AW29: 3.35 | AX29: 0.00 | AY29: 0.00 | AZ29: 0.00 | BA29: 0.00 | BB29: 2.03 | BC29: 41.02 | BD29: 1,638.71 | BE29: 0.00 | BF29: 839.86 | BG29: 0.00 | BH29: 0.00 | BI29: 0.00 | BJ29: 0.00 | BK29: 0.00 | BL29: 4,572.74 | BM29: 0.00 | BN29: 0.00 | BO29: 0.00 | BP29: 4,572.74 | BQ29: 0.00 | BR29: 0.00 | BS29: 0.00 | BT29: 0.00 | BU29: 0.00 | BV29: 269.15 | BW29: $ 9,588.16 | BX29: $ 3,169,367.71
A30: Aquatic | B30: Natural | C30: Helobioma San Juan | D30: Basal floodplain forest | E30: Tall dense forest | F30: CHOCO | G30: NUQUI | H30: 735.16 | I30: 0.00 | J30: 122.34 | K30: 122.34 | L30: 0.00 | M30: 0.00 | N30: 246.09 | O30: 0.00 | P30: 246.09 | Q30: 0.00 | R30: 0.00 | S30: 0.00 | T30: 0.00 | U30: 185.50 | V30: 0.00 | W30: 0.00 | X30: 0.00 | Y30: 0.00 | Z30: 31.73 | AA30: 108.62 | AB30: 0.00 | AC30: 0.00 | AD30: 0.00 | AE30: 0.00 | AF30: 0.00 | AG30: 0.00 | AH30: 0.00 | AI30: 0.00 | AJ30: 0.00 | AK30: 1,901.29 | AL30: 45.35 | AM30: 0.00 | AN30: 0.00 | AO30: 0.00 | AP30: 8,335.38 | AQ30: 0.00 | AR30: 0.00 | AS30: 0.00 | AT30: 0.00 | AU30: 3,427.34 | AV30: 0.70 | AW30: 3.35 | AX30: 0.00 | AY30: 0.00 | AZ30: 0.00 | BA30: 0.00 | BB30: 2.03 | BC30: 41.02 | BD30: 1,638.71 | BE30: 0.00 | BF30: 839.86 | BG30: 0.00 | BH30: 0.00 | BI30: 0.00 | BJ30: 0.00 | BK30: 0.00 | BL30: 4,572.74 | BM30: 0.00 | BN30: 0.00 | BO30: 0.00 | BP30: 4,572.74 | BQ30: 0.00 | BR30: 0.00 | BS30: 0.00 | BT30: 0.00 | BU30: 0.00 | BV30: 269.15 | BW30: $ 9,588.16 | BX30: $ 7,048,834.87
A31: Aquatic | B31: Natural | C31: Helobioma San Juan | D31: Basal floodplain forest | E31: Tall dense forest | F31: CHOCO | G31: BAHIA SOLANO | H31: 81.23 | I31: 0.00 | J31: 122.34 | K31: 122.34 | L31: 0.00 | M31: 0.00 | N31: 246.09 | O31: 0.00 | P31: 246.09 | Q31: 0.00 | R31: 0.00 | S31: 0.00 | T31: 0.00 | U31: 185.50 | V31: 0.00 | W31: 0.00 | X31: 0.00 | Y31: 0.00 | Z31: 31.73 | AA31: 108.62 | AB31: 0.00 | AC31: 0.00 | AD31: 0.00 | AE31: 0.00 | AF31: 0.00 | AG31: 0.00 | AH31: 0.00 | AI31: 0.00 | AJ31: 0.00 | AK31: 1,901.29 | AL31: 45.35 | AM31: 0.00 | AN31: 0.00 | AO31: 0.00 | AP31: 8,335.38 | AQ31: 0.00 | AR31: 0.00 | AS31: 0.00 | AT31: 0.00 | AU31: 3,427.34 | AV31: 0.70 | AW31: 0.00 | AX31: 0.00 | AY31: 0.00 | AZ31: 0.00 | BA31: 0.00 | BB31: =AV31 -> 0.70 | BC31: 41.02 | BD31: 1,638.71 | BE31: 0.00 | BF31: 839.86 | BG31: 0.00 | BH31: 0.00 | BI31: 0.00 | BJ31: 0.00 | BK31: 0.00 | BL31: 4,572.74 | BM31: 0.00 | BN31: 0.00 | BO31: 0.00 | BP31: 4,572.74 | BQ31: 0.00 | BR31: 0.00 | BS31: 0.00 | BT31: 0.00 | BU31: 0.00 | BV31: 269.15 | BW31: $ 9,586.84 | BX31: $ 778,738.96
A32: Aquatic | B32: Natural | C32: Helobioma San Juan | D32: Basal floodplain forest | E32: Tall dense forest | F32: CHOCO | G32: BAHIA SOLANO | H32: 86.86 | I32: 0.00 | J32: 122.34 | K32: 122.34 | L32: 0.00 | M32: 0.00 | N32: 246.09 | O32: 0.00 | P32: 246.09 | Q32: 0.00 | R32: 0.00 | S32: 0.00 | T32: 0.00 | U32: 185.50 | V32: 0.00 | W32: 0.00 | X32: 0.00 | Y32: 0.00 | Z32: 31.73 | AA32: 108.62 | AB32: 0.00 | AC32: 0.00 | AD32: 0.00 | AE32: 0.00 | AF32: 0.00 | AG32: 0.00 | AH32: 0.00 | AI32: 0.00 | AJ32: 0.00 | AK32: 1,901.29 | AL32: 45.35 | AM32: 0.00 | AN32: 0.00 | AO32: 0.00 | AP32: 8,335.38 | AQ32: 0.00 | AR32: 0.00 | AS32: 0.00 | AT32: 0.00 | AU32: 3,427.34 | AV32: 0.70 | AW32: 0.00 | AX32: 0.00 | AY32: 0.00 | AZ32: 0.00 | BA32: 0.00 | BB32: 0.70 | BC32: 41.02 | BD32: 1,638.71 | BE32: 0.00 | BF32: 839.86 | BG32: 0.00 | BH32: 0.00 | BI32: 0.00 | BJ32: 0.00 | BK32: 0.00 | BL32: 4,572.74 | BM32: 0.00 | BN32: 0.00 | BO32: 0.00 | BP32: 4,572.74 | BQ32: 0.00 | BR32: 0.00 | BS32: 0.00 | BT32: 0.00 | BU32: 0.00 | BV32: 269.15 | BW32: $ 9,586.84 | BX32: $ 832,712.86
A33: Aquatic | B33: Natural | C33: Helobioma San Juan | D33: Basal floodplain forest | E33: Tall dense forest | F33: CHOCO | G33: BAHIA SOLANO | H33: 404.65 | I33: 0.00 | J33: 122.34 | K33: 122.34 | L33: 0.00 | M33: 0.00 | N33: 246.09 | O33: 0.00 | P33: 246.09 | Q33: 0.00 | R33: 0.00 | S33: 0.00 | T33: 0.00 | U33: 185.50 | V33: 0.00 | W33: 0.00 | X33: 0.00 | Y33: 0.00 | Z33: 31.73 | AA33: 108.62 | AB33: 0.00 | AC33: 0.00 | AD33: 0.00 | AE33: 0.00 | AF33: 0.00 | AG33: 0.00 | AH33: 0.00 | AI33: 0.00 | AJ33: 0.00 | AK33: 1,901.29 | AL33: 45.35 | AM33: 0.00 | AN33: 0.00 | AO33: 0.00 | AP33: 8,335.38 | AQ33: 0.00 | AR33: 0.00 | AS33: 0.00 | AT33: 0.00 | AU33: 3,427.34 | AV33: 0.70 | AW33: 0.00 | AX33: 0.00 | AY33: 0.00 | AZ33: 0.00 | BA33: 0.00 | BB33: 0.70 | BC33: 41.02 | BD33: 1,638.71 | BE33: 0.00 | BF33: 839.86 | BG33: 0.00 | BH33: 0.00 | BI33: 0.00 | BJ33: 0.00 | BK33: 0.00 | BL33: 4,572.74 | BM33: 0.00 | BN33: 0.00 | BO33: 0.00 | BP33: 4,572.74 | BQ33: 0.00 | BR33: 0.00 | BS33: 0.00 | BT33: 0.00 | BU33: 0.00 | BV33: 269.15 | BW33: $ 9,586.84 | BX33: $ 3,879,314.52
A34: Aquatic | B34: Natural | C34: Helobioma San Juan | D34: Basal floodplain forest | E34: Tall dense forest | F34: CHOCO | G34: BAHIA SOLANO | H34: 674.53 | I34: 0.00 | J34: 122.34 | K34: 122.34 | L34: 0.00 | M34: 0.00 | N34: 246.09 | O34: 0.00 | P34: 246.09 | Q34: 0.00 | R34: 0.00 | S34: 0.00 | T34: 0.00 | U34: 185.50 | V34: 0.00 | W34: 0.00 | X34: 0.00 | Y34: 0.00 | Z34: 31.73 | AA34: 108.62 | AB34: 0.00 | AC34: 0.00 | AD34: 0.00 | AE34: 0.00 | AF34: 0.00 | AG34: 0.00 | AH34: 0.00 | AI34: 0.00 | AJ34: 0.00 | AK34: 1,901.29 | AL34: 45.35 | AM34: 0.00 | AN34: 0.00 | AO34: 0.00 | AP34: 8,335.38 | AQ34: 0.00 | AR34: 0.00 | AS34: 0.00 | AT34: 0.00 | AU34: 3,427.34 | AV34: 0.70 | AW34: 0.00 | AX34: 0.00 | AY34: 0.00 | AZ34: 0.00 | BA34: 0.00 | BB34: 0.70 | BC34: 41.02 | BD34: 1,638.71 | BE34: 0.00 | BF34: 839.86 | BG34: 0.00 | BH34: 0.00 | BI34: 0.00 | BJ34: 0.00 | BK34: 0.00 | BL34: 4,572.74 | BM34: 0.00 | BN34: 0.00 | BO34: 0.00 | BP34: 4,572.74 | BQ34: 0.00 | BR34: 0.00 | BS34: 0.00 | BT34: 0.00 | BU34: 0.00 | BV34: 269.15 | BW34: $ 9,586.84 | BX34: $ 6,466,610.71
A35: Aquatic | B35: Natural | C35: Helobioma San Juan | D35: Basal floodplain forest | E35: Tall dense forest | F35: CHOCO | G35: BAHIA SOLANO | H35: 90.28 | I35: 0.00 | J35: 122.34 | K35: 122.34 | L35: 0.00 | M35: 0.00 | N35: 246.09 | O35: 0.00 | P35: 246.09 | Q35: 0.00 | R35: 0.00 | S35: 0.00 | T35: 0.00 | U35: 185.50 | V35: 0.00 | W35: 0.00 | X35: 0.00 | Y35: 0.00 | Z35: 31.73 | AA35: 108.62 | AB35: 0.00 | AC35: 0.00 | AD35: 0.00 | AE35: 0.00 | AF35: 0.00 | AG35: 0.00 | AH35: 0.00 | AI35: 0.00 | AJ35: 0.00 | AK35: 1,901.29 | AL35: 45.35 | AM35: 0.00 | AN35: 0.00 | AO35: 0.00 | AP35: 8,335.38 | AQ35: 0.00 | AR35: 0.00 | AS35: 0.00 | AT35: 0.00 | AU35: 3,427.34 | AV35: 0.70 | AW35: 0.00 | AX35: 0.00 | AY35: 0.00 | AZ35: 0.00 | BA35: 0.00 | BB35: 0.70 | BC35: 41.02 | BD35: 1,638.71 | BE35: 0.00 | BF35: 839.86 | BG35: 0.00 | BH35: 0.00 | BI35: 0.00 | BJ35: 0.00 | BK35: 0.00 | BL35: 4,572.74 | BM35: 0.00 | BN35: 0.00 | BO35: 0.00 | BP35: 4,572.74 | BQ35: 0.00 | BR35: 0.00 | BS35: 0.00 | BT35: 0.00 | BU35: 0.00 | BV35: 269.15 | BW35: $ 9,586.84 | BX35: $ 865,499.85
A36: Aquatic | B36: Natural | C36: Helobioma San Juan | D36: Basal floodplain forest | E36: Tall dense forest | F36: CHOCO | G36: BAHIA SOLANO | H36: 38.91 | I36: 0.00 | J36: 122.34 | K36: 122.34 | L36: 0.00 | M36: 0.00 | N36: 246.09 | O36: 0.00 | P36: 246.09 | Q36: 0.00 | R36: 0.00 | S36: 0.00 | T36: 0.00 | U36: 185.50 | V36: 0.00 | W36: 0.00 | X36: 0.00 | Y36: 0.00 | Z36: 31.73 | AA36: 108.62 | AB36: 0.00 | AC36: 0.00 | AD36: 0.00 | AE36: 0.00 | AF36: 0.00 | AG36: 0.00 | AH36: 0.00 | AI36: 0.00 | AJ36: 0.00 | AK36: 1,901.29 | AL36: 45.35 | AM36: 0.00 | AN36: 0.00 | AO36: 0.00 | AP36: 8,335.38 | AQ36: 0.00 | AR36: 0.00 | AS36: 0.00 | AT36: 0.00 | AU36: 3,427.34 | AV36: 0.70 | AW36: 0.00 | AX36: 0.00 | AY36: 0.00 | AZ36: 0.00 | BA36: 0.00 | BB36: 0.70 | BC36: 41.02 | BD36: 1,638.71 | BE36: 0.00 | BF36: 839.86 | BG36: 0.00 | BH36: 0.00 | BI36: 0.00 | BJ36: 0.00 | BK36: 0.00 | BL36: 4,572.74 | BM36: 0.00 | BN36: 0.00 | BO36: 0.00 | BP36: 4,572.74 | BQ36: 0.00 | BR36: 0.00 | BS36: 0.00 | BT36: 0.00 | BU36: 0.00 | BV36: 269.15 | BW36: $ 9,586.84 | BX36: $ 373,023.92
A37: Aquatic | B37: Natural | C37: Helobioma San Juan | D37: Basal floodplain forest | E37: Tall dense forest | F37: CHOCO | G37: BAHIA SOLANO | H37: 28.51 | I37: 0.00 | J37: 122.34 | K37: 122.34 | L37: 0.00 | M37: 0.00 | N37: 246.09 | O37: 0.00 | P37: 246.09 | Q37: 0.00 | R37: 0.00 | S37: 0.00 | T37: 0.00 | U37: 185.50 | V37: 0.00 | W37: 0.00 | X37: 0.00 | Y37: 0.00 | Z37: 31.73 | AA37: 108.62 | AB37: 0.00 | AC37: 0.00 | AD37: 0.00 | AE37: 0.00 | AF37: 0.00 | AG37: 0.00 | AH37: 0.00 | AI37: 0.00 | AJ37: 0.00 | AK37: 1,901.29 | AL37: 45.35 | AM37: 0.00 | AN37: 0.00 | AO37: 0.00 | AP37: 8,335.38 | AQ37: 0.00 | AR37: 0.00 | AS37: 0.00 | AT37: 0.00 | AU37: 3,427.34 | AV37: 0.70 | AW37: 0.00 | AX37: 0.00 | AY37: 0.00 | AZ37: 0.00 | BA37: 0.00 | BB37: 0.70 | BC37: 41.02 | BD37: 1,638.71 | BE37: 0.00 | BF37: 839.86 | BG37: 0.00 | BH37: 0.00 | BI37: 0.00 | BJ37: 0.00 | BK37: 0.00 | BL37: 4,572.74 | BM37: 0.00 | BN37: 0.00 | BO37: 0.00 | BP37: 4,572.74 | BQ37: 0.00 | BR37: 0.00 | BS37: 0.00 | BT37: 0.00 | BU37: 0.00 | BV37: 269.15 | BW37: $ 9,586.84 | BX37: $ 273,320.79
A38: Aquatic | B38: Natural | C38: Helobioma San Juan | D38: Basal floodplain forest | E38: Tall dense forest | F38: CHOCO | G38: BAHIA SOLANO | H38: 72.83 | I38: 0.00 | J38: 122.34 | K38: 122.34 | L38: 0.00 | M38: 0.00 | N38: 246.09 | O38: 0.00 | P38: 246.09 | Q38: 0.00 | R38: 0.00 | S38: 0.00 | T38: 0.00 | U38: 185.50 | V38: 0.00 | W38: 0.00 | X38: 0.00 | Y38: 0.00 | Z38: 31.73 | AA38: 108.62 | AB38: 0.00 | AC38: 0.00 | AD38: 0.00 | AE38: 0.00 | AF38: 0.00 | AG38: 0.00 | AH38: 0.00 | AI38: 0.00 | AJ38: 0.00 | AK38: 1,901.29 | AL38: 45.35 | AM38: 0.00 | AN38: 0.00 | AO38: 0.00 | AP38: 8,335.38 | AQ38: 0.00 | AR38: 0.00 | AS38: 0.00 | AT38: 0.00 | AU38: 3,427.34 | AV38: 0.70 | AW38: 0.00 | AX38: 0.00 | AY38: 0.00 | AZ38: 0.00 | BA38: 0.00 | BB38: 0.70 | BC38: 41.02 | BD38: 1,638.71 | BE38: 0.00 | BF38: 839.86 | BG38: 0.00 | BH38: 0.00 | BI38: 0.00 | BJ38: 0.00 | BK38: 0.00 | BL38: 4,572.74 | BM38: 0.00 | BN38: 0.00 | BO38: 0.00 | BP38: 4,572.74 | BQ38: 0.00 | BR38: 0.00 | BS38: 0.00 | BT38: 0.00 | BU38: 0.00 | BV38: 269.15 | BW38: $ 9,586.84 | BX38: $ 698,209.51
A39: Aquatic | B39: Natural | C39: Helobioma San Juan | D39: Basal floodplain forest | E39: Tall dense forest | F39: CHOCO | G39: BAHIA SOLANO | H39: 48.24 | I39: 0.00 | J39: 122.34 | K39: 122.34 | L39: 0.00 | M39: 0.00 | N39: 246.09 | O39: 0.00 | P39: 246.09 | Q39: 0.00 | R39: 0.00 | S39: 0.00 | T39: 0.00 | U39: 185.50 | V39: 0.00 | W39: 0.00 | X39: 0.00 | Y39: 0.00 | Z39: 31.73 | AA39: 108.62 | AB39: 0.00 | AC39: 0.00 | AD39: 0.00 | AE39: 0.00 | AF39: 0.00 | AG39: 0.00 | AH39: 0.00 | AI39: 0.00 | AJ39: 0.00 | AK39: 1,901.29 | AL39: 45.35 | AM39: 0.00 | AN39: 0.00 | AO39: 0.00 | AP39: 8,335.38 | AQ39: 0.00 | AR39: 0.00 | AS39: 0.00 | AT39: 0.00 | AU39: 3,427.34 | AV39: 0.70 | AW39: 0.00 | AX39: 0.00 | AY39: 0.00 | AZ39: 0.00 | BA39: 0.00 | BB39: 0.70 | BC39: 41.02 | BD39: 1,638.71 | BE39: 0.00 | BF39: 839.86 | BG39: 0.00 | BH39: 0.00 | BI39: 0.00 | BJ39: 0.00 | BK39: 0.00 | BL39: 4,572.74 | BM39: 0.00 | BN39: 0.00 | BO39: 0.00 | BP39: 4,572.74 | BQ39: 0.00 | BR39: 0.00 | BS39: 0.00 | BT39: 0.00 | BU39: 0.00 | BV39: 269.15 | BW39: $ 9,586.84 | BX39: $ 462,469.13
A40: Aquatic | B40: Natural | C40: Helobioma San Juan | D40: Basal floodplain forest | E40: Tall dense forest | F40: CHOCO | G40: BAHIA SOLANO | H40: 192.03 | I40: 0.00 | J40: 122.34 | K40: 122.34 | L40: 0.00 | M40: 0.00 | N40: 246.09 | O40: 0.00 | P40: 246.09 | Q40: 0.00 | R40: 0.00 | S40: 0.00 | T40: 0.00 | U40: 185.50 | V40: 0.00 | W40: 0.00 | X40: 0.00 | Y40: 0.00 | Z40: 31.73 | AA40: 108.62 | AB40: 0.00 | AC40: 0.00 | AD40: 0.00 | AE40: 0.00 | AF40: 0.00 | AG40: 0.00 | AH40: 0.00 | AI40: 0.00 | AJ40: 0.00 | AK40: 1,901.29 | AL40: 45.35 | AM40: 0.00 | AN40: 0.00 | AO40: 0.00 | AP40: 8,335.38 | AQ40: 0.00 | AR40: 0.00 | AS40: 0.00 | AT40: 0.00 | AU40: 3,427.34 | AV40: 0.70 | AW40: 0.00 | AX40: 0.00 | AY40: 0.00 | AZ40: 0.00 | BA40: 0.00 | BB40: 0.70 | BC40: 41.02 | BD40: 1,638.71 | BE40: 0.00 | BF40: 839.86 | BG40: 0.00 | BH40: 0.00 | BI40: 0.00 | BJ40: 0.00 | BK40: 0.00 | BL40: 4,572.74 | BM40: 0.00 | BN40: 0.00 | BO40: 0.00 | BP40: 4,572.74 | BQ40: 0.00 | BR40: 0.00 | BS40: 0.00 | BT40: 0.00 | BU40: 0.00 | BV40: 269.15 | BW40: $ 9,586.84 | BX40: $ 1,840,960.75
A41: Aquatic | B41: Natural | C41: Helobioma San Juan | D41: Basal floodplain forest | E41: Tall dense forest | F41: CHOCO | G41: BAHIA SOLANO | H41: 54.94 | I41: 0.00 | J41: 122.34 | K41: 122.34 | L41: 0.00 | M41: 0.00 | N41: 246.09 | O41: 0.00 | P41: 246.09 | Q41: 0.00 | R41: 0.00 | S41: 0.00 | T41: 0.00 | U41: 185.50 | V41: 0.00 | W41: 0.00 | X41: 0.00 | Y41: 0.00 | Z41: 31.73 | AA41: 108.62 | AB41: 0.00 | AC41: 0.00 | AD41: 0.00 | AE41: 0.00 | AF41: 0.00 | AG41: 0.00 | AH41: 0.00 | AI41: 0.00 | AJ41: 0.00 | AK41: 1,901.29 | AL41: 45.35 | AM41: 0.00 | AN41: 0.00 | AO41: 0.00 | AP41: 8,335.38 | AQ41: 0.00 | AR41: 0.00 | AS41: 0.00 | AT41: 0.00 | AU41: 3,427.34 | AV41: 0.70 | AW41: 0.00 | AX41: 0.00 | AY41: 0.00 | AZ41: 0.00 | BA41: 0.00 | BB41: 0.70 | BC41: 41.02 | BD41: 1,638.71 | BE41: 0.00 | BF41: 839.86 | BG41: 0.00 | BH41: 0.00 | BI41: 0.00 | BJ41: 0.00 | BK41: 0.00 | BL41: 4,572.74 | BM41: 0.00 | BN41: 0.00 | BO41: 0.00 | BP41: 4,572.74 | BQ41: 0.00 | BR41: 0.00 | BS41: 0.00 | BT41: 0.00 | BU41: 0.00 | BV41: 269.15 | BW41: $ 9,586.84 | BX41: $ 526,700.95
A42: Aquatic | B42: Natural | C42: Helobioma San Juan | D42: Basal floodplain forest | E42: Tall dense forest | F42: CHOCO | G42: BAHIA SOLANO | H42: 36.03 | I42: 0.00 | J42: 122.34 | K42: 122.34 | L42: 0.00 | M42: 0.00 | N42: 246.09 | O42: 0.00 | P42: 246.09 | Q42: 0.00 | R42: 0.00 | S42: 0.00 | T42: 0.00 | U42: 185.50 | V42: 0.00 | W42: 0.00 | X42: 0.00 | Y42: 0.00 | Z42: 31.73 | AA42: 108.62 | AB42: 0.00 | AC42: 0.00 | AD42: 0.00 | AE42: 0.00 | AF42: 0.00 | AG42: 0.00 | AH42: 0.00 | AI42: 0.00 | AJ42: 0.00 | AK42: 1,901.29 | AL42: 45.35 | AM42: 0.00 | AN42: 0.00 | AO42: 0.00 | AP42: 8,335.38 | AQ42: 0.00 | AR42: 0.00 | AS42: 0.00 | AT42: 0.00 | AU42: 3,427.34 | AV42: 0.70 | AW42: 0.00 | AX42: 0.00 | AY42: 0.00 | AZ42: 0.00 | BA42: 0.00 | BB42: 0.70 | BC42: 41.02 | BD42: 1,638.71 | BE42: 0.00 | BF42: 839.86 | BG42: 0.00 | BH42: 0.00 | BI42: 0.00 | BJ42: 0.00 | BK42: 0.00 | BL42: 4,572.74 | BM42: 0.00 | BN42: 0.00 | BO42: 0.00 | BP42: 4,572.74 | BQ42: 0.00 | BR42: 0.00 | BS42: 0.00 | BT42: 0.00 | BU42: 0.00 | BV42: 269.15 | BW42: $ 9,586.84 | BX42: $ 345,413.82
A43: Aquatic | B43: Natural | C43: Helobioma San Juan | D43: Basal floodplain forest | E43: Tall dense forest | F43: CHOCO | G43: BAHIA SOLANO | H43: 303.73 | I43: 0.00 | J43: 122.34 | K43: 122.34 | L43: 0.00 | M43: 0.00 | N43: 246.09 | O43: 0.00 | P43: 246.09 | Q43: 0.00 | R43: 0.00 | S43: 0.00 | T43: 0.00 | U43: 185.50 | V43: 0.00 | W43: 0.00 | X43: 0.00 | Y43: 0.00 | Z43: 31.73 | AA43: 108.62 | AB43: 0.00 | AC43: 0.00 | AD43: 0.00 | AE43: 0.00 | AF43: 0.00 | AG43: 0.00 | AH43: 0.00 | AI43: 0.00 | AJ43: 0.00 | AK43: 1,901.29 | AL43: 45.35 | AM43: 0.00 | AN43: 0.00 | AO43: 0.00 | AP43: 8,335.38 | AQ43: 0.00 | AR43: 0.00 | AS43: 0.00 | AT43: 0.00 | AU43: 3,427.34 | AV43: 0.70 | AW43: 0.00 | AX43: 0.00 | AY43: 0.00 | AZ43: 0.00 | BA43: 0.00 | BB43: 0.70 | BC43: 41.02 | BD43: 1,638.71 | BE43: 0.00 | BF43: 839.86 | BG43: 0.00 | BH43: 0.00 | BI43: 0.00 | BJ43: 0.00 | BK43: 0.00 | BL43: 4,572.74 | BM43: 0.00 | BN43: 0.00 | BO43: 0.00 | BP43: 4,572.74 | BQ43: 0.00 | BR43: 0.00 | BS43: 0.00 | BT43: 0.00 | BU43: 0.00 | BV43: 269.15 | BW43: $ 9,586.84 | BX43: $ 2,911,810.70
A44: Aquatic | B44: Natural | C44: Helobioma San Juan | D44: Basal floodplain forest | E44: Tall dense forest | F44: CHOCO | G44: MEDIO BAUDO | H44: 53.56 | I44: 0.00 | J44: 122.34 | K44: 122.34 | L44: 0.00 | M44: 0.00 | N44: 246.09 | O44: 0.00 | P44: 246.09 | Q44: 0.00 | R44: 0.00 | S44: 0.00 | T44: 0.00 | U44: 185.50 | V44: 0.00 | W44: 0.00 | X44: 0.00 | Y44: 0.00 | Z44: 31.73 | AA44: 108.62 | AB44: 0.00 | AC44: 0.00 | AD44: 0.00 | AE44: 0.00 | AF44: 0.00 | AG44: 0.00 | AH44: 0.00 | AI44: 0.00 | AJ44: 0.00 | AK44: 1,901.29 | AL44: 45.35 | AM44: 0.00 | AN44: 0.00 | AO44: 0.00 | AP44: 8,335.38 | AQ44: 0.00 | AR44: 0.00 | AS44: 0.00 | AT44: 0.00 | AU44: 3,427.34 | AV44: 0.70 | AW44: 0.00 | AX44: 0.00 | AY44: 0.00 | AZ44: 0.00 | BA44: 0.00 | BB44: 0.70 | BC44: 41.02 | BD44: 1,638.71 | BE44: 0.00 | BF44: 839.86 | BG44: 0.00 | BH44: 0.00 | BI44: 0.00 | BJ44: 0.00 | BK44: 0.00 | BL44: 4,572.74 | BM44: 0.00 | BN44: 0.00 | BO44: 0.00 | BP44: 4,572.74 | BQ44: 0.00 | BR44: 0.00 | BS44: 0.00 | BT44: 0.00 | BU44: 0.00 | BV44: 269.15 | BW44: $ 9,586.84 | BX44: $ 513,471.11
A45: Aquatic | B45: Natural | C45: Helobioma Truandó | D45: Basal floodplain forest | E45: Tall dense forest | F45: CHOCO | G45: BOJAYA | H45: 0.01 | I45: 0.00 | J45: 122.34 | K45: 122.34 | L45: 0.00 | M45: 0.00 | N45: 246.09 | O45: 0.00 | P45: 246.09 | Q45: 0.00 | R45: 0.00 | S45: 0.00 | T45: 0.00 | U45: 185.50 | V45: 0.00 | W45: 0.00 | X45: 0.00 | Y45: 0.00 | Z45: 31.73 | AA45: 108.62 | AB45: 0.00 | AC45: 0.00 | AD45: 0.00 | AE45: 0.00 | AF45: 0.00 | AG45: 0.00 | AH45: 0.00 | AI45: 0.00 | AJ45: 0.00 | AK45: 1,901.29 | AL45: 45.35 | AM45: 0.00 | AN45: 0.00 | AO45: 0.00 | AP45: 8,335.38 | AQ45: 0.00 | AR45: 0.00 | AS45: 0.00 | AT45: 0.00 | AU45: 3,427.34 | AV45: 0.70 | AW45: 0.00 | AX45: 0.00 | AY45: 0.00 | AZ45: 0.00 | BA45: 0.00 | BB45: 0.70 | BC45: 41.02 | BD45: 1,638.71 | BE45: 0.00 | BF45: 839.86 | BG45: 0.00 | BH45: 0.00 | BI45: 0.00 | BJ45: 0.00 | BK45: 0.00 | BL45: 4,572.74 | BM45: 0.00 | BN45: 0.00 | BO45: 0.00 | BP45: 4,572.74 | BQ45: 0.00 | BR45: 0.00 | BS45: 0.00 | BT45: 0.00 | BU45: 0.00 | BV45: 269.15 | BW45: $ 9,586.84 | BX45: $ 95.87
A46: Aquatic | B46: Natural | C46: Helobioma Truandó | D46: Basal floodplain forest | E46: Tall dense forest | F46: CHOCO | G46: BAHIA SOLANO | H46: 0.01 | I46: 0.00 | J46: 122.34 | K46: 122.34 | L46: 0.00 | M46: 0.00 | N46: 246.09 | O46: 0.00 | P46: 246.09 | Q46: 0.00 | R46: 0.00 | S46: 0.00 | T46: 0.00 | U46: 185.50 | V46: 0.00 | W46: 0.00 | X46: 0.00 | Y46: 0.00 | Z46: 31.73 | AA46: 108.62 | AB46: 0.00 | AC46: 0.00 | AD46: 0.00 | AE46: 0.00 | AF46: 0.00 | AG46: 0.00 | AH46: 0.00 | AI46: 0.00 | AJ46: 0.00 | AK46: 1,901.29 | AL46: 45.35 | AM46: 0.00 | AN46: 0.00 | AO46: 0.00 | AP46: 8,335.38 | AQ46: 0.00 | AR46: 0.00 | AS46: 0.00 | AT46: 0.00 | AU46: 3,427.34 | AV46: 0.70 | AW46: 0.00 | AX46: 0.00 | AY46: 0.00 | AZ46: 0.00 | BA46: 0.00 | BB46: 0.70 | BC46: 41.02 | BD46: 1,638.71 | BE46: 0.00 | BF46: 839.86 | BG46: 0.00 | BH46: 0.00 | BI46: 0.00 | BJ46: 0.00 | BK46: 0.00 | BL46: 4,572.74 | BM46: 0.00 | BN46: 0.00 | BO46: 0.00 | BP46: 4,572.74 | BQ46: 0.00 | BR46: 0.00 | BS46: 0.00 | BT46: 0.00 | BU46: 0.00 | BV46: 269.15 | BW46: $ 9,586.84 | BX46: $ 95.87
A47: Aquatic | B47: Natural | C47: Helobioma Truandó | D47: Basal floodplain forest | E47: Tall dense forest | F47: CHOCO | G47: CARMEN DEL DARIEN | H47: 0.01 | I47: 0.00 | J47: 122.34 | K47: 122.34 | L47: 0.00 | M47: 0.00 | N47: 246.09 | O47: 0.00 | P47: 246.09 | Q47: 0.00 | R47: 0.00 | S47: 0.00 | T47: 0.00 | U47: 185.50 | V47: 0.00 | W47: 0.00 | X47: 0.00 | Y47: 0.00 | Z47: 31.73 | AA47: 108.62 | AB47: 0.00 | AC47: 0.00 | AD47: 0.00 | AE47: 0.00 | AF47: 0.00 | AG47: 0.00 | AH47: 0.00 | AI47: 0.00 | AJ47: 0.00 | AK47: 1,901.29 | AL47: 45.35 | AM47: 0.00 | AN47: 0.00 | AO47: 0.00 | AP47: 8,335.38 | AQ47: 0.00 | AR47: 0.00 | AS47: 0.00 | AT47: 0.00 | AU47: 3,427.34 | AV47: 0.70 | AW47: 0.00 | AX47: 0.00 | AY47: 0.00 | AZ47: 0.00 | BA47: 0.00 | BB47: 0.70 | BC47: 41.02 | BD47: 1,638.71 | BE47: 0.00 | BF47: 839.86 | BG47: 0.00 | BH47: 0.00 | BI47: 0.00 | BJ47: 0.00 | BK47: 0.00 | BL47: 4,572.74 | BM47: 0.00 | BN47: 0.00 | BO47: 0.00 | BP47: 4,572.74 | BQ47: 0.00 | BR47: 0.00 | BS47: 0.00 | BT47: 0.00 | BU47: 0.00 | BV47: 269.15 | BW47: $ 9,586.84 | BX47: $ 95.87
A48: Aquatic | B48: Natural | C48: Helobioma Truandó | D48: Basal floodplain forest | E48: Tall dense forest | F48: CHOCO | G48: CARMEN DEL DARIEN | H48: 10.53 | I48: 0.00 | J48: 122.34 | K48: 122.34 | L48: 0.00 | M48: 0.00 | N48: 246.09 | O48: 0.00 | P48: 246.09 | Q48: 0.00 | R48: 0.00 | S48: 0.00 | T48: 0.00 | U48: 185.50 | V48: 0.00 | W48: 0.00 | X48: 0.00 | Y48: 0.00 | Z48: 31.73 | AA48: 108.62 | AB48: 0.00 | AC48: 0.00 | AD48: 0.00 | AE48: 0.00 | AF48: 0.00 | AG48: 0.00 | AH48: 0.00 | AI48: 0.00 | AJ48: 0.00 | AK48: 1,901.29 | AL48: 45.35 | AM48: 0.00 | AN48: 0.00 | AO48: 0.00 | AP48: 8,335.38 | AQ48: 0.00 | AR48: 0.00 | AS48: 0.00 | AT48: 0.00 | AU48: 3,427.34 | AV48: 0.70 | AW48: 0.00 | AX48: 0.00 | AY48: 0.00 | AZ48: 0.00 | BA48: 0.00 | BB48: 0.70 | BC48: 41.02 | BD48: 1,638.71 | BE48: 0.00 | BF48: 839.86 | BG48: 0.00 | BH48: 0.00 | BI48: 0.00 | BJ48: 0.00 | BK48: 0.00 | BL48: 4,572.74 | BM48: 0.00 | BN48: 0.00 | BO48: 0.00 | BP48: 4,572.74 | BQ48: 0.00 | BR48: 0.00 | BS48: 0.00 | BT48: 0.00 | BU48: 0.00 | BV48: 269.15 | BW48: $ 9,586.84 | BX48: $ 100,949.42
A49: Aquatic | B49: Natural | C49: Helobioma Truandó | D49: Basal floodplain forest | E49: Tall dense forest | F49: CHOCO | G49: RIOSUCIO | H49: 161.79 | I49: 0.00 | J49: 122.34 | K49: 122.34 | L49: 0.00 | M49: 0.00 | N49: 246.09 | O49: 0.00 | P49: 246.09 | Q49: 0.00 | R49: 0.00 | S49: 0.00 | T49: 0.00 | U49: 185.50 | V49: 0.00 | W49: 0.00 | X49: 0.00 | Y49: 0.00 | Z49: 31.73 | AA49: 108.62 | AB49: 0.00 | AC49: 0.00 | AD49: 0.00 | AE49: 0.00 | AF49: 0.00 | AG49: 0.00 | AH49: 0.00 | AI49: 0.00 | AJ49: 0.00 | AK49: 1,901.29 | AL49: 45.35 | AM49: 0.00 | AN49: 0.00 | AO49: 0.00 | AP49: 8,335.38 | AQ49: 0.00 | AR49: 0.00 | AS49: 0.00 | AT49: 0.00 | AU49: 3,427.34 | AV49: 0.70 | AW49: 0.00 | AX49: 0.00 | AY49: 0.00 | AZ49: 0.00 | BA49: 0.00 | BB49: 0.70 | BC49: 41.02 | BD49: 1,638.71 | BE49: 0.00 | BF49: 839.86 | BG49: 0.00 | BH49: 0.00 | BI49: 0.00 | BJ49: 0.00 | BK49: 0.00 | BL49: 4,572.74 | BM49: 0.00 | BN49: 0.00 | BO49: 0.00 | BP49: 4,572.74 | BQ49: 0.00 | BR49: 0.00 | BS49: 0.00 | BT49: 0.00 | BU49: 0.00 | BV49: 269.15 | BW49: $ 9,586.84 | BX49: $ 1,551,054.73
A50: Aquatic | B50: Natural | C50: Helobioma Truandó | D50: Basal floodplain forest | E50: Tall dense forest | F50: CHOCO | G50: JURADO | H50: 1.46 | I50: 0.00 | J50: 122.34 | K50: 122.34 | L50: 0.00 | M50: 0.00 | N50: 246.09 | O50: 0.00 | P50: 246.09 | Q50: 0.00 | R50: 0.00 | S50: 0.00 | T50: 0.00 | U50: 185.50 | V50: 0.00 | W50: 0.00 | X50: 0.00 | Y50: 0.00 | Z50: 31.73 | AA50: 108.62 | AB50: 0.00 | AC50: 0.00 | AD50: 0.00 | AE50: 0.00 | AF50: 0.00 | AG50: 0.00 | AH50: 0.00 | AI50: 0.00 | AJ50: 0.00 | AK50: 1,901.29 | AL50: 45.35 | AM50: 0.00 | AN50: 0.00 | AO50: 0.00 | AP50: 8,335.38 | AQ50: 0.00 | AR50: 0.00 | AS50: 0.00 | AT50: 0.00 | AU50: 3,427.34 | AV50: 0.70 | AW50: 0.00 | AX50: 0.00 | AY50: 0.00 | AZ50: 0.00 | BA50: 0.00 | BB50: 0.70 | BC50: 41.02 | BD50: 1,638.71 | BE50: 0.00 | BF50: 839.86 | BG50: 0.00 | BH50: 0.00 | BI50: 0.00 | BJ50: 0.00 | BK50: 0.00 | BL50: 4,572.74 | BM50: 0.00 | BN50: 0.00 | BO50: 0.00 | BP50: 4,572.74 | BQ50: 0.00 | BR50: 0.00 | BS50: 0.00 | BT50: 0.00 | BU50: 0.00 | BV50: 269.15 | BW50: $ 9,586.84 | BX50: $ 13,996.79
A51: Aquatic | B51: Natural | C51: Helobioma Truandó | D51: Basal floodplain forest | E51: Tall dense forest | F51: CHOCO | G51: BAHIA SOLANO | H51: 162.18 | I51: 0.00 | J51: 122.34 | K51: 122.34 | L51: 0.00 | M51: 0.00 | N51: 246.09 | O51: 0.00 | P51: 246.09 | Q51: 0.00 | R51: 0.00 | S51: 0.00 | T51: 0.00 | U51: 185.50 | V51: 0.00 | W51: 0.00 | X51: 0.00 | Y51: 0.00 | Z51: 31.73 | AA51: 108.62 | AB51: 0.00 | AC51: 0.00 | AD51: 0.00 | AE51: 0.00 | AF51: 0.00 | AG51: 0.00 | AH51: 0.00 | AI51: 0.00 | AJ51: 0.00 | AK51: 1,901.29 | AL51: 45.35 | AM51: 0.00 | AN51: 0.00 | AO51: 0.00 | AP51: 8,335.38 | AQ51: 0.00 | AR51: 0.00 | AS51: 0.00 | AT51: 0.00 | AU51: 3,427.34 | AV51: 0.70 | AW51: 0.00 | AX51: 0.00 | AY51: 0.00 | AZ51: 0.00 | BA51: 0.00 | BB51: 0.70 | BC51: 41.02 | BD51: 1,638.71 | BE51: 0.00 | BF51: 839.86 | BG51: 0.00 | BH51: 0.00 | BI51: 0.00 | BJ51: 0.00 | BK51: 0.00 | BL51: 4,572.74 | BM51: 0.00 | BN51: 0.00 | BO51: 0.00 | BP51: 4,572.74 | BQ51: 0.00 | BR51: 0.00 | BS51: 0.00 | BT51: 0.00 | BU51: 0.00 | BV51: 269.15 | BW51: $ 9,586.84 | BX51: $ 1,554,793.60
A52: Aquatic | B52: Natural | C52: Helobioma Truandó | D52: Basal floodplain forest | E52: Tall dense forest | F52: CHOCO | G52: JURADO | H52: 26.88 | I52: 0.00 | J52: 122.34 | K52: 122.34 | L52: 0.00 | M52: 0.00 | N52: 246.09 | O52: 0.00 | P52: 246.09 | Q52: 0.00 | R52: 0.00 | S52: 0.00 | T52: 0.00 | U52: 185.50 | V52: 0.00 | W52: 0.00 | X52: 0.00 | Y52: 0.00 | Z52: 31.73 | AA52: 108.62 | AB52: 0.00 | AC52: 0.00 | AD52: 0.00 | AE52: 0.00 | AF52: 0.00 | AG52: 0.00 | AH52: 0.00 | AI52: 0.00 | AJ52: 0.00 | AK52: 1,901.29 | AL52: 45.35 | AM52: 0.00 | AN52: 0.00 | AO52: 0.00 | AP52: 8,335.38 | AQ52: 0.00 | AR52: 0.00 | AS52: 0.00 | AT52: 0.00 | AU52: 3,427.34 | AV52: 0.70 | AW52: 0.00 | AX52: 0.00 | AY52: 0.00 | AZ52: 0.00 | BA52: 0.00 | BB52: 0.70 | BC52: 41.02 | BD52: 1,638.71 | BE52: 0.00 | BF52: 839.86 | BG52: 0.00 | BH52: 0.00 | BI52: 0.00 | BJ52: 0.00 | BK52: 0.00 | BL52: 4,572.74 | BM52: 0.00 | BN52: 0.00 | BO52: 0.00 | BP52: 4,572.74 | BQ52: 0.00 | BR52: 0.00 | BS52: 0.00 | BT52: 0.00 | BU52: 0.00 | BV52: 269.15 | BW52: $ 9,586.84 | BX52: $ 257,694.24
A53: Aquatic | B53: Natural | C53: Helobioma Truandó | D53: Basal floodplain forest | E53: Tall dense forest | F53: CHOCO | G53: JURADO | H53: 34.00 | I53: 0.00 | J53: 122.34 | K53: 122.34 | L53: 0.00 | M53: 0.00 | N53: 246.09 | O53: 0.00 | P53: 246.09 | Q53: 0.00 | R53: 0.00 | S53: 0.00 | T53: 0.00 | U53: 185.50 | V53: 0.00 | W53: 0.00 | X53: 0.00 | Y53: 0.00 | Z53: 31.73 | AA53: 108.62 | AB53: 0.00 | AC53: 0.00 | AD53: 0.00 | AE53: 0.00 | AF53: 0.00 | AG53: 0.00 | AH53: 0.00 | AI53: 0.00 | AJ53: 0.00 | AK53: 1,901.29 | AL53: 45.35 | AM53: 0.00 | AN53: 0.00 | AO53: 0.00 | AP53: 8,335.38 | AQ53: 0.00 | AR53: 0.00 | AS53: 0.00 | AT53: 0.00 | AU53: 3,427.34 | AV53: 0.70 | AW53: 0.00 | AX53: 0.00 | AY53: 0.00 | AZ53: 0.00 | BA53: 0.00 | BB53: 0.70 | BC53: 41.02 | BD53: 1,638.71 | BE53: 0.00 | BF53: 839.86 | BG53: 0.00 | BH53: 0.00 | BI53: 0.00 | BJ53: 0.00 | BK53: 0.00 | BL53: 4,572.74 | BM53: 0.00 | BN53: 0.00 | BO53: 0.00 | BP53: 4,572.74 | BQ53: 0.00 | BR53: 0.00 | BS53: 0.00 | BT53: 0.00 | BU53: 0.00 | BV53: 269.15 | BW53: $ 9,586.84 | BX53: $ 325,952.54
A54: Aquatic | B54: Natural | C54: Helobioma Truandó | D54: Basal floodplain forest | E54: Tall dense forest | F54: CHOCO | G54: JURADO | H54: 30.16 | I54: 0.00 | J54: 122.34 | K54: 122.34 | L54: 0.00 | M54: 0.00 | N54: 246.09 | O54: 0.00 | P54: 246.09 | Q54: 0.00 | R54: 0.00 | S54: 0.00 | T54: 0.00 | U54: 185.50 | V54: 0.00 | W54: 0.00 | X54: 0.00 | Y54: 0.00 | Z54: 31.73 | AA54: 108.62 | AB54: 0.00 | AC54: 0.00 | AD54: 0.00 | AE54: 0.00 | AF54: 0.00 | AG54: 0.00 | AH54: 0.00 | AI54: 0.00 | AJ54: 0.00 | AK54: 1,901.29 | AL54: 45.35 | AM54: 0.00 | AN54: 0.00 | AO54: 0.00 | AP54: 8,335.38 | AQ54: 0.00 | AR54: 0.00 | AS54: 0.00 | AT54: 0.00 | AU54: 3,427.34 | AV54: 0.70 | AW54: 0.00 | AX54: 0.00 | AY54: 0.00 | AZ54: 0.00 | BA54: 0.00 | BB54: 0.70 | BC54: 41.02 | BD54: 1,638.71 | BE54: 0.00 | BF54: 839.86 | BG54: 0.00 | BH54: 0.00 | BI54: 0.00 | BJ54: 0.00 | BK54: 0.00 | BL54: 4,572.74 | BM54: 0.00 | BN54: 0.00 | BO54: 0.00 | BP54: 4,572.74 | BQ54: 0.00 | BR54: 0.00 | BS54: 0.00 | BT54: 0.00 | BU54: 0.00 | BV54: 269.15 | BW54: $ 9,586.84 | BX54: $ 289,139.07
A55: Aquatic | B55: Natural | C55: Helobioma Truandó | D55: Basal floodplain forest | E55: Tall dense forest | F55: CHOCO | G55: JURADO | H55: 52.51 | I55: 0.00 | J55: 122.34 | K55: 122.34 | L55: 0.00 | M55: 0.00 | N55: 246.09 | O55: 0.00 | P55: 246.09 | Q55: 0.00 | R55: 0.00 | S55: 0.00 | T55: 0.00 | U55: 185.50 | V55: 0.00 | W55: 0.00 | X55: 0.00 | Y55: 0.00 | Z55: 31.73 | AA55: 108.62 | AB55: 0.00 | AC55: 0.00 | AD55: 0.00 | AE55: 0.00 | AF55: 0.00 | AG55: 0.00 | AH55: 0.00 | AI55: 0.00 | AJ55: 0.00 | AK55: 1,901.29 | AL55: 45.35 | AM55: 0.00 | AN55: 0.00 | AO55: 0.00 | AP55: 8,335.38 | AQ55: 0.00 | AR55: 0.00 | AS55: 0.00 | AT55: 0.00 | AU55: 3,427.34 | AV55: 0.70 | AW55: 0.00 | AX55: 0.00 | AY55: 0.00 | AZ55: 0.00 | BA55: 0.00 | BB55: 0.70 | BC55: 41.02 | BD55: 1,638.71 | BE55: 0.00 | BF55: 839.86 | BG55: 0.00 | BH55: 0.00 | BI55: 0.00 | BJ55: 0.00 | BK55: 0.00 | BL55: 4,572.74 | BM55: 0.00 | BN55: 0.00 | BO55: 0.00 | BP55: 4,572.74 | BQ55: 0.00 | BR55: 0.00 | BS55: 0.00 | BT55: 0.00 | BU55: 0.00 | BV55: 269.15 | BW55: $ 9,586.84 | BX55: $ 503,404.93
A56: Aquatic | B56: Natural | C56: Hidrobioma Darién –Tacarcuna | D56: White Water River | E56: River | F56: CHOCO | G56: JURADO | H56: 124.34 | I56: 0.00 | J56: 0.00 | K56: 0.00 | L56: 0.00 | M56: 0.00 | N56: 246.09 | O56: 0.00 | P56: 246.09 | Q56: 0.00 | R56: 0.00 | S56: 0.00 | T56: 0.00 | U56: 185.50 | V56: 0.00 | W56: 0.00 | X56: 0.00 | Y56: 0.00 | Z56: 31.73 | AA56: 108.62 | AB56: 0.00 | AC56: 0.00 | AD56: 0.00 | AE56: 0.00 | AF56: 0.00 | AG56: 0.00 | AH56: 0.00 | AI56: 0.00 | AJ56: 0.00 | AK56: 1,901.29 | AL56: 45.35 | AM56: 0.00 | AN56: 0.00 | AO56: 0.00 | AP56: 0.00 | AQ56: 0.00 | AR56: 0.00 | AS56: 0.00 | AT56: 0.00 | AU56: =(AK56+AL56)/2 -> 973.32 | AV56: 0.70 | AW56: 0.00 | AX56: 0.00 | AY56: 0.00 | AZ56: 0.00 | BA56: 0.00 | BB56: 0.70 | BC56: 41.02 | BD56: 1,638.71 | BE56: 0.00 | BF56: 839.86 | BG56: 0.00 | BH56: 0.00 | BI56: 0.00 | BJ56: 0.00 | BK56: 0.00 | BL56: 0.00 | BM56: 0.00 | BN56: 0.00 | BO56: 0.00 | BP56: 0.00 | BQ56: 0.00 | BR56: 0.00 | BS56: 0.00 | BT56: 0.00 | BU56: 0.00 | BV56: 0.00 | BW56: $ 2,168.59 | BX56: $ 269,642.42
A57: Aquatic | B57: Natural | C57: Hidrobioma Darién –Tacarcuna | D57: White Water River | E57: River | F57: CHOCO | G57: JURADO | H57: 1,350.34 | I57: 0.00 | J57: 0.00 | K57: 0.00 | L57: 0.00 | M57: 0.00 | N57: 246.09 | O57: 0.00 | P57: 246.09 | Q57: 0.00 | R57: 0.00 | S57: 0.00 | T57: 0.00 | U57: 185.50 | V57: 0.00 | W57: 0.00 | X57: 0.00 | Y57: 0.00 | Z57: 31.73 | AA57: 108.62 | AB57: 0.00 | AC57: 0.00 | AD57: 0.00 | AE57: 0.00 | AF57: 0.00 | AG57: 0.00 | AH57: 0.00 | AI57: 0.00 | AJ57: 0.00 | AK57: 1,901.29 | AL57: 45.35 | AM57: 0.00 | AN57: 0.00 | AO57: 0.00 | AP57: 0.00 | AQ57: 0.00 | AR57: 0.00 | AS57: 0.00 | AT57: 0.00 | AU57: =(AK57+AL57)/2 -> 973.32 | AV57: 0.70 | AW57: 0.00 | AX57: 0.00 | AY57: 0.00 | AZ57: 0.00 | BA57: 0.00 | BB57: 0.70 | BC57: 41.02 | BD57: 1,638.71 | BE57: 0.00 | BF57: 839.86 | BG57: 0.00 | BH57: 0.00 | BI57: 0.00 | BJ57: 0.00 | BK57: 0.00 | BL57: 0.00 | BM57: 0.00 | BN57: 0.00 | BO57: 0.00 | BP57: 0.00 | BQ57: 0.00 | BR57: 0.00 | BS57: 0.00 | BT57: 0.00 | BU57: 0.00 | BV57: 0.00 | BW57: $ 2,168.59 | BX57: $ 2,928,333.15
A58: Aquatic | B58: Natural | C58: Hidrobioma San Juan | D58: White Water River | E58: River | F58: CHOCO | G58: RIO QUITO | H58: 0.01 | I58: 0.00 | J58: 0.00 | K58: 0.00 | L58: 0.00 | M58: 0.00 | N58: 246.09 | O58: 0.00 | P58: 246.09 | Q58: 0.00 | R58: 0.00 | S58: 0.00 | T58: 0.00 | U58: 185.50 | V58: 0.00 | W58: 0.00 | X58: 0.00 | Y58: 0.00 | Z58: 31.73 | AA58: 108.62 | AB58: 0.00 | AC58: 0.00 | AD58: 0.00 | AE58: 0.00 | AF58: 0.00 | AG58: 0.00 | AH58: 0.00 | AI58: 0.00 | AJ58: 0.00 | AK58: 1,901.29 | AL58: 45.35 | AM58: 0.00 | AN58: 0.00 | AO58: 0.00 | AP58: 0.00 | AQ58: 0.00 | AR58: 0.00 | AS58: 0.00 | AT58: 0.00 | AU58: 973.32 | AV58: 0.70 | AW58: 0.00 | AX58: 0.00 | AY58: 0.00 | AZ58: 0.00 | BA58: 0.00 | BB58: 0.70 | BC58: 41.02 | BD58: 1,638.71 | BE58: 0.00 | BF58: 839.86 | BG58: 0.00 | BH58: 0.00 | BI58: 0.00 | BJ58: 0.00 | BK58: 0.00 | BL58: 0.00 | BM58: 0.00 | BN58: 0.00 | BO58: 0.00 | BP58: 0.00 | BQ58: 0.00 | BR58: 0.00 | BS58: 0.00 | BT58: 0.00 | BU58: 0.00 | BV58: 0.00 | BW58: $ 2,168.59 | BX58: $ 21.69
A59: Aquatic | B59: Natural | C59: Hidrobioma San Juan | D59: White Water River | E59: River | F59: CHOCO | G59: ALTO BAUDO | H59: 4,240.40 | I59: 0.00 | J59: 0.00 | K59: 0.00 | L59: 0.00 | M59: 0.00 | N59: 246.09 | O59: 0.00 | P59: 246.09 | Q59: 0.00 | R59: 0.00 | S59: 0.00 | T59: 0.00 | U59: 185.50 | V59: 0.00 | W59: 0.00 | X59: 0.00 | Y59: 0.00 | Z59: 31.73 | AA59: 108.62 | AB59: 0.00 | AC59: 0.00 | AD59: 0.00 | AE59: 0.00 | AF59: 0.00 | AG59: 0.00 | AH59: 0.00 | AI59: 0.00 | AJ59: 0.00 | AK59: 1,901.29 | AL59: 45.35 | AM59: 0.00 | AN59: 0.00 | AO59: 0.00 | AP59: 0.00 | AQ59: 0.00 | AR59: 0.00 | AS59: 0.00 | AT59: 0.00 | AU59: 973.32 | AV59: 0.70 | AW59: 0.00 | AX59: 0.00 | AY59: 0.00 | AZ59: 0.00 | BA59: 0.00 | BB59: 0.70 | BC59: 41.02 | BD59: 1,638.71 | BE59: 0.00 | BF59: 839.86 | BG59: 0.00 | BH59: 0.00 | BI59: 0.00 | BJ59: 0.00 | BK59: 0.00 | BL59: 0.00 | BM59: 0.00 | BN59: 0.00 | BO59: 0.00 | BP59: 0.00 | BQ59: 0.00 | BR59: 0.00 | BS59: 0.00 | BT59: 0.00 | BU59: 0.00 | BV59: 0.00 | BW59: $ 2,168.59 | BX59: $ 9,195,686.92
A60: Aquatic | B60: Natural | C60: Hidrobioma San Juan | D60: White Water River | E60: River | F60: CHOCO | G60: BAJO BAUDO | H60: 1,514.81 | I60: 0.00 | J60: 0.00 | K60: 0.00 | L60: 0.00 | M60: 0.00 | N60: 246.09 | O60: 0.00 | P60: 246.09 | Q60: 0.00 | R60: 0.00 | S60: 0.00 | T60: 0.00 | U60: 185.50 | V60: 0.00 | W60: 0.00 | X60: 0.00 | Y60: 0.00 | Z60: 31.73 | AA60: 108.62 | AB60: 0.00 | AC60: 0.00 | AD60: 0.00 | AE60: 0.00 | AF60: 0.00 | AG60: 0.00 | AH60: 0.00 | AI60: 0.00 | AJ60: 0.00 | AK60: 1,901.29 | AL60: 45.35 | AM60: 0.00 | AN60: 0.00 | AO60: 0.00 | AP60: 0.00 | AQ60: 0.00 | AR60: 0.00 | AS60: 0.00 | AT60: 0.00 | AU60: 973.32 | AV60: 0.70 | AW60: 0.00 | AX60: 0.00 | AY60: 0.00 | AZ60: 0.00 | BA60: 0.00 | BB60: 0.70 | BC60: 41.02 | BD60: 1,638.71 | BE60: 0.00 | BF60: 839.86 | BG60: 0.00 | BH60: 0.00 | BI60: 0.00 | BJ60: 0.00 | BK60: 0.00 | BL60: 0.00 | BM60: 0.00 | BN60: 0.00 | BO60: 0.00 | BP60: 0.00 | BQ60: 0.00 | BR60: 0.00 | BS60: 0.00 | BT60: 0.00 | BU60: 0.00 | BV60: 0.00 | BW60: $ 2,168.59 | BX60: $ 3,285,001.06
A61: Aquatic | B61: Natural | C61: Hidrobioma San Juan | D61: White Water River | E61: River | F61: CHOCO | G61: MEDIO BAUDO | H61: 2,129.04 | I61: 0.00 | J61: 0.00 | K61: 0.00 | L61: 0.00 | M61: 0.00 | N61: 246.09 | O61: 0.00 | P61: 246.09 | Q61: 0.00 | R61: 0.00 | S61: 0.00 | T61: 0.00 | U61: 185.50 | V61: 0.00 | W61: 0.00 | X61: 0.00 | Y61: 0.00 | Z61: 31.73 | AA61: 108.62 | AB61: 0.00 | AC61: 0.00 | AD61: 0.00 | AE61: 0.00 | AF61: 0.00 | AG61: 0.00 | AH61: 0.00 | AI61: 0.00 | AJ61: 0.00 | AK61: 1,901.29 | AL61: 45.35 | AM61: 0.00 | AN61: 0.00 | AO61: 0.00 | AP61: 0.00 | AQ61: 0.00 | AR61: 0.00 | AS61: 0.00 | AT61: 0.00 | AU61: 973.32 | AV61: 0.70 | AW61: 0.00 | AX61: 0.00 | AY61: 0.00 | AZ61: 0.00 | BA61: 0.00 | BB61: 0.70 | BC61: 41.02 | BD61: 1,638.71 | BE61: 0.00 | BF61: 839.86 | BG61: 0.00 | BH61: 0.00 | BI61: 0.00 | BJ61: 0.00 | BK61: 0.00 | BL61: 0.00 | BM61: 0.00 | BN61: 0.00 | BO61: 0.00 | BP61: 0.00 | BQ61: 0.00 | BR61: 0.00 | BS61: 0.00 | BT61: 0.00 | BU61: 0.00 | BV61: 0.00 | BW61: $ 2,168.59 | BX61: $ 4,617,013.79
A62: Aquatic | B62: Natural | C62: Hidrobioma San Juan | D62: White Water River | E62: River | F62: CHOCO | G62: CANTON DEL SAN PABLO | H62: 22.88 | I62: 0.00 | J62: 0.00 | K62: 0.00 | L62: 0.00 | M62: 0.00 | N62: 246.09 | O62: 0.00 | P62: 246.09 | Q62: 0.00 | R62: 0.00 | S62: 0.00 | T62: 0.00 | U62: 185.50 | V62: 0.00 | W62: 0.00 | X62: 0.00 | Y62: 0.00 | Z62: 31.73 | AA62: 108.62 | AB62: 0.00 | AC62: 0.00 | AD62: 0.00 | AE62: 0.00 | AF62: 0.00 | AG62: 0.00 | AH62: 0.00 | AI62: 0.00 | AJ62: 0.00 | AK62: 1,901.29 | AL62: 45.35 | AM62: 0.00 | AN62: 0.00 | AO62: 0.00 | AP62: 0.00 | AQ62: 0.00 | AR62: 0.00 | AS62: 0.00 | AT62: 0.00 | AU62: 973.32 | AV62: 0.70 | AW62: 0.00 | AX62: 0.00 | AY62: 0.00 | AZ62: 0.00 | BA62: 0.00 | BB62: 0.70 | BC62: 41.02 | BD62: 1,638.71 | BE62: 0.00 | BF62: 839.86 | BG62: 0.00 | BH62: 0.00 | BI62: 0.00 | BJ62: 0.00 | BK62: 0.00 | BL62: 0.00 | BM62: 0.00 | BN62: 0.00 | BO62: 0.00 | BP62: 0.00 | BQ62: 0.00 | BR62: 0.00 | BS62: 0.00 | BT62: 0.00 | BU62: 0.00 | BV62: 0.00 | BW62: $ 2,168.59 | BX62: $ 49,617.33
A63: Aquatic | B63: Natural | C63: Hidrobioma San Juan | D63: White Water River | E63: River | F63: CHOCO | G63: ITSMINA | H63: 138.54 | I63: 0.00 | J63: 0.00 | K63: 0.00 | L63: 0.00 | M63: 0.00 | N63: 246.09 | O63: 0.00 | P63: 246.09 | Q63: 0.00 | R63: 0.00 | S63: 0.00 | T63: 0.00 | U63: 185.50 | V63: 0.00 | W63: 0.00 | X63: 0.00 | Y63: 0.00 | Z63: 31.73 | AA63: 108.62 | AB63: 0.00 | AC63: 0.00 | AD63: 0.00 | AE63: 0.00 | AF63: 0.00 | AG63: 0.00 | AH63: 0.00 | AI63: 0.00 | AJ63: 0.00 | AK63: 1,901.29 | AL63: 45.35 | AM63: 0.00 | AN63: 0.00 | AO63: 0.00 | AP63: 0.00 | AQ63: 0.00 | AR63: 0.00 | AS63: 0.00 | AT63: 0.00 | AU63: 973.32 | AV63: 0.70 | AW63: 0.00 | AX63: 0.00 | AY63: 0.00 | AZ63: 0.00 | BA63: 0.00 | BB63: 0.70 | BC63: 41.02 | BD63: 1,638.71 | BE63: 0.00 | BF63: 839.86 | BG63: 0.00 | BH63: 0.00 | BI63: 0.00 | BJ63: 0.00 | BK63: 0.00 | BL63: 0.00 | BM63: 0.00 | BN63: 0.00 | BO63: 0.00 | BP63: 0.00 | BQ63: 0.00 | BR63: 0.00 | BS63: 0.00 | BT63: 0.00 | BU63: 0.00 | BV63: 0.00 | BW63: $ 2,168.59 | BX63: $ 300,436.39
A64: Aquatic | B64: Natural | C64: Hidrobioma San Juan | D64: White Water River | E64: River | F64: CHOCO | G64: RIO QUITO | H64: 10.98 | I64: 0.00 | J64: 0.00 | K64: 0.00 | L64: 0.00 | M64: 0.00 | N64: 246.09 | O64: 0.00 | P64: 246.09 | Q64: 0.00 | R64: 0.00 | S64: 0.00 | T64: 0.00 | U64: 185.50 | V64: 0.00 | W64: 0.00 | X64: 0.00 | Y64: 0.00 | Z64: 31.73 | AA64: 108.62 | AB64: 0.00 | AC64: 0.00 | AD64: 0.00 | AE64: 0.00 | AF64: 0.00 | AG64: 0.00 | AH64: 0.00 | AI64: 0.00 | AJ64: 0.00 | AK64: 1,901.29 | AL64: 45.35 | AM64: 0.00 | AN64: 0.00 | AO64: 0.00 | AP64: 0.00 | AQ64: 0.00 | AR64: 0.00 | AS64: 0.00 | AT64: 0.00 | AU64: 973.32 | AV64: 0.70 | AW64: 0.00 | AX64: 0.00 | AY64: 0.00 | AZ64: 0.00 | BA64: 0.00 | BB64: 0.70 | BC64: 41.02 | BD64: 1,638.71 | BE64: 0.00 | BF64: 839.86 | BG64: 0.00 | BH64: 0.00 | BI64: 0.00 | BJ64: 0.00 | BK64: 0.00 | BL64: 0.00 | BM64: 0.00 | BN64: 0.00 | BO64: 0.00 | BP64: 0.00 | BQ64: 0.00 | BR64: 0.00 | BS64: 0.00 | BT64: 0.00 | BU64: 0.00 | BV64: 0.00 | BW64: $ 2,168.59 | BX64: $ 23,811.11
A65: Aquatic | B65: Natural | C65: Hidrobioma San Juan | D65: White Water River | E65: River | F65: CHOCO | G65: BAJO BAUDO | H65: 60.39 | I65: 0.00 | J65: 0.00 | K65: 0.00 | L65: 0.00 | M65: 0.00 | N65: 246.09 | O65: 0.00 | P65: 246.09 | Q65: 0.00 | R65: 0.00 | S65: 0.00 | T65: 0.00 | U65: 185.50 | V65: 0.00 | W65: 0.00 | X65: 0.00 | Y65: 0.00 | Z65: 31.73 | AA65: 108.62 | AB65: 0.00 | AC65: 0.00 | AD65: 0.00 | AE65: 0.00 | AF65: 0.00 | AG65: 0.00 | AH65: 0.00 | AI65: 0.00 | AJ65: 0.00 | AK65: 1,901.29 | AL65: 45.35 | AM65: 0.00 | AN65: 0.00 | AO65: 0.00 | AP65: 0.00 | AQ65: 0.00 | AR65: 0.00 | AS65: 0.00 | AT65: 0.00 | AU65: 973.32 | AV65: 0.70 | AW65: 0.00 | AX65: 0.00 | AY65: 0.00 | AZ65: 0.00 | BA65: 0.00 | BB65: 0.70 | BC65: 41.02 | BD65: 1,638.71 | BE65: 0.00 | BF65: 839.86 | BG65: 0.00 | BH65: 0.00 | BI65: 0.00 | BJ65: 0.00 | BK65: 0.00 | BL65: 0.00 | BM65: 0.00 | BN65: 0.00 | BO65: 0.00 | BP65: 0.00 | BQ65: 0.00 | BR65: 0.00 | BS65: 0.00 | BT65: 0.00 | BU65: 0.00 | BV65: 0.00 | BW65: $ 2,168.59 | BX65: $ 130,961.12
A66: Aquatic | B66: Natural | C66: Hidrobioma San Juan | D66: White Water River | E66: River | F66: CHOCO | G66: BAJO BAUDO | H66: 83.56 | I66: 0.00 | J66: 0.00 | K66: 0.00 | L66: 0.00 | M66: 0.00 | N66: 246.09 | O66: 0.00 | P66: 246.09 | Q66: 0.00 | R66: 0.00 | S66: 0.00 | T66: 0.00 | U66: 185.50 | V66: 0.00 | W66: 0.00 | X66: 0.00 | Y66: 0.00 | Z66: 31.73 | AA66: 108.62 | AB66: 0.00 | AC66: 0.00 | AD66: 0.00 | AE66: 0.00 | AF66: 0.00 | AG66: 0.00 | AH66: 0.00 | AI66: 0.00 | AJ66: 0.00 | AK66: 1,901.29 | AL66: 45.35 | AM66: 0.00 | AN66: 0.00 | AO66: 0.00 | AP66: 0.00 | AQ66: 0.00 | AR66: 0.00 | AS66: 0.00 | AT66: 0.00 | AU66: 973.32 | AV66: 0.70 | AW66: 0.00 | AX66: 0.00 | AY66: 0.00 | AZ66: 0.00 | BA66: 0.00 | BB66: 0.70 | BC66: 41.02 | BD66: 1,638.71 | BE66: 0.00 | BF66: 839.86 | BG66: 0.00 | BH66: 0.00 | BI66: 0.00 | BJ66: 0.00 | BK66: 0.00 | BL66: 0.00 | BM66: 0.00 | BN66: 0.00 | BO66: 0.00 | BP66: 0.00 | BQ66: 0.00 | BR66: 0.00 | BS66: 0.00 | BT66: 0.00 | BU66: 0.00 | BV66: 0.00 | BW66: $ 2,168.59 | BX66: $ 181,207.34
A67: Aquatic | B67: Natural | C67: Hidrobioma San Juan | D67: White Water River | E67: River | F67: CHOCO | G67: BAJO BAUDO | H67: 330.44 | I67: 0.00 | J67: 0.00 | K67: 0.00 | L67: 0.00 | M67: 0.00 | N67: 246.09 | O67: 0.00 | P67: =N67 -> 246.09 | Q67: 0.00 | R67: 0.00 | S67: 0.00 | T67: 0.00 | U67: 185.50 | V67: 0.00 | W67: 0.00 | X67: 0.00 | Y67: 0.00 | Z67: 31.73 | AA67: =(U67+Z67)/2 -> 108.62 | AB67: 0.00 | AC67: 0.00 | AD67: 0.00 | AE67: 0.00 | AF67: 0.00 | AG67: 0.00 | AH67: 0.00 | AI67: 0.00 | AJ67: 0.00 | AK67: 1,901.29 | AL67: 45.35 | AM67: 0.00 | AN67: 0.00 | AO67: 0.00 | AP67: 0.00 | AQ67: 0.00 | AR67: 0.00 | AS67: 0.00 | AT67: 0.00 | AU67: 973.32 | AV67: 0.70 | AW67: 0.00 | AX67: 0.00 | AY67: 0.00 | AZ67: 0.00 | BA67: 0.00 | BB67: 0.70 | BC67: 41.02 | BD67: 1,638.71 | BE67: 0.00 | BF67: =(BC67+BD67)/2 -> 839.86 | BG67: 0.00 | BH67: 0.00 | BI67: 0.00 | BJ67: 0.00 | BK67: 0.00 | BL67: 0.00 | BM67: 0.00 | BN67: 0.00 | BO67: 0.00 | BP67: 0.00 | BQ67: 0.00 | BR67: 0.00 | BS67: 0.00 | BT67: 0.00 | BU67: 0.00 | BV67: 0.00 | BW67: =K67+L67+P67+S67+AA67+AE67+AF67+AI67+AU67+BB67+BF67+BP67+BT67+BU67+BV67 -> $ 2,168.59 | BX67: =BW67*H67 -> $ 716,588.71
A68: Aquatic | B68: Natural | C68: Hidrobioma San Juan | D68: White Water River | E68: River | F68: CHOCO | G68: MEDIO BAUDO | H68: 282.27 | I68: 0.00 | J68: 0.00 | K68: 0.00 | L68: 0.00 | M68: 0.00 | N68: 246.09 | O68: 0.00 | P68: 246.09 | Q68: 0.00 | R68: 0.00 | S68: 0.00 | T68: 0.00 | U68: 185.50 | V68: 0.00 | W68: 0.00 | X68: 0.00 | Y68: 0.00 | Z68: 31.73 | AA68: 108.62 | AB68: 0.00 | AC68: 0.00 | AD68: 0.00 | AE68: 0.00 | AF68: 0.00 | AG68: 0.00 | AH68: 0.00 | AI68: 0.00 | AJ68: 0.00 | AK68: 1,901.29 | AL68: 45.35 | AM68: 0.00 | AN68: 0.00 | AO68: 0.00 | AP68: 0.00 | AQ68: 0.00 | AR68: 0.00 | AS68: 0.00 | AT68: 0.00 | AU68: 973.32 | AV68: 0.70 | AW68: 0.00 | AX68: 0.00 | AY68: 0.00 | AZ68: 0.00 | BA68: 0.00 | BB68: 0.70 | BC68: 41.02 | BD68: 1,638.71 | BE68: 0.00 | BF68: 839.86 | BG68: 0.00 | BH68: 0.00 | BI68: 0.00 | BJ68: 0.00 | BK68: 0.00 | BL68: 0.00 | BM68: 0.00 | BN68: 0.00 | BO68: 0.00 | BP68: 0.00 | BQ68: 0.00 | BR68: 0.00 | BS68: 0.00 | BT68: 0.00 | BU68: 0.00 | BV68: 0.00 | BW68: $ 2,168.59 | BX68: $ 612,127.76
A69: Aquatic | B69: Natural | C69: Hidrobioma San Juan | D69: White Water River | E69: River | F69: CHOCO | G69: BAJO BAUDO | H69: 121.16 | I69: 0.00 | J69: 0.00 | K69: 0.00 | L69: 0.00 | M69: 0.00 | N69: 246.09 | O69: 0.00 | P69: 246.09 | Q69: 0.00 | R69: 0.00 | S69: 0.00 | T69: 0.00 | U69: 185.50 | V69: 0.00 | W69: 0.00 | X69: 0.00 | Y69: 0.00 | Z69: 31.73 | AA69: 108.62 | AB69: 0.00 | AC69: 0.00 | AD69: 0.00 | AE69: 0.00 | AF69: 0.00 | AG69: 0.00 | AH69: 0.00 | AI69: 0.00 | AJ69: 0.00 | AK69: 1,901.29 | AL69: 45.35 | AM69: 0.00 | AN69: 0.00 | AO69: 0.00 | AP69: 0.00 | AQ69: 0.00 | AR69: 0.00 | AS69: 0.00 | AT69: 0.00 | AU69: 973.32 | AV69: 0.70 | AW69: 0.00 | AX69: 0.00 | AY69: 0.00 | AZ69: 0.00 | BA69: 0.00 | BB69: 0.70 | BC69: 41.02 | BD69: 1,638.71 | BE69: 0.00 | BF69: 839.86 | BG69: 0.00 | BH69: 0.00 | BI69: 0.00 | BJ69: 0.00 | BK69: 0.00 | BL69: 0.00 | BM69: 0.00 | BN69: 0.00 | BO69: 0.00 | BP69: 0.00 | BQ69: 0.00 | BR69: 0.00 | BS69: 0.00 | BT69: 0.00 | BU69: 0.00 | BV69: 0.00 | BW69: $ 2,168.59 | BX69: $ 262,746.30
A70: Aquatic | B70: Natural | C70: Hidrobioma San Juan | D70: White Water River | E70: River | F70: CHOCO | G70: MEDIO BAUDO | H70: 125.09 | I70: 0.00 | J70: 0.00 | K70: 0.00 | L70: 0.00 | M70: 0.00 | N70: 246.09 | O70: 0.00 | P70: 246.09 | Q70: 0.00 | R70: 0.00 | S70: 0.00 | T70: 0.00 | U70: 185.50 | V70: 0.00 | W70: 0.00 | X70: 0.00 | Y70: 0.00 | Z70: 31.73 | AA70: 108.62 | AB70: 0.00 | AC70: 0.00 | AD70: 0.00 | AE70: 0.00 | AF70: 0.00 | AG70: 0.00 | AH70: 0.00 | AI70: 0.00 | AJ70: 0.00 | AK70: 1,901.29 | AL70: 45.35 | AM70: 0.00 | AN70: 0.00 | AO70: 0.00 | AP70: 0.00 | AQ70: 0.00 | AR70: 0.00 | AS70: 0.00 | AT70: 0.00 | AU70: 973.32 | AV70: 0.70 | AW70: 0.00 | AX70: 0.00 | AY70: 0.00 | AZ70: 0.00 | BA70: 0.00 | BB70: 0.70 | BC70: 41.02 | BD70: 1,638.71 | BE70: 0.00 | BF70: 839.86 | BG70: 0.00 | BH70: 0.00 | BI70: 0.00 | BJ70: 0.00 | BK70: 0.00 | BL70: 0.00 | BM70: 0.00 | BN70: 0.00 | BO70: 0.00 | BP70: 0.00 | BQ70: 0.00 | BR70: 0.00 | BS70: 0.00 | BT70: 0.00 | BU70: 0.00 | BV70: 0.00 | BW70: $ 2,168.59 | BX70: $ 271,268.86
A71: Aquatic | B71: Natural | C71: Hidrobioma San Juan | D71: White Water River | E71: River | F71: CHOCO | G71: BAJO BAUDO | H71: 49.70 | I71: 0.00 | J71: 0.00 | K71: 0.00 | L71: 0.00 | M71: 0.00 | N71: 246.09 | O71: 0.00 | P71: 246.09 | Q71: 0.00 | R71: 0.00 | S71: 0.00 | T71: 0.00 | U71: 185.50 | V71: 0.00 | W71: 0.00 | X71: 0.00 | Y71: 0.00 | Z71: 31.73 | AA71: 108.62 | AB71: 0.00 | AC71: 0.00 | AD71: 0.00 | AE71: 0.00 | AF71: 0.00 | AG71: 0.00 | AH71: 0.00 | AI71: 0.00 | AJ71: 0.00 | AK71: 1,901.29 | AL71: 45.35 | AM71: 0.00 | AN71: 0.00 | AO71: 0.00 | AP71: 0.00 | AQ71: 0.00 | AR71: 0.00 | AS71: 0.00 | AT71: 0.00 | AU71: 973.32 | AV71: 0.70 | AW71: 0.00 | AX71: 0.00 | AY71: 0.00 | AZ71: 0.00 | BA71: 0.00 | BB71: 0.70 | BC71: 41.02 | BD71: 1,638.71 | BE71: 0.00 | BF71: 839.86 | BG71: 0.00 | BH71: 0.00 | BI71: 0.00 | BJ71: 0.00 | BK71: 0.00 | BL71: 0.00 | BM71: 0.00 | BN71: 0.00 | BO71: 0.00 | BP71: 0.00 | BQ71: 0.00 | BR71: 0.00 | BS71: 0.00 | BT71: 0.00 | BU71: 0.00 | BV71: 0.00 | BW71: $ 2,168.59 | BX71: $ 107,778.90
A72: Aquatic | B72: Natural | C72: Hidrobioma San Juan | D72: White Water River | E72: River | F72: CHOCO | G72: BAJO BAUDO | H72: 28.10 | I72: 0.00 | J72: 0.00 | K72: 0.00 | L72: 0.00 | M72: 0.00 | N72: 246.09 | O72: 0.00 | P72: 246.09 | Q72: 0.00 | R72: 0.00 | S72: 0.00 | T72: 0.00 | U72: 185.50 | V72: 0.00 | W72: 0.00 | X72: 0.00 | Y72: 0.00 | Z72: 31.73 | AA72: 108.62 | AB72: 0.00 | AC72: 0.00 | AD72: 0.00 | AE72: 0.00 | AF72: 0.00 | AG72: 0.00 | AH72: 0.00 | AI72: 0.00 | AJ72: 0.00 | AK72: 1,901.29 | AL72: 45.35 | AM72: 0.00 | AN72: 0.00 | AO72: 0.00 | AP72: 0.00 | AQ72: 0.00 | AR72: 0.00 | AS72: 0.00 | AT72: 0.00 | AU72: 973.32 | AV72: 0.70 | AW72: 0.00 | AX72: 0.00 | AY72: 0.00 | AZ72: 0.00 | BA72: 0.00 | BB72: 0.70 | BC72: 41.02 | BD72: 1,638.71 | BE72: 0.00 | BF72: 839.86 | BG72: 0.00 | BH72: 0.00 | BI72: 0.00 | BJ72: 0.00 | BK72: 0.00 | BL72: 0.00 | BM72: 0.00 | BN72: 0.00 | BO72: 0.00 | BP72: 0.00 | BQ72: 0.00 | BR72: 0.00 | BS72: 0.00 | BT72: 0.00 | BU72: 0.00 | BV72: 0.00 | BW72: $ 2,168.59 | BX72: $ 60,937.36
A73: Aquatic | B73: Natural | C73: Hidrobioma San Juan | D73: White Water River | E73: River | F73: CHOCO | G73: BAJO BAUDO | H73: 1,195.10 | I73: 0.00 | J73: 0.00 | K73: 0.00 | L73: 0.00 | M73: 0.00 | N73: 246.09 | O73: 0.00 | P73: 246.09 | Q73: 0.00 | R73: 0.00 | S73: 0.00 | T73: 0.00 | U73: 185.50 | V73: 0.00 | W73: 0.00 | X73: 0.00 | Y73: 0.00 | Z73: 31.73 | AA73: 108.62 | AB73: 0.00 | AC73: 0.00 | AD73: 0.00 | AE73: 0.00 | AF73: 0.00 | AG73: 0.00 | AH73: 0.00 | AI73: 0.00 | AJ73: 0.00 | AK73: 1,901.29 | AL73: 45.35 | AM73: 0.00 | AN73: 0.00 | AO73: 0.00 | AP73: 0.00 | AQ73: 0.00 | AR73: 0.00 | AS73: 0.00 | AT73: 0.00 | AU73: 973.32 | AV73: 0.70 | AW73: 0.00 | AX73: 0.00 | AY73: 0.00 | AZ73: 0.00 | BA73: 0.00 | BB73: 0.70 | BC73: 41.02 | BD73: 1,638.71 | BE73: 0.00 | BF73: 839.86 | BG73: 0.00 | BH73: 0.00 | BI73: 0.00 | BJ73: 0.00 | BK73: 0.00 | BL73: 0.00 | BM73: 0.00 | BN73: 0.00 | BO73: 0.00 | BP73: 0.00 | BQ73: 0.00 | BR73: 0.00 | BS73: 0.00 | BT73: 0.00 | BU73: 0.00 | BV73: 0.00 | BW73: $ 2,168.59 | BX73: $ 2,591,681.31
A74: Aquatic | B74: Natural | C74: Hidrobioma San Juan | D74: White Water River | E74: River | F74: CHOCO | G74: MEDIO BAUDO | H74: 1,091.25 | I74: 0.00 | J74: 0.00 | K74: 0.00 | L74: 0.00 | M74: 0.00 | N74: 246.09 | O74: 0.00 | P74: 246.09 | Q74: 0.00 | R74: 0.00 | S74: 0.00 | T74: 0.00 | U74: 185.50 | V74: 0.00 | W74: 0.00 | X74: 0.00 | Y74: 0.00 | Z74: 31.73 | AA74: 108.62 | AB74: 0.00 | AC74: 0.00 | AD74: 0.00 | AE74: 0.00 | AF74: 0.00 | AG74: 0.00 | AH74: 0.00 | AI74: 0.00 | AJ74: 0.00 | AK74: 1,901.29 | AL74: 45.35 | AM74: 0.00 | AN74: 0.00 | AO74: 0.00 | AP74: 0.00 | AQ74: 0.00 | AR74: 0.00 | AS74: 0.00 | AT74: 0.00 | AU74: 973.32 | AV74: 0.70 | AW74: 0.00 | AX74: 0.00 | AY74: 0.00 | AZ74: 0.00 | BA74: 0.00 | BB74: 0.70 | BC74: 41.02 | BD74: 1,638.71 | BE74: 0.00 | BF74: 839.86 | BG74: 0.00 | BH74: 0.00 | BI74: 0.00 | BJ74: 0.00 | BK74: 0.00 | BL74: 0.00 | BM74: 0.00 | BN74: 0.00 | BO74: 0.00 | BP74: 0.00 | BQ74: 0.00 | BR74: 0.00 | BS74: 0.00 | BT74: 0.00 | BU74: 0.00 | BV74: 0.00 | BW74: $ 2,168.59 | BX74: $ 2,366,473.29
A75: Aquatic | B75: Natural | C75: Hidrobioma San Juan | D75: White Water River | E75: River | F75: CHOCO | G75: BAJO BAUDO | H75: 418.97 | I75: 0.00 | J75: 0.00 | K75: 0.00 | L75: 0.00 | M75: 0.00 | N75: 246.09 | O75: 0.00 | P75: 246.09 | Q75: 0.00 | R75: 0.00 | S75: 0.00 | T75: 0.00 | U75: 185.50 | V75: 0.00 | W75: 0.00 | X75: 0.00 | Y75: 0.00 | Z75: 31.73 | AA75: 108.62 | AB75: 0.00 | AC75: 0.00 | AD75: 0.00 | AE75: 0.00 | AF75: 0.00 | AG75: 0.00 | AH75: 0.00 | AI75: 0.00 | AJ75: 0.00 | AK75: 1,901.29 | AL75: 45.35 | AM75: 0.00 | AN75: 0.00 | AO75: 0.00 | AP75: 0.00 | AQ75: 0.00 | AR75: 0.00 | AS75: 0.00 | AT75: 0.00 | AU75: 973.32 | AV75: 0.70 | AW75: 0.00 | AX75: 0.00 | AY75: 0.00 | AZ75: 0.00 | BA75: 0.00 | BB75: 0.70 | BC75: 41.02 | BD75: 1,638.71 | BE75: 0.00 | BF75: 839.86 | BG75: 0.00 | BH75: 0.00 | BI75: 0.00 | BJ75: 0.00 | BK75: 0.00 | BL75: 0.00 | BM75: 0.00 | BN75: 0.00 | BO75: 0.00 | BP75: 0.00 | BQ75: 0.00 | BR75: 0.00 | BS75: 0.00 | BT75: 0.00 | BU75: 0.00 | BV75: 0.00 | BW75: $ 2,168.59 | BX75: $ 908,573.94
A76: Aquatic | B76: Natural | C76: Hidrobioma San Juan | D76: White Water River | E76: River | F76: CHOCO | G76: BAJO BAUDO | H76: 60.50 | I76: 0.00 | J76: 0.00 | K76: 0.00 | L76: 0.00 | M76: 0.00 | N76: 246.09 | O76: 0.00 | P76: 246.09 | Q76: 0.00 | R76: 0.00 | S76: 0.00 | T76: 0.00 | U76: 185.50 | V76: 0.00 | W76: 0.00 | X76: 0.00 | Y76: 0.00 | Z76: 31.73 | AA76: 108.62 | AB76: 0.00 | AC76: 0.00 | AD76: 0.00 | AE76: 0.00 | AF76: 0.00 | AG76: 0.00 | AH76: 0.00 | AI76: 0.00 | AJ76: 0.00 | AK76: 1,901.29 | AL76: 45.35 | AM76: 0.00 | AN76: 0.00 | AO76: 0.00 | AP76: 0.00 | AQ76: 0.00 | AR76: 0.00 | AS76: 0.00 | AT76: 0.00 | AU76: 973.32 | AV76: 0.70 | AW76: 0.00 | AX76: 0.00 | AY76: 0.00 | AZ76: 0.00 | BA76: 0.00 | BB76: 0.70 | BC76: 41.02 | BD76: 1,638.71 | BE76: 0.00 | BF76: 839.86 | BG76: 0.00 | BH76: 0.00 | BI76: 0.00 | BJ76: 0.00 | BK76: 0.00 | BL76: 0.00 | BM76: 0.00 | BN76: 0.00 | BO76: 0.00 | BP76: 0.00 | BQ76: 0.00 | BR76: 0.00 | BS76: 0.00 | BT76: 0.00 | BU76: 0.00 | BV76: 0.00 | BW76: $ 2,168.59 | BX76: $ 131,199.66
A77: Aquatic | B77: Natural | C77: Hidrobioma San Juan | D77: White Water River | E77: River | F77: CHOCO | G77: BAJO BAUDO | H77: 31.28 | I77: 0.00 | J77: 0.00 | K77: 0.00 | L77: 0.00 | M77: 0.00 | N77: 246.09 | O77: 0.00 | P77: 246.09 | Q77: 0.00 | R77: 0.00 | S77: 0.00 | T77: 0.00 | U77: 185.50 | V77: 0.00 | W77: 0.00 | X77: 0.00 | Y77: 0.00 | Z77: 31.73 | AA77: 108.62 | AB77: 0.00 | AC77: 0.00 | AD77: 0.00 | AE77: 0.00 | AF77: 0.00 | AG77: 0.00 | AH77: 0.00 | AI77: 0.00 | AJ77: 0.00 | AK77: 1,901.29 | AL77: 45.35 | AM77: 0.00 | AN77: 0.00 | AO77: 0.00 | AP77: 0.00 | AQ77: 0.00 | AR77: 0.00 | AS77: 0.00 | AT77: 0.00 | AU77: 973.32 | AV77: 0.70 | AW77: 0.00 | AX77: 0.00 | AY77: 0.00 | AZ77: 0.00 | BA77: 0.00 | BB77: 0.70 | BC77: 41.02 | BD77: 1,638.71 | BE77: 0.00 | BF77: 839.86 | BG77: 0.00 | BH77: 0.00 | BI77: 0.00 | BJ77: 0.00 | BK77: 0.00 | BL77: 0.00 | BM77: 0.00 | BN77: 0.00 | BO77: 0.00 | BP77: 0.00 | BQ77: 0.00 | BR77: 0.00 | BS77: 0.00 | BT77: 0.00 | BU77: 0.00 | BV77: 0.00 | BW77: $ 2,168.59 | BX77: $ 67,833.48
A78: Aquatic | B78: Natural | C78: Hidrobioma San Juan | D78: White Water River | E78: River | F78: CHOCO | G78: BAJO BAUDO | H78: 36.15 | I78: 0.00 | J78: 0.00 | K78: 0.00 | L78: 0.00 | M78: 0.00 | N78: 246.09 | O78: 0.00 | P78: 246.09 | Q78: 0.00 | R78: 0.00 | S78: 0.00 | T78: 0.00 | U78: 185.50 | V78: 0.00 | W78: 0.00 | X78: 0.00 | Y78: 0.00 | Z78: 31.73 | AA78: 108.62 | AB78: 0.00 | AC78: 0.00 | AD78: 0.00 | AE78: 0.00 | AF78: 0.00 | AG78: 0.00 | AH78: 0.00 | AI78: 0.00 | AJ78: 0.00 | AK78: 1,901.29 | AL78: 45.35 | AM78: 0.00 | AN78: 0.00 | AO78: 0.00 | AP78: 0.00 | AQ78: 0.00 | AR78: 0.00 | AS78: 0.00 | AT78: 0.00 | AU78: 973.32 | AV78: 0.70 | AW78: 0.00 | AX78: 0.00 | AY78: 0.00 | AZ78: 0.00 | BA78: 0.00 | BB78: 0.70 | BC78: 41.02 | BD78: 1,638.71 | BE78: 0.00 | BF78: 839.86 | BG78: 0.00 | BH78: 0.00 | BI78: 0.00 | BJ78: 0.00 | BK78: 0.00 | BL78: 0.00 | BM78: 0.00 | BN78: 0.00 | BO78: 0.00 | BP78: 0.00 | BQ78: 0.00 | BR78: 0.00 | BS78: 0.00 | BT78: 0.00 | BU78: 0.00 | BV78: 0.00 | BW78: $ 2,168.59 | BX78: $ 78,394.51
A79: Aquatic | B79: Natural | C79: Hidrobioma San Juan | D79: White Water River | E79: River | F79: CHOCO | G79: BAJO BAUDO | H79: 462.26 | I79: 0.00 | J79: 0.00 | K79: 0.00 | L79: 0.00 | M79: 0.00 | N79: 246.09 | O79: 0.00 | P79: 246.09 | Q79: 0.00 | R79: 0.00 | S79: 0.00 | T79: 0.00 | U79: 185.50 | V79: 0.00 | W79: 0.00 | X79: 0.00 | Y79: 0.00 | Z79: 31.73 | AA79: 108.62 | AB79: 0.00 | AC79: 0.00 | AD79: 0.00 | AE79: 0.00 | AF79: 0.00 | AG79: 0.00 | AH79: 0.00 | AI79: 0.00 | AJ79: 0.00 | AK79: 1,901.29 | AL79: 45.35 | AM79: 0.00 | AN79: 0.00 | AO79: 0.00 | AP79: 0.00 | AQ79: 0.00 | AR79: 0.00 | AS79: 0.00 | AT79: 0.00 | AU79: 973.32 | AV79: 0.70 | AW79: 0.00 | AX79: 0.00 | AY79: 0.00 | AZ79: 0.00 | BA79: 0.00 | BB79: 0.70 | BC79: 41.02 | BD79: 1,638.71 | BE79: 0.00 | BF79: 839.86 | BG79: 0.00 | BH79: 0.00 | BI79: 0.00 | BJ79: 0.00 | BK79: 0.00 | BL79: 0.00 | BM79: 0.00 | BN79: 0.00 | BO79: 0.00 | BP79: 0.00 | BQ79: 0.00 | BR79: 0.00 | BS79: 0.00 | BT79: 0.00 | BU79: 0.00 | BV79: 0.00 | BW79: $ 2,168.59 | BX79: $ 1,002,452.18
A80: Aquatic | B80: Natural | C80: Hidrobioma San Juan | D80: White Water River | E80: River | F80: CHOCO | G80: BAJO BAUDO | H80: 32.79 | I80: 0.00 | J80: 0.00 | K80: 0.00 | L80: 0.00 | M80: 0.00 | N80: 246.09 | O80: 0.00 | P80: 246.09 | Q80: 0.00 | R80: 0.00 | S80: 0.00 | T80: 0.00 | U80: 185.50 | V80: 0.00 | W80: 0.00 | X80: 0.00 | Y80: 0.00 | Z80: 31.73 | AA80: 108.62 | AB80: 0.00 | AC80: 0.00 | AD80: 0.00 | AE80: 0.00 | AF80: 0.00 | AG80: 0.00 | AH80: 0.00 | AI80: 0.00 | AJ80: 0.00 | AK80: 1,901.29 | AL80: 45.35 | AM80: 0.00 | AN80: 0.00 | AO80: 0.00 | AP80: 0.00 | AQ80: 0.00 | AR80: 0.00 | AS80: 0.00 | AT80: 0.00 | AU80: 973.32 | AV80: 0.70 | AW80: 0.00 | AX80: 0.00 | AY80: 0.00 | AZ80: 0.00 | BA80: 0.00 | BB80: 0.70 | BC80: 41.02 | BD80: 1,638.71 | BE80: 0.00 | BF80: 839.86 | BG80: 0.00 | BH80: 0.00 | BI80: 0.00 | BJ80: 0.00 | BK80: 0.00 | BL80: 0.00 | BM80: 0.00 | BN80: 0.00 | BO80: 0.00 | BP80: 0.00 | BQ80: 0.00 | BR80: 0.00 | BS80: 0.00 | BT80: 0.00 | BU80: 0.00 | BV80: 0.00 | BW80: $ 2,168.59 | BX80: $ 71,108.05
A81: Aquatic | B81: Natural | C81: Hidrobioma San Juan | D81: White Water River | E81: River | F81: CHOCO | G81: NUQUI | H81: 105.03 | I81: 0.00 | J81: 0.00 | K81: 0.00 | L81: 0.00 | M81: 0.00 | N81: 246.09 | O81: 0.00 | P81: 246.09 | Q81: 0.00 | R81: 0.00 | S81: 0.00 | T81: 0.00 | U81: 185.50 | V81: 0.00 | W81: 0.00 | X81: 0.00 | Y81: 0.00 | Z81: 31.73 | AA81: 108.62 | AB81: 0.00 | AC81: 0.00 | AD81: 0.00 | AE81: 0.00 | AF81: 0.00 | AG81: 0.00 | AH81: 0.00 | AI81: 0.00 | AJ81: 0.00 | AK81: 1,901.29 | AL81: 45.35 | AM81: 0.00 | AN81: 0.00 | AO81: 0.00 | AP81: 0.00 | AQ81: 0.00 | AR81: 0.00 | AS81: 0.00 | AT81: 0.00 | AU81: 973.32 | AV81: 0.70 | AW81: 3.35 | AX81: 0.00 | AY81: 0.00 | AZ81: 0.00 | BA81: 0.00 | BB81: =(AV81+AW81)/2 -> 2.03 | BC81: 41.02 | BD81: 1,638.71 | BE81: 0.00 | BF81: 839.86 | BG81: 0.00 | BH81: 0.00 | BI81: 0.00 | BJ81: 0.00 | BK81: 0.00 | BL81: 0.00 | BM81: 0.00 | BN81: 0.00 | BO81: 0.00 | BP81: 0.00 | BQ81: 0.00 | BR81: 0.00 | BS81: 0.00 | BT81: 0.00 | BU81: 0.00 | BV81: 0.00 | BW81: $ 2,169.91 | BX81: $ 227,906.12
A82: Aquatic | B82: Natural | C82: Hidrobioma San Juan | D82: White Water River | E82: River | F82: CHOCO | G82: BAJO BAUDO | H82: 470.19 | I82: 0.00 | J82: 0.00 | K82: 0.00 | L82: 0.00 | M82: 0.00 | N82: 246.09 | O82: 0.00 | P82: 246.09 | Q82: 0.00 | R82: 0.00 | S82: 0.00 | T82: 0.00 | U82: 185.50 | V82: 0.00 | W82: 0.00 | X82: 0.00 | Y82: 0.00 | Z82: 31.73 | AA82: 108.62 | AB82: 0.00 | AC82: 0.00 | AD82: 0.00 | AE82: 0.00 | AF82: 0.00 | AG82: 0.00 | AH82: 0.00 | AI82: 0.00 | AJ82: 0.00 | AK82: 1,901.29 | AL82: 45.35 | AM82: 0.00 | AN82: 0.00 | AO82: 0.00 | AP82: 0.00 | AQ82: 0.00 | AR82: 0.00 | AS82: 0.00 | AT82: 0.00 | AU82: 973.32 | AV82: 0.70 | AW82: 0.00 | AX82: 0.00 | AY82: 0.00 | AZ82: 0.00 | BA82: 0.00 | BB82: =AV82 -> 0.70 | BC82: 41.02 | BD82: 1,638.71 | BE82: 0.00 | BF82: 839.86 | BG82: 0.00 | BH82: 0.00 | BI82: 0.00 | BJ82: 0.00 | BK82: 0.00 | BL82: 0.00 | BM82: 0.00 | BN82: 0.00 | BO82: 0.00 | BP82: 0.00 | BQ82: 0.00 | BR82: 0.00 | BS82: 0.00 | BT82: 0.00 | BU82: 0.00 | BV82: 0.00 | BW82: $ 2,168.59 | BX82: $ 1,019,649.10
A83: Aquatic | B83: Natural | C83: Hidrobioma San Juan | D83: White Water River | E83: River | F83: CHOCO | G83: NUQUI | H83: 65.77 | I83: 0.00 | J83: 0.00 | K83: 0.00 | L83: 0.00 | M83: 0.00 | N83: 246.09 | O83: 0.00 | P83: 246.09 | Q83: 0.00 | R83: 0.00 | S83: 0.00 | T83: 0.00 | U83: 185.50 | V83: 0.00 | W83: 0.00 | X83: 0.00 | Y83: 0.00 | Z83: 31.73 | AA83: 108.62 | AB83: 0.00 | AC83: 0.00 | AD83: 0.00 | AE83: 0.00 | AF83: 0.00 | AG83: 0.00 | AH83: 0.00 | AI83: 0.00 | AJ83: 0.00 | AK83: 1,901.29 | AL83: 45.35 | AM83: 0.00 | AN83: 0.00 | AO83: 0.00 | AP83: 0.00 | AQ83: 0.00 | AR83: 0.00 | AS83: 0.00 | AT83: 0.00 | AU83: 973.32 | AV83: 0.70 | AW83: 3.35 | AX83: 0.00 | AY83: 0.00 | AZ83: 0.00 | BA83: 0.00 | BB83: =(AV83+AW83)/2 -> 2.03 | BC83: 41.02 | BD83: 1,638.71 | BE83: 0.00 | BF83: 839.86 | BG83: 0.00 | BH83: 0.00 | BI83: 0.00 | BJ83: 0.00 | BK83: 0.00 | BL83: 0.00 | BM83: 0.00 | BN83: 0.00 | BO83: 0.00 | BP83: 0.00 | BQ83: 0.00 | BR83: 0.00 | BS83: 0.00 | BT83: 0.00 | BU83: 0.00 | BV83: 0.00 | BW83: $ 2,169.91 | BX83: $ 142,715.28
A84: Aquatic | B84: Natural | C84: Hidrobioma San Juan | D84: White Water River | E84: River | F84: CHOCO | G84: NUQUI | H84: 69.79 | I84: 0.00 | J84: 0.00 | K84: 0.00 | L84: 0.00 | M84: 0.00 | N84: 246.09 | O84: 0.00 | P84: 246.09 | Q84: 0.00 | R84: 0.00 | S84: 0.00 | T84: 0.00 | U84: 185.50 | V84: 0.00 | W84: 0.00 | X84: 0.00 | Y84: 0.00 | Z84: 31.73 | AA84: 108.62 | AB84: 0.00 | AC84: 0.00 | AD84: 0.00 | AE84: 0.00 | AF84: 0.00 | AG84: 0.00 | AH84: 0.00 | AI84: 0.00 | AJ84: 0.00 | AK84: 1,901.29 | AL84: 45.35 | AM84: 0.00 | AN84: 0.00 | AO84: 0.00 | AP84: 0.00 | AQ84: 0.00 | AR84: 0.00 | AS84: 0.00 | AT84: 0.00 | AU84: 973.32 | AV84: 0.70 | AW84: 3.35 | AX84: 0.00 | AY84: 0.00 | AZ84: 0.00 | BA84: 0.00 | BB84: 2.03 | BC84: 41.02 | BD84: 1,638.71 | BE84: 0.00 | BF84: 839.86 | BG84: 0.00 | BH84: 0.00 | BI84: 0.00 | BJ84: 0.00 | BK84: 0.00 | BL84: 0.00 | BM84: 0.00 | BN84: 0.00 | BO84: 0.00 | BP84: 0.00 | BQ84: 0.00 | BR84: 0.00 | BS84: 0.00 | BT84: 0.00 | BU84: 0.00 | BV84: 0.00 | BW84: $ 2,169.91 | BX84: $ 151,438.33
A85: Aquatic | B85: Natural | C85: Hidrobioma San Juan | D85: White Water River | E85: River | F85: CHOCO | G85: NUQUI | H85: 51.65 | I85: 0.00 | J85: 0.00 | K85: 0.00 | L85: 0.00 | M85: 0.00 | N85: 246.09 | O85: 0.00 | P85: 246.09 | Q85: 0.00 | R85: 0.00 | S85: 0.00 | T85: 0.00 | U85: 185.50 | V85: 0.00 | W85: 0.00 | X85: 0.00 | Y85: 0.00 | Z85: 31.73 | AA85: 108.62 | AB85: 0.00 | AC85: 0.00 | AD85: 0.00 | AE85: 0.00 | AF85: 0.00 | AG85: 0.00 | AH85: 0.00 | AI85: 0.00 | AJ85: 0.00 | AK85: 1,901.29 | AL85: 45.35 | AM85: 0.00 | AN85: 0.00 | AO85: 0.00 | AP85: 0.00 | AQ85: 0.00 | AR85: 0.00 | AS85: 0.00 | AT85: 0.00 | AU85: 973.32 | AV85: 0.70 | AW85: 3.35 | AX85: 0.00 | AY85: 0.00 | AZ85: 0.00 | BA85: 0.00 | BB85: 2.03 | BC85: 41.02 | BD85: 1,638.71 | BE85: 0.00 | BF85: 839.86 | BG85: 0.00 | BH85: 0.00 | BI85: 0.00 | BJ85: 0.00 | BK85: 0.00 | BL85: 0.00 | BM85: 0.00 | BN85: 0.00 | BO85: 0.00 | BP85: 0.00 | BQ85: 0.00 | BR85: 0.00 | BS85: 0.00 | BT85: 0.00 | BU85: 0.00 | BV85: 0.00 | BW85: $ 2,169.91 | BX85: $ 112,076.08
A86: Aquatic | B86: Natural | C86: Hidrobioma San Juan | D86: White Water River | E86: River | F86: CHOCO | G86: NUQUI | H86: 238.23 | I86: 0.00 | J86: 0.00 | K86: 0.00 | L86: 0.00 | M86: 0.00 | N86: 246.09 | O86: 0.00 | P86: 246.09 | Q86: 0.00 | R86: 0.00 | S86: 0.00 | T86: 0.00 | U86: 185.50 | V86: 0.00 | W86: 0.00 | X86: 0.00 | Y86: 0.00 | Z86: 31.73 | AA86: 108.62 | AB86: 0.00 | AC86: 0.00 | AD86: 0.00 | AE86: 0.00 | AF86: 0.00 | AG86: 0.00 | AH86: 0.00 | AI86: 0.00 | AJ86: 0.00 | AK86: 1,901.29 | AL86: 45.35 | AM86: 0.00 | AN86: 0.00 | AO86: 0.00 | AP86: 0.00 | AQ86: 0.00 | AR86: 0.00 | AS86: 0.00 | AT86: 0.00 | AU86: 973.32 | AV86: 0.70 | AW86: 3.35 | AX86: 0.00 | AY86: 0.00 | AZ86: 0.00 | BA86: 0.00 | BB86: 2.03 | BC86: 41.02 | BD86: 1,638.71 | BE86: 0.00 | BF86: 839.86 | BG86: 0.00 | BH86: 0.00 | BI86: 0.00 | BJ86: 0.00 | BK86: 0.00 | BL86: 0.00 | BM86: 0.00 | BN86: 0.00 | BO86: 0.00 | BP86: 0.00 | BQ86: 0.00 | BR86: 0.00 | BS86: 0.00 | BT86: 0.00 | BU86: 0.00 | BV86: 0.00 | BW86: $ 2,169.91 | BX86: $ 516,938.73
A87: Aquatic | B87: Natural | C87: Hidrobioma San Juan | D87: White Water River | E87: River | F87: CHOCO | G87: NUQUI | H87: 268.21 | I87: 0.00 | J87: 0.00 | K87: 0.00 | L87: 0.00 | M87: 0.00 | N87: 246.09 | O87: 0.00 | P87: 246.09 | Q87: 0.00 | R87: 0.00 | S87: 0.00 | T87: 0.00 | U87: 185.50 | V87: 0.00 | W87: 0.00 | X87: 0.00 | Y87: 0.00 | Z87: 31.73 | AA87: 108.62 | AB87: 0.00 | AC87: 0.00 | AD87: 0.00 | AE87: 0.00 | AF87: 0.00 | AG87: 0.00 | AH87: 0.00 | AI87: 0.00 | AJ87: 0.00 | AK87: 1,901.29 | AL87: 45.35 | AM87: 0.00 | AN87: 0.00 | AO87: 0.00 | AP87: 0.00 | AQ87: 0.00 | AR87: 0.00 | AS87: 0.00 | AT87: 0.00 | AU87: 973.32 | AV87: 0.70 | AW87: 3.35 | AX87: 0.00 | AY87: 0.00 | AZ87: 0.00 | BA87: 0.00 | BB87: 2.03 | BC87: 41.02 | BD87: 1,638.71 | BE87: 0.00 | BF87: 839.86 | BG87: 0.00 | BH87: 0.00 | BI87: 0.00 | BJ87: 0.00 | BK87: 0.00 | BL87: 0.00 | BM87: 0.00 | BN87: 0.00 | BO87: 0.00 | BP87: 0.00 | BQ87: 0.00 | BR87: 0.00 | BS87: 0.00 | BT87: 0.00 | BU87: 0.00 | BV87: 0.00 | BW87: $ 2,169.91 | BX87: $ 581,992.77
A88: Aquatic | B88: Natural | C88: Hidrobioma San Juan | D88: White Water River | E88: River | F88: CHOCO | G88: NUQUI | H88: 87.55 | I88: 0.00 | J88: 0.00 | K88: 0.00 | L88: 0.00 | M88: 0.00 | N88: 246.09 | O88: 0.00 | P88: 246.09 | Q88: 0.00 | R88: 0.00 | S88: 0.00 | T88: 0.00 | U88: 185.50 | V88: 0.00 | W88: 0.00 | X88: 0.00 | Y88: 0.00 | Z88: 31.73 | AA88: 108.62 | AB88: 0.00 | AC88: 0.00 | AD88: 0.00 | AE88: 0.00 | AF88: 0.00 | AG88: 0.00 | AH88: 0.00 | AI88: 0.00 | AJ88: 0.00 | AK88: 1,901.29 | AL88: 45.35 | AM88: 0.00 | AN88: 0.00 | AO88: 0.00 | AP88: 0.00 | AQ88: 0.00 | AR88: 0.00 | AS88: 0.00 | AT88: 0.00 | AU88: 973.32 | AV88: 0.70 | AW88: 3.35 | AX88: 0.00 | AY88: 0.00 | AZ88: 0.00 | BA88: 0.00 | BB88: 2.03 | BC88: 41.02 | BD88: 1,638.71 | BE88: 0.00 | BF88: 839.86 | BG88: 0.00 | BH88: 0.00 | BI88: 0.00 | BJ88: 0.00 | BK88: 0.00 | BL88: 0.00 | BM88: 0.00 | BN88: 0.00 | BO88: 0.00 | BP88: 0.00 | BQ88: 0.00 | BR88: 0.00 | BS88: 0.00 | BT88: 0.00 | BU88: 0.00 | BV88: 0.00 | BW88: $ 2,169.91 | BX88: $ 189,976.01
A89: Aquatic | B89: Natural | C89: Hidrobioma San Juan | D89: White Water River | E89: River | F89: CHOCO | G89: NUQUI | H89: 63.21 | I89: 0.00 | J89: 0.00 | K89: 0.00 | L89: 0.00 | M89: 0.00 | N89: 246.09 | O89: 0.00 | P89: 246.09 | Q89: 0.00 | R89: 0.00 | S89: 0.00 | T89: 0.00 | U89: 185.50 | V89: 0.00 | W89: 0.00 | X89: 0.00 | Y89: 0.00 | Z89: 31.73 | AA89: 108.62 | AB89: 0.00 | AC89: 0.00 | AD89: 0.00 | AE89: 0.00 | AF89: 0.00 | AG89: 0.00 | AH89: 0.00 | AI89: 0.00 | AJ89: 0.00 | AK89: 1,901.29 | AL89: 45.35 | AM89: 0.00 | AN89: 0.00 | AO89: 0.00 | AP89: 0.00 | AQ89: 0.00 | AR89: 0.00 | AS89: 0.00 | AT89: 0.00 | AU89: 973.32 | AV89: 0.70 | AW89: 3.35 | AX89: 0.00 | AY89: 0.00 | AZ89: 0.00 | BA89: 0.00 | BB89: 2.03 | BC89: 41.02 | BD89: 1,638.71 | BE89: 0.00 | BF89: 839.86 | BG89: 0.00 | BH89: 0.00 | BI89: 0.00 | BJ89: 0.00 | BK89: 0.00 | BL89: 0.00 | BM89: 0.00 | BN89: 0.00 | BO89: 0.00 | BP89: 0.00 | BQ89: 0.00 | BR89: 0.00 | BS89: 0.00 | BT89: 0.00 | BU89: 0.00 | BV89: 0.00 | BW89: $ 2,169.91 | BX89: $ 137,160.30
A90: Aquatic | B90: Natural | C90: Hidrobioma San Juan | D90: White Water River | E90: River | F90: CHOCO | G90: ALTO BAUDO | H90: 4.19 | I90: 0.00 | J90: 0.00 | K90: 0.00 | L90: 0.00 | M90: 0.00 | N90: 246.09 | O90: 0.00 | P90: 246.09 | Q90: 0.00 | R90: 0.00 | S90: 0.00 | T90: 0.00 | U90: 185.50 | V90: 0.00 | W90: 0.00 | X90: 0.00 | Y90: 0.00 | Z90: 31.73 | AA90: 108.62 | AB90: 0.00 | AC90: 0.00 | AD90: 0.00 | AE90: 0.00 | AF90: 0.00 | AG90: 0.00 | AH90: 0.00 | AI90: 0.00 | AJ90: 0.00 | AK90: 1,901.29 | AL90: 45.35 | AM90: 0.00 | AN90: 0.00 | AO90: 0.00 | AP90: 0.00 | AQ90: 0.00 | AR90: 0.00 | AS90: 0.00 | AT90: 0.00 | AU90: 973.32 | AV90: 0.70 | AW90: 0.00 | AX90: 0.00 | AY90: 0.00 | AZ90: 0.00 | BA90: 0.00 | BB90: =AV90 -> 0.70 | BC90: 41.02 | BD90: 1,638.71 | BE90: 0.00 | BF90: 839.86 | BG90: 0.00 | BH90: 0.00 | BI90: 0.00 | BJ90: 0.00 | BK90: 0.00 | BL90: 0.00 | BM90: 0.00 | BN90: 0.00 | BO90: 0.00 | BP90: 0.00 | BQ90: 0.00 | BR90: 0.00 | BS90: 0.00 | BT90: 0.00 | BU90: 0.00 | BV90: 0.00 | BW90: $ 2,168.59 | BX90: $ 9,086.39
A91: Aquatic | B91: Natural | C91: Hidrobioma San Juan | D91: White Water River | E91: River | F91: CHOCO | G91: NUQUI | H91: 93.90 | I91: 0.00 | J91: 0.00 | K91: 0.00 | L91: 0.00 | M91: 0.00 | N91: 246.09 | O91: 0.00 | P91: 246.09 | Q91: 0.00 | R91: 0.00 | S91: 0.00 | T91: 0.00 | U91: 185.50 | V91: 0.00 | W91: 0.00 | X91: 0.00 | Y91: 0.00 | Z91: 31.73 | AA91: 108.62 | AB91: 0.00 | AC91: 0.00 | AD91: 0.00 | AE91: 0.00 | AF91: 0.00 | AG91: 0.00 | AH91: 0.00 | AI91: 0.00 | AJ91: 0.00 | AK91: 1,901.29 | AL91: 45.35 | AM91: 0.00 | AN91: 0.00 | AO91: 0.00 | AP91: 0.00 | AQ91: 0.00 | AR91: 0.00 | AS91: 0.00 | AT91: 0.00 | AU91: 973.32 | AV91: 0.70 | AW91: 3.35 | AX91: 0.00 | AY91: 0.00 | AZ91: 0.00 | BA91: 0.00 | BB91: =(AV91+AW91)/2 -> 2.03 | BC91: 41.02 | BD91: 1,638.71 | BE91: 0.00 | BF91: 839.86 | BG91: 0.00 | BH91: 0.00 | BI91: 0.00 | BJ91: 0.00 | BK91: 0.00 | BL91: 0.00 | BM91: 0.00 | BN91: 0.00 | BO91: 0.00 | BP91: 0.00 | BQ91: 0.00 | BR91: 0.00 | BS91: 0.00 | BT91: 0.00 | BU91: 0.00 | BV91: 0.00 | BW91: $ 2,169.91 | BX91: $ 203,754.97
A92: Aquatic | B92: Natural | C92: Hidrobioma San Juan | D92: White Water River | E92: River | F92: CHOCO | G92: NUQUI | H92: 31.34 | I92: 0.00 | J92: 0.00 | K92: 0.00 | L92: 0.00 | M92: 0.00 | N92: 246.09 | O92: 0.00 | P92: 246.09 | Q92: 0.00 | R92: 0.00 | S92: 0.00 | T92: 0.00 | U92: 185.50 | V92: 0.00 | W92: 0.00 | X92: 0.00 | Y92: 0.00 | Z92: 31.73 | AA92: 108.62 | AB92: 0.00 | AC92: 0.00 | AD92: 0.00 | AE92: 0.00 | AF92: 0.00 | AG92: 0.00 | AH92: 0.00 | AI92: 0.00 | AJ92: 0.00 | AK92: 1,901.29 | AL92: 45.35 | AM92: 0.00 | AN92: 0.00 | AO92: 0.00 | AP92: 0.00 | AQ92: 0.00 | AR92: 0.00 | AS92: 0.00 | AT92: 0.00 | AU92: 973.32 | AV92: 0.70 | AW92: 3.35 | AX92: 0.00 | AY92: 0.00 | AZ92: 0.00 | BA92: 0.00 | BB92: 2.03 | BC92: 41.02 | BD92: 1,638.71 | BE92: 0.00 | BF92: 839.86 | BG92: 0.00 | BH92: 0.00 | BI92: 0.00 | BJ92: 0.00 | BK92: 0.00 | BL92: 0.00 | BM92: 0.00 | BN92: 0.00 | BO92: 0.00 | BP92: 0.00 | BQ92: 0.00 | BR92: 0.00 | BS92: 0.00 | BT92: 0.00 | BU92: 0.00 | BV92: 0.00 | BW92: $ 2,169.91 | BX92: $ 68,005.12
A93: Aquatic | B93: Natural | C93: Hidrobioma San Juan | D93: White Water River | E93: River | F93: CHOCO | G93: BAHIA SOLANO | H93: 611.66 | I93: 0.00 | J93: 0.00 | K93: 0.00 | L93: 0.00 | M93: 0.00 | N93: 246.09 | O93: 0.00 | P93: 246.09 | Q93: 0.00 | R93: 0.00 | S93: 0.00 | T93: 0.00 | U93: 185.50 | V93: 0.00 | W93: 0.00 | X93: 0.00 | Y93: 0.00 | Z93: 31.73 | AA93: 108.62 | AB93: 0.00 | AC93: 0.00 | AD93: 0.00 | AE93: 0.00 | AF93: 0.00 | AG93: 0.00 | AH93: 0.00 | AI93: 0.00 | AJ93: 0.00 | AK93: 1,901.29 | AL93: 45.35 | AM93: 0.00 | AN93: 0.00 | AO93: 0.00 | AP93: 0.00 | AQ93: 0.00 | AR93: 0.00 | AS93: 0.00 | AT93: 0.00 | AU93: 973.32 | AV93: 0.70 | AW93: 0.00 | AX93: 0.00 | AY93: 0.00 | AZ93: 0.00 | BA93: 0.00 | BB93: =AV93 -> 0.70 | BC93: 41.02 | BD93: 1,638.71 | BE93: 0.00 | BF93: 839.86 | BG93: 0.00 | BH93: 0.00 | BI93: 0.00 | BJ93: 0.00 | BK93: 0.00 | BL93: 0.00 | BM93: 0.00 | BN93: 0.00 | BO93: 0.00 | BP93: 0.00 | BQ93: 0.00 | BR93: 0.00 | BS93: 0.00 | BT93: 0.00 | BU93: 0.00 | BV93: 0.00 | BW93: $ 2,168.59 | BX93: $ 1,326,439.45
A94: Aquatic | B94: Natural | C94: Hidrobioma San Juan | D94: White Water River | E94: River | F94: CHOCO | G94: BAHIA SOLANO | H94: 50.78 | I94: 0.00 | J94: 0.00 | K94: 0.00 | L94: 0.00 | M94: 0.00 | N94: 246.09 | O94: 0.00 | P94: 246.09 | Q94: 0.00 | R94: 0.00 | S94: 0.00 | T94: 0.00 | U94: 185.50 | V94: 0.00 | W94: 0.00 | X94: 0.00 | Y94: 0.00 | Z94: 31.73 | AA94: 108.62 | AB94: 0.00 | AC94: 0.00 | AD94: 0.00 | AE94: 0.00 | AF94: 0.00 | AG94: 0.00 | AH94: 0.00 | AI94: 0.00 | AJ94: 0.00 | AK94: 1,901.29 | AL94: 45.35 | AM94: 0.00 | AN94: 0.00 | AO94: 0.00 | AP94: 0.00 | AQ94: 0.00 | AR94: 0.00 | AS94: 0.00 | AT94: 0.00 | AU94: 973.32 | AV94: 0.70 | AW94: 0.00 | AX94: 0.00 | AY94: 0.00 | AZ94: 0.00 | BA94: 0.00 | BB94: 0.70 | BC94: 41.02 | BD94: 1,638.71 | BE94: 0.00 | BF94: 839.86 | BG94: 0.00 | BH94: 0.00 | BI94: 0.00 | BJ94: 0.00 | BK94: 0.00 | BL94: 0.00 | BM94: 0.00 | BN94: 0.00 | BO94: 0.00 | BP94: 0.00 | BQ94: 0.00 | BR94: 0.00 | BS94: 0.00 | BT94: 0.00 | BU94: 0.00 | BV94: 0.00 | BW94: $ 2,168.59 | BX94: $ 110,120.97
A95: Aquatic | B95: Natural | C95: Hidrobioma Truandó | D95: White Water River | E95: River | F95: CHOCO | G95: JURADO | H95: 61.14 | I95: 0.00 | J95: 0.00 | K95: 0.00 | L95: 0.00 | M95: 0.00 | N95: 246.09 | O95: 0.00 | P95: 246.09 | Q95: 0.00 | R95: 0.00 | S95: 0.00 | T95: 0.00 | U95: 185.50 | V95: 0.00 | W95: 0.00 | X95: 0.00 | Y95: 0.00 | Z95: 31.73 | AA95: 108.62 | AB95: 0.00 | AC95: 0.00 | AD95: 0.00 | AE95: 0.00 | AF95: 0.00 | AG95: 0.00 | AH95: 0.00 | AI95: 0.00 | AJ95: 0.00 | AK95: 1,901.29 | AL95: 45.35 | AM95: 0.00 | AN95: 0.00 | AO95: 0.00 | AP95: 0.00 | AQ95: 0.00 | AR95: 0.00 | AS95: 0.00 | AT95: 0.00 | AU95: 973.32 | AV95: 0.70 | AW95: 0.00 | AX95: 0.00 | AY95: 0.00 | AZ95: 0.00 | BA95: 0.00 | BB95: 0.70 | BC95: 41.02 | BD95: 1,638.71 | BE95: 0.00 | BF95: 839.86 | BG95: 0.00 | BH95: 0.00 | BI95: 0.00 | BJ95: 0.00 | BK95: 0.00 | BL95: 0.00 | BM95: 0.00 | BN95: 0.00 | BO95: 0.00 | BP95: 0.00 | BQ95: 0.00 | BR95: 0.00 | BS95: 0.00 | BT95: 0.00 | BU95: 0.00 | BV95: 0.00 | BW95: $ 2,168.59 | BX95: $ 132,587.56
A96: Aquatic | B96: Natural | C96: Hidrobioma Truandó | D96: White Water River | E96: River | F96: CHOCO | G96: BAHIA SOLANO | H96: 147.93 | I96: 0.00 | J96: 0.00 | K96: 0.00 | L96: 0.00 | M96: 0.00 | N96: 246.09 | O96: 0.00 | P96: 246.09 | Q96: 0.00 | R96: 0.00 | S96: 0.00 | T96: 0.00 | U96: 185.50 | V96: 0.00 | W96: 0.00 | X96: 0.00 | Y96: 0.00 | Z96: 31.73 | AA96: 108.62 | AB96: 0.00 | AC96: 0.00 | AD96: 0.00 | AE96: 0.00 | AF96: 0.00 | AG96: 0.00 | AH96: 0.00 | AI96: 0.00 | AJ96: 0.00 | AK96: 1,901.29 | AL96: 45.35 | AM96: 0.00 | AN96: 0.00 | AO96: 0.00 | AP96: 0.00 | AQ96: 0.00 | AR96: 0.00 | AS96: 0.00 | AT96: 0.00 | AU96: 973.32 | AV96: 0.70 | AW96: 0.00 | AX96: 0.00 | AY96: 0.00 | AZ96: 0.00 | BA96: 0.00 | BB96: 0.70 | BC96: 41.02 | BD96: 1,638.71 | BE96: 0.00 | BF96: 839.86 | BG96: 0.00 | BH96: 0.00 | BI96: 0.00 | BJ96: 0.00 | BK96: 0.00 | BL96: 0.00 | BM96: 0.00 | BN96: 0.00 | BO96: 0.00 | BP96: 0.00 | BQ96: 0.00 | BR96: 0.00 | BS96: 0.00 | BT96: 0.00 | BU96: 0.00 | BV96: 0.00 | BW96: $ 2,168.59 | BX96: $ 320,799.44
A97: Aquatic | B97: Natural | C97: Hidrobioma Truandó | D97: White Water River | E97: River | F97: CHOCO | G97: JURADO | H97: 39.52 | I97: 0.00 | J97: 0.00 | K97: 0.00 | L97: 0.00 | M97: 0.00 | N97: 246.09 | O97: 0.00 | P97: 246.09 | Q97: 0.00 | R97: 0.00 | S97: 0.00 | T97: 0.00 | U97: 185.50 | V97: 0.00 | W97: 0.00 | X97: 0.00 | Y97: 0.00 | Z97: 31.73 | AA97: 108.62 | AB97: 0.00 | AC97: 0.00 | AD97: 0.00 | AE97: 0.00 | AF97: 0.00 | AG97: 0.00 | AH97: 0.00 | AI97: 0.00 | AJ97: 0.00 | AK97: 1,901.29 | AL97: 45.35 | AM97: 0.00 | AN97: 0.00 | AO97: 0.00 | AP97: 0.00 | AQ97: 0.00 | AR97: 0.00 | AS97: 0.00 | AT97: 0.00 | AU97: 973.32 | AV97: 0.70 | AW97: 0.00 | AX97: 0.00 | AY97: 0.00 | AZ97: 0.00 | BA97: 0.00 | BB97: 0.70 | BC97: 41.02 | BD97: 1,638.71 | BE97: 0.00 | BF97: 839.86 | BG97: 0.00 | BH97: 0.00 | BI97: 0.00 | BJ97: 0.00 | BK97: 0.00 | BL97: 0.00 | BM97: 0.00 | BN97: 0.00 | BO97: 0.00 | BP97: 0.00 | BQ97: 0.00 | BR97: 0.00 | BS97: 0.00 | BT97: 0.00 | BU97: 0.00 | BV97: 0.00 | BW97: $ 2,168.59 | BX97: $ 85,702.66
A98: Aquatic | B98: Transformed | C98: Helobioma Darién –Tacarcuna | D98: Transitional transformed | E98: Mosaic of crops and natural spaces | F98: CHOCO | G98: JURADO | H98: 125.67 | I98: 0.00 | J98: 122.34 | K98: =J98 -> 122.34 | L98: 0.00 | M98: 0.00 | N98: 246.09 | O98: 0.00 | P98: 246.09 | Q98: 0.00 | R98: 0.00 | S98: 0.00 | T98: 0.00 | U98: 185.50 | V98: 0.00 | W98: 0.00 | X98: 0.00 | Y98: 0.00 | Z98: 31.73 | AA98: 108.62 | AB98: 0.00 | AC98: 0.00 | AD98: 0.00 | AE98: 0.00 | AF98: 0.00 | AG98: 0.00 | AH98: 0.00 | AI98: 0.00 | AJ98: 0.00 | AK98: 1,901.29 | AL98: 45.35 | AM98: 0.00 | AN98: 0.00 | AO98: 0.00 | AP98: 8,335.38 | AQ98: 0.00 | AR98: 0.00 | AS98: 0.00 | AT98: 0.00 | AU98: =(AK98+AL98+AP98)/3 -> 3,427.34 | AV98: 0.70 | AW98: 0.00 | AX98: 0.00 | AY98: 0.00 | AZ98: 0.00 | BA98: 0.00 | BB98: 0.70 | BC98: 41.02 | BD98: 1,638.71 | BE98: 0.00 | BF98: 839.86 | BG98: 0.00 | BH98: 0.00 | BI98: 0.00 | BJ98: 0.00 | BK98: 0.00 | BL98: 4,572.74 | BM98: 0.00 | BN98: 0.00 | BO98: 0.00 | BP98: =BL98 -> 4,572.74 | BQ98: 0.00 | BR98: 0.00 | BS98: 0.00 | BT98: 0.00 | BU98: 0.00 | BV98: 269.15 | BW98: $ 9,586.84 | BX98: $ 1,204,778.09
A99: Aquatic | B99: Transformed | C99: Helobioma Darién –Tacarcuna | D99: Transitional transformed | E99: Mosaic of crops, pastures and natural spaces | F99: CHOCO | G99: JURADO | H99: 111.28 | I99: 0.00 | J99: 122.34 | K99: 122.34 | L99: 0.00 | M99: 0.00 | N99: 246.09 | O99: 0.00 | P99: 246.09 | Q99: 0.00 | R99: 0.00 | S99: 0.00 | T99: 0.00 | U99: 185.50 | V99: 0.00 | W99: 0.00 | X99: 0.00 | Y99: 0.00 | Z99: 31.73 | AA99: 108.62 | AB99: 0.00 | AC99: 0.00 | AD99: 0.00 | AE99: 0.00 | AF99: 0.00 | AG99: 0.00 | AH99: 0.00 | AI99: 0.00 | AJ99: 0.00 | AK99: 1,901.29 | AL99: 45.35 | AM99: 0.00 | AN99: 0.00 | AO99: 0.00 | AP99: 8,335.38 | AQ99: 0.00 | AR99: 0.00 | AS99: 0.00 | AT99: 0.00 | AU99: 3,427.34 | AV99: 0.70 | AW99: 0.00 | AX99: 0.00 | AY99: 0.00 | AZ99: 0.00 | BA99: 0.00 | BB99: 0.70 | BC99: 41.02 | BD99: 1,638.71 | BE99: 0.00 | BF99: 839.86 | BG99: 0.00 | BH99: 0.00 | BI99: 0.00 | BJ99: 0.00 | BK99: 0.00 | BL99: 4,572.74 | BM99: 0.00 | BN99: 0.00 | BO99: 0.00 | BP99: 4,572.74 | BQ99: 0.00 | BR99: 0.00 | BS99: 0.00 | BT99: 0.00 | BU99: 0.00 | BV99: 269.15 | BW99: $ 9,586.84 | BX99: $ 1,066,823.48
A100: Aquatic | B100: Transformed | C100: Helobioma Darién –Tacarcuna | D100: Transitional transformed | E100: Mosaic of crops, pastures and natural spaces | F100: CHOCO | G100: JURADO | H100: 159.35 | I100: 0.00 | J100: 122.34 | K100: 122.34 | L100: 0.00 | M100: 0.00 | N100: 246.09 | O100: 0.00 | P100: 246.09 | Q100: 0.00 | R100: 0.00 | S100: 0.00 | T100: 0.00 | U100: 185.50 | V100: 0.00 | W100: 0.00 | X100: 0.00 | Y100: 0.00 | Z100: 31.73 | AA100: 108.62 | AB100: 0.00 | AC100: 0.00 | AD100: 0.00 | AE100: 0.00 | AF100: 0.00 | AG100: 0.00 | AH100: 0.00 | AI100: 0.00 | AJ100: 0.00 | AK100: 1,901.29 | AL100: 45.35 | AM100: 0.00 | AN100: 0.00 | AO100: 0.00 | AP100: 8,335.38 | AQ100: 0.00 | AR100: 0.00 | AS100: 0.00 | AT100: 0.00 | AU100: 3,427.34 | AV100: 0.70 | AW100: 0.00 | AX100: 0.00 | AY100: 0.00 | AZ100: 0.00 | BA100: 0.00 | BB100: 0.70 | BC100: 41.02 | BD100: 1,638.71 | BE100: 0.00 | BF100: 839.86 | BG100: 0.00 | BH100: 0.00 | BI100: 0.00 | BJ100: 0.00 | BK100: 0.00 | BL100: 4,572.74 | BM100: 0.00 | BN100: 0.00 | BO100: 0.00 | BP100: 4,572.74 | BQ100: 0.00 | BR100: 0.00 | BS100: 0.00 | BT100: 0.00 | BU100: 0.00 | BV100: 269.15 | BW100: $ 9,586.84 | BX100: $ 1,527,662.84
A101: Aquatic | B101: Transformed | C101: Helobioma Darién –Tacarcuna | D101: Transitional transformed | E101: Mosaic of crops, pastures and natural spaces | F101: CHOCO | G101: JURADO | H101: 90.67 | I101: 0.00 | J101: 122.34 | K101: 122.34 | L101: 0.00 | M101: 0.00 | N101: 246.09 | O101: 0.00 | P101: 246.09 | Q101: 0.00 | R101: 0.00 | S101: 0.00 | T101: 0.00 | U101: 185.50 | V101: 0.00 | W101: 0.00 | X101: 0.00 | Y101: 0.00 | Z101: 31.73 | AA101: 108.62 | AB101: 0.00 | AC101: 0.00 | AD101: 0.00 | AE101: 0.00 | AF101: 0.00 | AG101: 0.00 | AH101: 0.00 | AI101: 0.00 | AJ101: 0.00 | AK101: 1,901.29 | AL101: 45.35 | AM101: 0.00 | AN101: 0.00 | AO101: 0.00 | AP101: 8,335.38 | AQ101: 0.00 | AR101: 0.00 | AS101: 0.00 | AT101: 0.00 | AU101: 3,427.34 | AV101: 0.70 | AW101: 0.00 | AX101: 0.00 | AY101: 0.00 | AZ101: 0.00 | BA101: 0.00 | BB101: 0.70 | BC101: 41.02 | BD101: 1,638.71 | BE101: 0.00 | BF101: 839.86 | BG101: 0.00 | BH101: 0.00 | BI101: 0.00 | BJ101: 0.00 | BK101: 0.00 | BL101: 4,572.74 | BM101: 0.00 | BN101: 0.00 | BO101: 0.00 | BP101: 4,572.74 | BQ101: 0.00 | BR101: 0.00 | BS101: 0.00 | BT101: 0.00 | BU101: 0.00 | BV101: 269.15 | BW101: $ 9,586.84 | BX101: $ 869,238.72
A102: Aquatic | B102: Transformed | C102: Helobioma Darién –Tacarcuna | D102: Transitional transformed | E102: Mosaic of crops, pastures and natural spaces | F102: CHOCO | G102: JURADO | H102: 160.84 | I102: 0.00 | J102: 122.34 | K102: 122.34 | L102: 0.00 | M102: 0.00 | N102: 246.09 | O102: 0.00 | P102: 246.09 | Q102: 0.00 | R102: 0.00 | S102: 0.00 | T102: 0.00 | U102: 185.50 | V102: 0.00 | W102: 0.00 | X102: 0.00 | Y102: 0.00 | Z102: 31.73 | AA102: 108.62 | AB102: 0.00 | AC102: 0.00 | AD102: 0.00 | AE102: 0.00 | AF102: 0.00 | AG102: 0.00 | AH102: 0.00 | AI102: 0.00 | AJ102: 0.00 | AK102: 1,901.29 | AL102: 45.35 | AM102: 0.00 | AN102: 0.00 | AO102: 0.00 | AP102: 8,335.38 | AQ102: 0.00 | AR102: 0.00 | AS102: 0.00 | AT102: 0.00 | AU102: 3,427.34 | AV102: 0.70 | AW102: 0.00 | AX102: 0.00 | AY102: 0.00 | AZ102: 0.00 | BA102: 0.00 | BB102: 0.70 | BC102: 41.02 | BD102: 1,638.71 | BE102: 0.00 | BF102: 839.86 | BG102: 0.00 | BH102: 0.00 | BI102: 0.00 | BJ102: 0.00 | BK102: 0.00 | BL102: 4,572.74 | BM102: 0.00 | BN102: 0.00 | BO102: 0.00 | BP102: 4,572.74 | BQ102: 0.00 | BR102: 0.00 | BS102: 0.00 | BT102: 0.00 | BU102: 0.00 | BV102: 269.15 | BW102: $ 9,586.84 | BX102: $ 1,541,947.23
A103: Aquatic | B103: Transformed | C103: Helobioma Darién –Tacarcuna | D103: Transitional transformed | E103: Mosaic of crops, pastures and natural spaces | F103: CHOCO | G103: JURADO | H103: 79.31 | I103: 0.00 | J103: 122.34 | K103: 122.34 | L103: 0.00 | M103: 0.00 | N103: 246.09 | O103: 0.00 | P103: 246.09 | Q103: 0.00 | R103: 0.00 | S103: 0.00 | T103: 0.00 | U103: 185.50 | V103: 0.00 | W103: 0.00 | X103: 0.00 | Y103: 0.00 | Z103: 31.73 | AA103: 108.62 | AB103: 0.00 | AC103: 0.00 | AD103: 0.00 | AE103: 0.00 | AF103: 0.00 | AG103: 0.00 | AH103: 0.00 | AI103: 0.00 | AJ103: 0.00 | AK103: 1,901.29 | AL103: 45.35 | AM103: 0.00 | AN103: 0.00 | AO103: 0.00 | AP103: 8,335.38 | AQ103: 0.00 | AR103: 0.00 | AS103: 0.00 | AT103: 0.00 | AU103: 3,427.34 | AV103: 0.70 | AW103: 0.00 | AX103: 0.00 | AY103: 0.00 | AZ103: 0.00 | BA103: 0.00 | BB103: 0.70 | BC103: 41.02 | BD103: 1,638.71 | BE103: 0.00 | BF103: 839.86 | BG103: 0.00 | BH103: 0.00 | BI103: 0.00 | BJ103: 0.00 | BK103: 0.00 | BL103: 4,572.74 | BM103: 0.00 | BN103: 0.00 | BO103: 0.00 | BP103: 4,572.74 | BQ103: 0.00 | BR103: 0.00 | BS103: 0.00 | BT103: 0.00 | BU103: 0.00 | BV103: 269.15 | BW103: $ 9,586.84 | BX103: $ 760,332.22
A104: Aquatic | B104: Transformed | C104: Helobioma Darién –Tacarcuna | D104: Transitional transformed | E104: Mosaic of crops, pastures and natural spaces | F104: CHOCO | G104: JURADO | H104: 47.04 | I104: 0.00 | J104: 122.34 | K104: 122.34 | L104: 0.00 | M104: 0.00 | N104: 246.09 | O104: 0.00 | P104: 246.09 | Q104: 0.00 | R104: 0.00 | S104: 0.00 | T104: 0.00 | U104: 185.50 | V104: 0.00 | W104: 0.00 | X104: 0.00 | Y104: 0.00 | Z104: 31.73 | AA104: 108.62 | AB104: 0.00 | AC104: 0.00 | AD104: 0.00 | AE104: 0.00 | AF104: 0.00 | AG104: 0.00 | AH104: 0.00 | AI104: 0.00 | AJ104: 0.00 | AK104: 1,901.29 | AL104: 45.35 | AM104: 0.00 | AN104: 0.00 | AO104: 0.00 | AP104: 8,335.38 | AQ104: 0.00 | AR104: 0.00 | AS104: 0.00 | AT104: 0.00 | AU104: 3,427.34 | AV104: 0.70 | AW104: 0.00 | AX104: 0.00 | AY104: 0.00 | AZ104: 0.00 | BA104: 0.00 | BB104: 0.70 | BC104: 41.02 | BD104: 1,638.71 | BE104: 0.00 | BF104: 839.86 | BG104: 0.00 | BH104: 0.00 | BI104: 0.00 | BJ104: 0.00 | BK104: 0.00 | BL104: 4,572.74 | BM104: 0.00 | BN104: 0.00 | BO104: 0.00 | BP104: 4,572.74 | BQ104: 0.00 | BR104: 0.00 | BS104: 0.00 | BT104: 0.00 | BU104: 0.00 | BV104: 269.15 | BW104: $ 9,586.84 | BX104: $ 450,964.92
A105: Aquatic | B105: Transformed | C105: Helobioma Darién –Tacarcuna | D105: Transitional transformed | E105: Mosaic of crops, pastures and natural spaces | F105: CHOCO | G105: JURADO | H105: 193.41 | I105: 0.00 | J105: 122.34 | K105: 122.34 | L105: 0.00 | M105: 0.00 | N105: 246.09 | O105: 0.00 | P105: 246.09 | Q105: 0.00 | R105: 0.00 | S105: 0.00 | T105: 0.00 | U105: 185.50 | V105: 0.00 | W105: 0.00 | X105: 0.00 | Y105: 0.00 | Z105: 31.73 | AA105: 108.62 | AB105: 0.00 | AC105: 0.00 | AD105: 0.00 | AE105: 0.00 | AF105: 0.00 | AG105: 0.00 | AH105: 0.00 | AI105: 0.00 | AJ105: 0.00 | AK105: 1,901.29 | AL105: 45.35 | AM105: 0.00 | AN105: 0.00 | AO105: 0.00 | AP105: 8,335.38 | AQ105: 0.00 | AR105: 0.00 | AS105: 0.00 | AT105: 0.00 | AU105: 3,427.34 | AV105: 0.70 | AW105: 0.00 | AX105: 0.00 | AY105: 0.00 | AZ105: 0.00 | BA105: 0.00 | BB105: 0.70 | BC105: 41.02 | BD105: 1,638.71 | BE105: 0.00 | BF105: 839.86 | BG105: 0.00 | BH105: 0.00 | BI105: 0.00 | BJ105: 0.00 | BK105: 0.00 | BL105: 4,572.74 | BM105: 0.00 | BN105: 0.00 | BO105: 0.00 | BP105: 4,572.74 | BQ105: 0.00 | BR105: 0.00 | BS105: 0.00 | BT105: 0.00 | BU105: 0.00 | BV105: 269.15 | BW105: $ 9,586.84 | BX105: $ 1,854,190.59
A106: Aquatic | B106: Transformed | C106: Helobioma Darién –Tacarcuna | D106: Transitional transformed | E106: Mosaic of crops, pastures and natural spaces | F106: CHOCO | G106: JURADO | H106: 45.15 | I106: 0.00 | J106: 122.34 | K106: 122.34 | L106: 0.00 | M106: 0.00 | N106: 246.09 | O106: 0.00 | P106: 246.09 | Q106: 0.00 | R106: 0.00 | S106: 0.00 | T106: 0.00 | U106: 185.50 | V106: 0.00 | W106: 0.00 | X106: 0.00 | Y106: 0.00 | Z106: 31.73 | AA106: 108.62 | AB106: 0.00 | AC106: 0.00 | AD106: 0.00 | AE106: 0.00 | AF106: 0.00 | AG106: 0.00 | AH106: 0.00 | AI106: 0.00 | AJ106: 0.00 | AK106: 1,901.29 | AL106: 45.35 | AM106: 0.00 | AN106: 0.00 | AO106: 0.00 | AP106: 8,335.38 | AQ106: 0.00 | AR106: 0.00 | AS106: 0.00 | AT106: 0.00 | AU106: 3,427.34 | AV106: 0.70 | AW106: 0.00 | AX106: 0.00 | AY106: 0.00 | AZ106: 0.00 | BA106: 0.00 | BB106: 0.70 | BC106: 41.02 | BD106: 1,638.71 | BE106: 0.00 | BF106: 839.86 | BG106: 0.00 | BH106: 0.00 | BI106: 0.00 | BJ106: 0.00 | BK106: 0.00 | BL106: 4,572.74 | BM106: 0.00 | BN106: 0.00 | BO106: 0.00 | BP106: 4,572.74 | BQ106: 0.00 | BR106: 0.00 | BS106: 0.00 | BT106: 0.00 | BU106: 0.00 | BV106: 269.15 | BW106: $ 9,586.84 | BX106: $ 432,845.79
A107: Aquatic | B107: Transformed | C107: Helobioma Darién –Tacarcuna | D107: Transitional transformed | E107: Mosaic of crops, pastures and natural spaces | F107: CHOCO | G107: JURADO | H107: 78.02 | I107: 0.00 | J107: 122.34 | K107: 122.34 | L107: 0.00 | M107: 0.00 | N107: 246.09 | O107: 0.00 | P107: 246.09 | Q107: 0.00 | R107: 0.00 | S107: 0.00 | T107: 0.00 | U107: 185.50 | V107: 0.00 | W107: 0.00 | X107: 0.00 | Y107: 0.00 | Z107: 31.73 | AA107: 108.62 | AB107: 0.00 | AC107: 0.00 | AD107: 0.00 | AE107: 0.00 | AF107: 0.00 | AG107: 0.00 | AH107: 0.00 | AI107: 0.00 | AJ107: 0.00 | AK107: 1,901.29 | AL107: 45.35 | AM107: 0.00 | AN107: 0.00 | AO107: 0.00 | AP107: 8,335.38 | AQ107: 0.00 | AR107: 0.00 | AS107: 0.00 | AT107: 0.00 | AU107: 3,427.34 | AV107: 0.70 | AW107: 0.00 | AX107: 0.00 | AY107: 0.00 | AZ107: 0.00 | BA107: 0.00 | BB107: 0.70 | BC107: 41.02 | BD107: 1,638.71 | BE107: 0.00 | BF107: 839.86 | BG107: 0.00 | BH107: 0.00 | BI107: 0.00 | BJ107: 0.00 | BK107: 0.00 | BL107: 4,572.74 | BM107: 0.00 | BN107: 0.00 | BO107: 0.00 | BP107: 4,572.74 | BQ107: 0.00 | BR107: 0.00 | BS107: 0.00 | BT107: 0.00 | BU107: 0.00 | BV107: 269.15 | BW107: $ 9,586.84 | BX107: $ 747,965.20
A108: Aquatic | B108: Transformed | C108: Helobioma Darién –Tacarcuna | D108: Transitional transformed | E108: Mosaic of crops, pastures and natural spaces | F108: CHOCO | G108: JURADO | H108: 262.29 | I108: 0.00 | J108: 122.34 | K108: 122.34 | L108: 0.00 | M108: 0.00 | N108: 246.09 | O108: 0.00 | P108: 246.09 | Q108: 0.00 | R108: 0.00 | S108: 0.00 | T108: 0.00 | U108: 185.50 | V108: 0.00 | W108: 0.00 | X108: 0.00 | Y108: 0.00 | Z108: 31.73 | AA108: 108.62 | AB108: 0.00 | AC108: 0.00 | AD108: 0.00 | AE108: 0.00 | AF108: 0.00 | AG108: 0.00 | AH108: 0.00 | AI108: 0.00 | AJ108: 0.00 | AK108: 1,901.29 | AL108: 45.35 | AM108: 0.00 | AN108: 0.00 | AO108: 0.00 | AP108: 8,335.38 | AQ108: 0.00 | AR108: 0.00 | AS108: 0.00 | AT108: 0.00 | AU108: 3,427.34 | AV108: 0.70 | AW108: 0.00 | AX108: 0.00 | AY108: 0.00 | AZ108: 0.00 | BA108: 0.00 | BB108: 0.70 | BC108: 41.02 | BD108: 1,638.71 | BE108: 0.00 | BF108: 839.86 | BG108: 0.00 | BH108: 0.00 | BI108: 0.00 | BJ108: 0.00 | BK108: 0.00 | BL108: 4,572.74 | BM108: 0.00 | BN108: 0.00 | BO108: 0.00 | BP108: 4,572.74 | BQ108: 0.00 | BR108: 0.00 | BS108: 0.00 | BT108: 0.00 | BU108: 0.00 | BV108: 269.15 | BW108: $ 9,586.84 | BX108: $ 2,514,532.08
A109: Aquatic | B109: Transformed | C109: Helobioma Darién –Tacarcuna | D109: Transitional transformed | E109: Mosaic of crops, pastures and natural spaces | F109: CHOCO | G109: JURADO | H109: 222.62 | I109: 0.00 | J109: 122.34 | K109: 122.34 | L109: 0.00 | M109: 0.00 | N109: 246.09 | O109: 0.00 | P109: 246.09 | Q109: 0.00 | R109: 0.00 | S109: 0.00 | T109: 0.00 | U109: 185.50 | V109: 0.00 | W109: 0.00 | X109: 0.00 | Y109: 0.00 | Z109: 31.73 | AA109: 108.62 | AB109: 0.00 | AC109: 0.00 | AD109: 0.00 | AE109: 0.00 | AF109: 0.00 | AG109: 0.00 | AH109: 0.00 | AI109: 0.00 | AJ109: 0.00 | AK109: 1,901.29 | AL109: 45.35 | AM109: 0.00 | AN109: 0.00 | AO109: 0.00 | AP109: 8,335.38 | AQ109: 0.00 | AR109: 0.00 | AS109: 0.00 | AT109: 0.00 | AU109: 3,427.34 | AV109: 0.70 | AW109: 0.00 | AX109: 0.00 | AY109: 0.00 | AZ109: 0.00 | BA109: 0.00 | BB109: 0.70 | BC109: 41.02 | BD109: 1,638.71 | BE109: 0.00 | BF109: 839.86 | BG109: 0.00 | BH109: 0.00 | BI109: 0.00 | BJ109: 0.00 | BK109: 0.00 | BL109: 4,572.74 | BM109: 0.00 | BN109: 0.00 | BO109: 0.00 | BP109: 4,572.74 | BQ109: 0.00 | BR109: 0.00 | BS109: 0.00 | BT109: 0.00 | BU109: 0.00 | BV109: 269.15 | BW109: $ 9,586.84 | BX109: $ 2,134,222.16
A110: Aquatic | B110: Transformed | C110: Helobioma Darién –Tacarcuna | D110: Transitional transformed | E110: Mosaic of crops, pastures and natural spaces | F110: CHOCO | G110: JURADO | H110: 57.54 | I110: 0.00 | J110: 122.34 | K110: 122.34 | L110: 0.00 | M110: 0.00 | N110: 246.09 | O110: 0.00 | P110: 246.09 | Q110: 0.00 | R110: 0.00 | S110: 0.00 | T110: 0.00 | U110: 185.50 | V110: 0.00 | W110: 0.00 | X110: 0.00 | Y110: 0.00 | Z110: 31.73 | AA110: 108.62 | AB110: 0.00 | AC110: 0.00 | AD110: 0.00 | AE110: 0.00 | AF110: 0.00 | AG110: 0.00 | AH110: 0.00 | AI110: 0.00 | AJ110: 0.00 | AK110: 1,901.29 | AL110: 45.35 | AM110: 0.00 | AN110: 0.00 | AO110: 0.00 | AP110: 8,335.38 | AQ110: 0.00 | AR110: 0.00 | AS110: 0.00 | AT110: 0.00 | AU110: 3,427.34 | AV110: 0.70 | AW110: 0.00 | AX110: 0.00 | AY110: 0.00 | AZ110: 0.00 | BA110: 0.00 | BB110: 0.70 | BC110: 41.02 | BD110: 1,638.71 | BE110: 0.00 | BF110: 839.86 | BG110: 0.00 | BH110: 0.00 | BI110: 0.00 | BJ110: 0.00 | BK110: 0.00 | BL110: 4,572.74 | BM110: 0.00 | BN110: 0.00 | BO110: 0.00 | BP110: 4,572.74 | BQ110: 0.00 | BR110: 0.00 | BS110: 0.00 | BT110: 0.00 | BU110: 0.00 | BV110: 269.15 | BW110: $ 9,586.84 | BX110: $ 551,626.73
A111: Aquatic | B111: Transformed | C111: Helobioma Darién –Tacarcuna | D111: Transitional transformed | E111: Mosaic of pastures and natural spaces | F111: CHOCO | G111: JURADO | H111: 58.04 | I111: 0.00 | J111: 122.34 | K111: 122.34 | L111: 0.00 | M111: 0.00 | N111: 246.09 | O111: 0.00 | P111: 246.09 | Q111: 0.00 | R111: 0.00 | S111: 0.00 | T111: 0.00 | U111: 185.50 | V111: 0.00 | W111: 0.00 | X111: 0.00 | Y111: 0.00 | Z111: 31.73 | AA111: 108.62 | AB111: 0.00 | AC111: 0.00 | AD111: 0.00 | AE111: 0.00 | AF111: 0.00 | AG111: 0.00 | AH111: 0.00 | AI111: 0.00 | AJ111: 0.00 | AK111: 1,901.29 | AL111: 45.35 | AM111: 0.00 | AN111: 0.00 | AO111: 0.00 | AP111: 8,335.38 | AQ111: 0.00 | AR111: 0.00 | AS111: 0.00 | AT111: 0.00 | AU111: 3,427.34 | AV111: 0.70 | AW111: 0.00 | AX111: 0.00 | AY111: 0.00 | AZ111: 0.00 | BA111: 0.00 | BB111: 0.70 | BC111: 41.02 | BD111: 1,638.71 | BE111: 0.00 | BF111: 839.86 | BG111: 0.00 | BH111: 0.00 | BI111: 0.00 | BJ111: 0.00 | BK111: 0.00 | BL111: 4,572.74 | BM111: 0.00 | BN111: 0.00 | BO111: 0.00 | BP111: 4,572.74 | BQ111: 0.00 | BR111: 0.00 | BS111: 0.00 | BT111: 0.00 | BU111: 0.00 | BV111: 269.15 | BW111: $ 9,586.84 | BX111: $ 556,420.15
A112: Aquatic | B112: Transformed | C112: Helobioma Darién –Tacarcuna | D112: Transitional transformed | E112: Mosaic of pastures and natural spaces | F112: CHOCO | G112: JURADO | H112: 69.20 | I112: 0.00 | J112: 122.34 | K112: 122.34 | L112: 0.00 | M112: 0.00 | N112: 246.09 | O112: 0.00 | P112: 246.09 | Q112: 0.00 | R112: 0.00 | S112: 0.00 | T112: 0.00 | U112: 185.50 | V112: 0.00 | W112: 0.00 | X112: 0.00 | Y112: 0.00 | Z112: 31.73 | AA112: 108.62 | AB112: 0.00 | AC112: 0.00 | AD112: 0.00 | AE112: 0.00 | AF112: 0.00 | AG112: 0.00 | AH112: 0.00 | AI112: 0.00 | AJ112: 0.00 | AK112: 1,901.29 | AL112: 45.35 | AM112: 0.00 | AN112: 0.00 | AO112: 0.00 | AP112: 8,335.38 | AQ112: 0.00 | AR112: 0.00 | AS112: 0.00 | AT112: 0.00 | AU112: 3,427.34 | AV112: 0.70 | AW112: 0.00 | AX112: 0.00 | AY112: 0.00 | AZ112: 0.00 | BA112: 0.00 | BB112: 0.70 | BC112: 41.02 | BD112: 1,638.71 | BE112: 0.00 | BF112: 839.86 | BG112: 0.00 | BH112: 0.00 | BI112: 0.00 | BJ112: 0.00 | BK112: 0.00 | BL112: 4,572.74 | BM112: 0.00 | BN112: 0.00 | BO112: 0.00 | BP112: 4,572.74 | BQ112: 0.00 | BR112: 0.00 | BS112: 0.00 | BT112: 0.00 | BU112: 0.00 | BV112: 269.15 | BW112: $ 9,586.84 | BX112: $ 663,409.28
A113: Aquatic | B113: Transformed | C113: Helobioma Darién –Tacarcuna | D113: Transitional transformed | E113: Mosaic of pastures and natural spaces | F113: CHOCO | G113: JURADO | H113: 57.41 | I113: 0.00 | J113: 122.34 | K113: 122.34 | L113: 0.00 | M113: 0.00 | N113: 246.09 | O113: 0.00 | P113: 246.09 | Q113: 0.00 | R113: 0.00 | S113: 0.00 | T113: 0.00 | U113: 185.50 | V113: 0.00 | W113: 0.00 | X113: 0.00 | Y113: 0.00 | Z113: 31.73 | AA113: 108.62 | AB113: 0.00 | AC113: 0.00 | AD113: 0.00 | AE113: 0.00 | AF113: 0.00 | AG113: 0.00 | AH113: 0.00 | AI113: 0.00 | AJ113: 0.00 | AK113: 1,901.29 | AL113: 45.35 | AM113: 0.00 | AN113: 0.00 | AO113: 0.00 | AP113: 8,335.38 | AQ113: 0.00 | AR113: 0.00 | AS113: 0.00 | AT113: 0.00 | AU113: 3,427.34 | AV113: 0.70 | AW113: 0.00 | AX113: 0.00 | AY113: 0.00 | AZ113: 0.00 | BA113: 0.00 | BB113: 0.70 | BC113: 41.02 | BD113: 1,638.71 | BE113: 0.00 | BF113: 839.86 | BG113: 0.00 | BH113: 0.00 | BI113: 0.00 | BJ113: 0.00 | BK113: 0.00 | BL113: 4,572.74 | BM113: 0.00 | BN113: 0.00 | BO113: 0.00 | BP113: 4,572.74 | BQ113: 0.00 | BR113: 0.00 | BS113: 0.00 | BT113: 0.00 | BU113: 0.00 | BV113: 269.15 | BW113: $ 9,586.84 | BX113: $ 550,380.44
A114: Aquatic | B114: Transformed | C114: Helobioma Darién –Tacarcuna | D114: Transitional transformed | E114: Mosaic of pastures and natural spaces | F114: CHOCO | G114: JURADO | H114: 157.00 | I114: 0.00 | J114: 122.34 | K114: 122.34 | L114: 0.00 | M114: 0.00 | N114: 246.09 | O114: 0.00 | P114: 246.09 | Q114: 0.00 | R114: 0.00 | S114: 0.00 | T114: 0.00 | U114: 185.50 | V114: 0.00 | W114: 0.00 | X114: 0.00 | Y114: 0.00 | Z114: 31.73 | AA114: 108.62 | AB114: 0.00 | AC114: 0.00 | AD114: 0.00 | AE114: 0.00 | AF114: 0.00 | AG114: 0.00 | AH114: 0.00 | AI114: 0.00 | AJ114: 0.00 | AK114: 1,901.29 | AL114: 45.35 | AM114: 0.00 | AN114: 0.00 | AO114: 0.00 | AP114: 8,335.38 | AQ114: 0.00 | AR114: 0.00 | AS114: 0.00 | AT114: 0.00 | AU114: 3,427.34 | AV114: 0.70 | AW114: 0.00 | AX114: 0.00 | AY114: 0.00 | AZ114: 0.00 | BA114: 0.00 | BB114: 0.70 | BC114: 41.02 | BD114: 1,638.71 | BE114: 0.00 | BF114: 839.86 | BG114: 0.00 | BH114: 0.00 | BI114: 0.00 | BJ114: 0.00 | BK114: 0.00 | BL114: 4,572.74 | BM114: 0.00 | BN114: 0.00 | BO114: 0.00 | BP114: 4,572.74 | BQ114: 0.00 | BR114: 0.00 | BS114: 0.00 | BT114: 0.00 | BU114: 0.00 | BV114: 269.15 | BW114: $ 9,586.84 | BX114: $ 1,505,133.77
A115: Aquatic | B115: Transformed | C115: Helobioma Darién –Tacarcuna | D115: Transitional transformed | E115: Mosaic of pastures and natural spaces | F115: CHOCO | G115: JURADO | H115: 40.15 | I115: 0.00 | J115: 122.34 | K115: 122.34 | L115: 0.00 | M115: 0.00 | N115: 246.09 | O115: 0.00 | P115: 246.09 | Q115: 0.00 | R115: 0.00 | S115: 0.00 | T115: 0.00 | U115: 185.50 | V115: 0.00 | W115: 0.00 | X115: 0.00 | Y115: 0.00 | Z115: 31.73 | AA115: 108.62 | AB115: 0.00 | AC115: 0.00 | AD115: 0.00 | AE115: 0.00 | AF115: 0.00 | AG115: 0.00 | AH115: 0.00 | AI115: 0.00 | AJ115: 0.00 | AK115: 1,901.29 | AL115: 45.35 | AM115: 0.00 | AN115: 0.00 | AO115: 0.00 | AP115: 8,335.38 | AQ115: 0.00 | AR115: 0.00 | AS115: 0.00 | AT115: 0.00 | AU115: 3,427.34 | AV115: 0.70 | AW115: 0.00 | AX115: 0.00 | AY115: 0.00 | AZ115: 0.00 | BA115: 0.00 | BB115: 0.70 | BC115: 41.02 | BD115: 1,638.71 | BE115: 0.00 | BF115: 839.86 | BG115: 0.00 | BH115: 0.00 | BI115: 0.00 | BJ115: 0.00 | BK115: 0.00 | BL115: 4,572.74 | BM115: 0.00 | BN115: 0.00 | BO115: 0.00 | BP115: 4,572.74 | BQ115: 0.00 | BR115: 0.00 | BS115: 0.00 | BT115: 0.00 | BU115: 0.00 | BV115: 269.15 | BW115: $ 9,586.84 | BX115: $ 384,911.60
A116: Aquatic | B116: Transformed | C116: Helobioma Darién –Tacarcuna | D116: Transitional transformed | E116: Mosaic of pastures and natural spaces | F116: CHOCO | G116: JURADO | H116: 62.13 | I116: 0.00 | J116: 122.34 | K116: 122.34 | L116: 0.00 | M116: 0.00 | N116: 246.09 | O116: 0.00 | P116: 246.09 | Q116: 0.00 | R116: 0.00 | S116: 0.00 | T116: 0.00 | U116: 185.50 | V116: 0.00 | W116: 0.00 | X116: 0.00 | Y116: 0.00 | Z116: 31.73 | AA116: 108.62 | AB116: 0.00 | AC116: 0.00 | AD116: 0.00 | AE116: 0.00 | AF116: 0.00 | AG116: 0.00 | AH116: 0.00 | AI116: 0.00 | AJ116: 0.00 | AK116: 1,901.29 | AL116: 45.35 | AM116: 0.00 | AN116: 0.00 | AO116: 0.00 | AP116: 8,335.38 | AQ116: 0.00 | AR116: 0.00 | AS116: 0.00 | AT116: 0.00 | AU116: 3,427.34 | AV116: 0.70 | AW116: 0.00 | AX116: 0.00 | AY116: 0.00 | AZ116: 0.00 | BA116: 0.00 | BB116: 0.70 | BC116: 41.02 | BD116: 1,638.71 | BE116: 0.00 | BF116: 839.86 | BG116: 0.00 | BH116: 0.00 | BI116: 0.00 | BJ116: 0.00 | BK116: 0.00 | BL116: 4,572.74 | BM116: 0.00 | BN116: 0.00 | BO116: 0.00 | BP116: 4,572.74 | BQ116: 0.00 | BR116: 0.00 | BS116: 0.00 | BT116: 0.00 | BU116: 0.00 | BV116: 269.15 | BW116: $ 9,586.84 | BX116: $ 595,630.33
A117: Aquatic | B117: Transformed | C117: Helobioma Darién –Tacarcuna | D117: Transitional transformed | E117: Pastures | F117: CHOCO | G117: JURADO | H117: 47.47 | I117: 0.00 | J117: 122.34 | K117: 122.34 | L117: 0.00 | M117: 0.00 | N117: 246.09 | O117: 0.00 | P117: 246.09 | Q117: 0.00 | R117: 0.00 | S117: 0.00 | T117: 0.00 | U117: 185.50 | V117: 0.00 | W117: 0.00 | X117: 0.00 | Y117: 0.00 | Z117: 31.73 | AA117: 108.62 | AB117: 0.00 | AC117: 0.00 | AD117: 0.00 | AE117: 0.00 | AF117: 0.00 | AG117: 0.00 | AH117: 0.00 | AI117: 0.00 | AJ117: 0.00 | AK117: 1,901.29 | AL117: 45.35 | AM117: 0.00 | AN117: 0.00 | AO117: 0.00 | AP117: 8,335.38 | AQ117: 0.00 | AR117: 0.00 | AS117: 0.00 | AT117: 0.00 | AU117: 3,427.34 | AV117: 0.70 | AW117: 0.00 | AX117: 0.00 | AY117: 0.00 | AZ117: 0.00 | BA117: 0.00 | BB117: 0.70 | BC117: 41.02 | BD117: 1,638.71 | BE117: 0.00 | BF117: 839.86 | BG117: 0.00 | BH117: 0.00 | BI117: 0.00 | BJ117: 0.00 | BK117: 0.00 | BL117: 4,572.74 | BM117: 0.00 | BN117: 0.00 | BO117: 0.00 | BP117: 4,572.74 | BQ117: 0.00 | BR117: 0.00 | BS117: 0.00 | BT117: 0.00 | BU117: 0.00 | BV117: 269.15 | BW117: $ 9,586.84 | BX117: $ 455,087.26
A118: Aquatic | B118: Transformed | C118: Helobioma Darién –Tacarcuna | D118: Transitional transformed | E118: Secondary vegetation | F118: CHOCO | G118: JURADO | H118: 55.20 | I118: 0.00 | J118: 122.34 | K118: 122.34 | L118: 0.00 | M118: 0.00 | N118: 246.09 | O118: 0.00 | P118: 246.09 | Q118: 0.00 | R118: 0.00 | S118: 0.00 | T118: 0.00 | U118: 185.50 | V118: 0.00 | W118: 0.00 | X118: 0.00 | Y118: 0.00 | Z118: 31.73 | AA118: 108.62 | AB118: 0.00 | AC118: 0.00 | AD118: 0.00 | AE118: 0.00 | AF118: 0.00 | AG118: 0.00 | AH118: 0.00 | AI118: 0.00 | AJ118: 0.00 | AK118: 1,901.29 | AL118: 45.35 | AM118: 0.00 | AN118: 0.00 | AO118: 0.00 | AP118: 8,335.38 | AQ118: 0.00 | AR118: 0.00 | AS118: 0.00 | AT118: 0.00 | AU118: 3,427.34 | AV118: 0.70 | AW118: 0.00 | AX118: 0.00 | AY118: 0.00 | AZ118: 0.00 | BA118: 0.00 | BB118: 0.70 | BC118: 41.02 | BD118: 1,638.71 | BE118: 0.00 | BF118: 839.86 | BG118: 0.00 | BH118: 0.00 | BI118: 0.00 | BJ118: 0.00 | BK118: 0.00 | BL118: 4,572.74 | BM118: 0.00 | BN118: 0.00 | BO118: 0.00 | BP118: 4,572.74 | BQ118: 0.00 | BR118: 0.00 | BS118: 0.00 | BT118: 0.00 | BU118: 0.00 | BV118: 269.15 | BW118: $ 9,586.84 | BX118: $ 529,193.53
A119: Aquatic | B119: Transformed | C119: Helobioma Darién –Tacarcuna | D119: Transitional transformed | E119: Secondary vegetation | F119: CHOCO | G119: JURADO | H119: 38.16 | I119: 0.00 | J119: 122.34 | K119: 122.34 | L119: 0.00 | M119: 0.00 | N119: 246.09 | O119: 0.00 | P119: 246.09 | Q119: 0.00 | R119: 0.00 | S119: 0.00 | T119: 0.00 | U119: 185.50 | V119: 0.00 | W119: 0.00 | X119: 0.00 | Y119: 0.00 | Z119: 31.73 | AA119: 108.62 | AB119: 0.00 | AC119: 0.00 | AD119: 0.00 | AE119: 0.00 | AF119: 0.00 | AG119: 0.00 | AH119: 0.00 | AI119: 0.00 | AJ119: 0.00 | AK119: 1,901.29 | AL119: 45.35 | AM119: 0.00 | AN119: 0.00 | AO119: 0.00 | AP119: 8,335.38 | AQ119: 0.00 | AR119: 0.00 | AS119: 0.00 | AT119: 0.00 | AU119: 3,427.34 | AV119: 0.70 | AW119: 0.00 | AX119: 0.00 | AY119: 0.00 | AZ119: 0.00 | BA119: 0.00 | BB119: 0.70 | BC119: 41.02 | BD119: 1,638.71 | BE119: 0.00 | BF119: 839.86 | BG119: 0.00 | BH119: 0.00 | BI119: 0.00 | BJ119: 0.00 | BK119: 0.00 | BL119: 4,572.74 | BM119: 0.00 | BN119: 0.00 | BO119: 0.00 | BP119: 4,572.74 | BQ119: 0.00 | BR119: 0.00 | BS119: 0.00 | BT119: 0.00 | BU119: 0.00 | BV119: 269.15 | BW119: $ 9,586.84 | BX119: $ 365,833.79
A120: Aquatic | B120: Transformed | C120: Helobioma Darién –Tacarcuna | D120: Transitional transformed | E120: Secondary vegetation | F120: CHOCO | G120: JURADO | H120: 154.80 | I120: 0.00 | J120: 122.34 | K120: 122.34 | L120: 0.00 | M120: 0.00 | N120: 246.09 | O120: 0.00 | P120: 246.09 | Q120: 0.00 | R120: 0.00 | S120: 0.00 | T120: 0.00 | U120: 185.50 | V120: 0.00 | W120: 0.00 | X120: 0.00 | Y120: 0.00 | Z120: 31.73 | AA120: 108.62 | AB120: 0.00 | AC120: 0.00 | AD120: 0.00 | AE120: 0.00 | AF120: 0.00 | AG120: 0.00 | AH120: 0.00 | AI120: 0.00 | AJ120: 0.00 | AK120: 1,901.29 | AL120: 45.35 | AM120: 0.00 | AN120: 0.00 | AO120: 0.00 | AP120: 8,335.38 | AQ120: 0.00 | AR120: 0.00 | AS120: 0.00 | AT120: 0.00 | AU120: 3,427.34 | AV120: 0.70 | AW120: 0.00 | AX120: 0.00 | AY120: 0.00 | AZ120: 0.00 | BA120: 0.00 | BB120: 0.70 | BC120: 41.02 | BD120: 1,638.71 | BE120: 0.00 | BF120: 839.86 | BG120: 0.00 | BH120: 0.00 | BI120: 0.00 | BJ120: 0.00 | BK120: 0.00 | BL120: 4,572.74 | BM120: 0.00 | BN120: 0.00 | BO120: 0.00 | BP120: 4,572.74 | BQ120: 0.00 | BR120: 0.00 | BS120: 0.00 | BT120: 0.00 | BU120: 0.00 | BV120: 269.15 | BW120: $ 9,586.84 | BX120: $ 1,484,042.72
A121: Aquatic | B121: Transformed | C121: Helobioma Darién –Tacarcuna | D121: Transitional transformed | E121: Secondary vegetation | F121: CHOCO | G121: JURADO | H121: 31.45 | I121: 0.00 | J121: 122.34 | K121: 122.34 | L121: 0.00 | M121: 0.00 | N121: 246.09 | O121: 0.00 | P121: 246.09 | Q121: 0.00 | R121: 0.00 | S121: 0.00 | T121: 0.00 | U121: 185.50 | V121: 0.00 | W121: 0.00 | X121: 0.00 | Y121: 0.00 | Z121: 31.73 | AA121: 108.62 | AB121: 0.00 | AC121: 0.00 | AD121: 0.00 | AE121: 0.00 | AF121: 0.00 | AG121: 0.00 | AH121: 0.00 | AI121: 0.00 | AJ121: 0.00 | AK121: 1,901.29 | AL121: 45.35 | AM121: 0.00 | AN121: 0.00 | AO121: 0.00 | AP121: 8,335.38 | AQ121: 0.00 | AR121: 0.00 | AS121: 0.00 | AT121: 0.00 | AU121: 3,427.34 | AV121: 0.70 | AW121: 0.00 | AX121: 0.00 | AY121: 0.00 | AZ121: 0.00 | BA121: 0.00 | BB121: 0.70 | BC121: 41.02 | BD121: 1,638.71 | BE121: 0.00 | BF121: 839.86 | BG121: 0.00 | BH121: 0.00 | BI121: 0.00 | BJ121: 0.00 | BK121: 0.00 | BL121: 4,572.74 | BM121: 0.00 | BN121: 0.00 | BO121: 0.00 | BP121: 4,572.74 | BQ121: 0.00 | BR121: 0.00 | BS121: 0.00 | BT121: 0.00 | BU121: 0.00 | BV121: 269.15 | BW121: $ 9,586.84 | BX121: $ 301,506.10
A122: Aquatic | B122: Transformed | C122: Helobioma Darién –Tacarcuna | D122: Transitional transformed | E122: Secondary vegetation | F122: CHOCO | G122: JURADO | H122: 38.08 | I122: 0.00 | J122: 122.34 | K122: 122.34 | L122: 0.00 | M122: 0.00 | N122: 246.09 | O122: 0.00 | P122: 246.09 | Q122: 0.00 | R122: 0.00 | S122: 0.00 | T122: 0.00 | U122: 185.50 | V122: 0.00 | W122: 0.00 | X122: 0.00 | Y122: 0.00 | Z122: 31.73 | AA122: 108.62 | AB122: 0.00 | AC122: 0.00 | AD122: 0.00 | AE122: 0.00 | AF122: 0.00 | AG122: 0.00 | AH122: 0.00 | AI122: 0.00 | AJ122: 0.00 | AK122: 1,901.29 | AL122: 45.35 | AM122: 0.00 | AN122: 0.00 | AO122: 0.00 | AP122: 8,335.38 | AQ122: 0.00 | AR122: 0.00 | AS122: 0.00 | AT122: 0.00 | AU122: 3,427.34 | AV122: 0.70 | AW122: 0.00 | AX122: 0.00 | AY122: 0.00 | AZ122: 0.00 | BA122: 0.00 | BB122: 0.70 | BC122: 41.02 | BD122: 1,638.71 | BE122: 0.00 | BF122: 839.86 | BG122: 0.00 | BH122: 0.00 | BI122: 0.00 | BJ122: 0.00 | BK122: 0.00 | BL122: 4,572.74 | BM122: 0.00 | BN122: 0.00 | BO122: 0.00 | BP122: 4,572.74 | BQ122: 0.00 | BR122: 0.00 | BS122: 0.00 | BT122: 0.00 | BU122: 0.00 | BV122: 269.15 | BW122: $ 9,586.84 | BX122: $ 365,066.84
A123: Aquatic | B123: Transformed | C123: Helobioma Darién –Tacarcuna | D123: Transitional transformed | E123: Secondary vegetation | F123: CHOCO | G123: JURADO | H123: 204.39 | I123: 0.00 | J123: 122.34 | K123: 122.34 | L123: 0.00 | M123: 0.00 | N123: 246.09 | O123: 0.00 | P123: 246.09 | Q123: 0.00 | R123: 0.00 | S123: 0.00 | T123: 0.00 | U123: 185.50 | V123: 0.00 | W123: 0.00 | X123: 0.00 | Y123: 0.00 | Z123: 31.73 | AA123: 108.62 | AB123: 0.00 | AC123: 0.00 | AD123: 0.00 | AE123: 0.00 | AF123: 0.00 | AG123: 0.00 | AH123: 0.00 | AI123: 0.00 | AJ123: 0.00 | AK123: 1,901.29 | AL123: 45.35 | AM123: 0.00 | AN123: 0.00 | AO123: 0.00 | AP123: 8,335.38 | AQ123: 0.00 | AR123: 0.00 | AS123: 0.00 | AT123: 0.00 | AU123: 3,427.34 | AV123: 0.70 | AW123: 0.00 | AX123: 0.00 | AY123: 0.00 | AZ123: 0.00 | BA123: 0.00 | BB123: 0.70 | BC123: 41.02 | BD123: 1,638.71 | BE123: 0.00 | BF123: 839.86 | BG123: 0.00 | BH123: 0.00 | BI123: 0.00 | BJ123: 0.00 | BK123: 0.00 | BL123: 4,572.74 | BM123: 0.00 | BN123: 0.00 | BO123: 0.00 | BP123: 4,572.74 | BQ123: 0.00 | BR123: 0.00 | BS123: 0.00 | BT123: 0.00 | BU123: 0.00 | BV123: 269.15 | BW123: $ 9,586.84 | BX123: $ 1,959,454.08
A124: Aquatic | B124: Transformed | C124: Helobioma Darién –Tacarcuna | D124: Transitional transformed | E124: Secondary vegetation | F124: CHOCO | G124: JURADO | H124: 43.27 | I124: 0.00 | J124: 122.34 | K124: 122.34 | L124: 0.00 | M124: 0.00 | N124: 246.09 | O124: 0.00 | P124: 246.09 | Q124: 0.00 | R124: 0.00 | S124: 0.00 | T124: 0.00 | U124: 185.50 | V124: 0.00 | W124: 0.00 | X124: 0.00 | Y124: 0.00 | Z124: 31.73 | AA124: 108.62 | AB124: 0.00 | AC124: 0.00 | AD124: 0.00 | AE124: 0.00 | AF124: 0.00 | AG124: 0.00 | AH124: 0.00 | AI124: 0.00 | AJ124: 0.00 | AK124: 1,901.29 | AL124: 45.35 | AM124: 0.00 | AN124: 0.00 | AO124: 0.00 | AP124: 8,335.38 | AQ124: 0.00 | AR124: 0.00 | AS124: 0.00 | AT124: 0.00 | AU124: 3,427.34 | AV124: 0.70 | AW124: 0.00 | AX124: 0.00 | AY124: 0.00 | AZ124: 0.00 | BA124: 0.00 | BB124: 0.70 | BC124: 41.02 | BD124: 1,638.71 | BE124: 0.00 | BF124: 839.86 | BG124: 0.00 | BH124: 0.00 | BI124: 0.00 | BJ124: 0.00 | BK124: 0.00 | BL124: 4,572.74 | BM124: 0.00 | BN124: 0.00 | BO124: 0.00 | BP124: 4,572.74 | BQ124: 0.00 | BR124: 0.00 | BS124: 0.00 | BT124: 0.00 | BU124: 0.00 | BV124: 269.15 | BW124: $ 9,586.84 | BX124: $ 414,822.54
A125: Aquatic | B125: Transformed | C125: Helobioma Darién –Tacarcuna | D125: Transitional transformed | E125: Secondary vegetation | F125: CHOCO | G125: JURADO | H125: 48.71 | I125: 0.00 | J125: 122.34 | K125: 122.34 | L125: 0.00 | M125: 0.00 | N125: 246.09 | O125: 0.00 | P125: 246.09 | Q125: 0.00 | R125: 0.00 | S125: 0.00 | T125: 0.00 | U125: 185.50 | V125: 0.00 | W125: 0.00 | X125: 0.00 | Y125: 0.00 | Z125: 31.73 | AA125: 108.62 | AB125: 0.00 | AC125: 0.00 | AD125: 0.00 | AE125: 0.00 | AF125: 0.00 | AG125: 0.00 | AH125: 0.00 | AI125: 0.00 | AJ125: 0.00 | AK125: 1,901.29 | AL125: 45.35 | AM125: 0.00 | AN125: 0.00 | AO125: 0.00 | AP125: 8,335.38 | AQ125: 0.00 | AR125: 0.00 | AS125: 0.00 | AT125: 0.00 | AU125: 3,427.34 | AV125: 0.70 | AW125: 0.00 | AX125: 0.00 | AY125: 0.00 | AZ125: 0.00 | BA125: 0.00 | BB125: 0.70 | BC125: 41.02 | BD125: 1,638.71 | BE125: 0.00 | BF125: 839.86 | BG125: 0.00 | BH125: 0.00 | BI125: 0.00 | BJ125: 0.00 | BK125: 0.00 | BL125: 4,572.74 | BM125: 0.00 | BN125: 0.00 | BO125: 0.00 | BP125: 4,572.74 | BQ125: 0.00 | BR125: 0.00 | BS125: 0.00 | BT125: 0.00 | BU125: 0.00 | BV125: 269.15 | BW125: $ 9,586.84 | BX125: $ 466,974.94
A126: Aquatic | B126: Transformed | C126: Helobioma Darién –Tacarcuna | D126: Transitional transformed | E126: Secondary vegetation | F126: CHOCO | G126: JURADO | H126: 38.44 | I126: 0.00 | J126: 122.34 | K126: 122.34 | L126: 0.00 | M126: 0.00 | N126: 246.09 | O126: 0.00 | P126: 246.09 | Q126: 0.00 | R126: 0.00 | S126: 0.00 | T126: 0.00 | U126: 185.50 | V126: 0.00 | W126: 0.00 | X126: 0.00 | Y126: 0.00 | Z126: 31.73 | AA126: 108.62 | AB126: 0.00 | AC126: 0.00 | AD126: 0.00 | AE126: 0.00 | AF126: 0.00 | AG126: 0.00 | AH126: 0.00 | AI126: 0.00 | AJ126: 0.00 | AK126: 1,901.29 | AL126: 45.35 | AM126: 0.00 | AN126: 0.00 | AO126: 0.00 | AP126: 8,335.38 | AQ126: 0.00 | AR126: 0.00 | AS126: 0.00 | AT126: 0.00 | AU126: 3,427.34 | AV126: 0.70 | AW126: 0.00 | AX126: 0.00 | AY126: 0.00 | AZ126: 0.00 | BA126: 0.00 | BB126: 0.70 | BC126: 41.02 | BD126: 1,638.71 | BE126: 0.00 | BF126: 839.86 | BG126: 0.00 | BH126: 0.00 | BI126: 0.00 | BJ126: 0.00 | BK126: 0.00 | BL126: 4,572.74 | BM126: 0.00 | BN126: 0.00 | BO126: 0.00 | BP126: 4,572.74 | BQ126: 0.00 | BR126: 0.00 | BS126: 0.00 | BT126: 0.00 | BU126: 0.00 | BV126: 269.15 | BW126: $ 9,586.84 | BX126: $ 368,518.10
A127: Aquatic | B127: Transformed | C127: Helobioma Darién –Tacarcuna | D127: Transitional transformed | E127: Fragmented forest with pastures and crops | F127: CHOCO | G127: JURADO | H127: 91.67 | I127: 0.00 | J127: 122.34 | K127: 122.34 | L127: 0.00 | M127: 0.00 | N127: 246.09 | O127: 0.00 | P127: 246.09 | Q127: 0.00 | R127: 0.00 | S127: 0.00 | T127: 0.00 | U127: 185.50 | V127: 0.00 | W127: 0.00 | X127: 0.00 | Y127: 0.00 | Z127: 31.73 | AA127: 108.62 | AB127: 0.00 | AC127: 0.00 | AD127: 0.00 | AE127: 0.00 | AF127: 0.00 | AG127: 0.00 | AH127: 0.00 | AI127: 0.00 | AJ127: 0.00 | AK127: 1,901.29 | AL127: 45.35 | AM127: 0.00 | AN127: 0.00 | AO127: 0.00 | AP127: 8,335.38 | AQ127: 0.00 | AR127: 0.00 | AS127: 0.00 | AT127: 0.00 | AU127: 3,427.34 | AV127: 0.70 | AW127: 0.00 | AX127: 0.00 | AY127: 0.00 | AZ127: 0.00 | BA127: 0.00 | BB127: 0.70 | BC127: 41.02 | BD127: 1,638.71 | BE127: 0.00 | BF127: 839.86 | BG127: 0.00 | BH127: 0.00 | BI127: 0.00 | BJ127: 0.00 | BK127: 0.00 | BL127: 4,572.74 | BM127: 0.00 | BN127: 0.00 | BO127: 0.00 | BP127: 4,572.74 | BQ127: 0.00 | BR127: 0.00 | BS127: 0.00 | BT127: 0.00 | BU127: 0.00 | BV127: 269.15 | BW127: $ 9,586.84 | BX127: $ 878,825.56
A128: Aquatic | B128: Transformed | C128: Helobioma Darién –Tacarcuna | D128: Transitional transformed | E128: Fragmented forest with pastures and crops | F128: CHOCO | G128: JURADO | H128: 56.25 | I128: 0.00 | J128: 122.34 | K128: 122.34 | L128: 0.00 | M128: 0.00 | N128: 246.09 | O128: 0.00 | P128: 246.09 | Q128: 0.00 | R128: 0.00 | S128: 0.00 | T128: 0.00 | U128: 185.50 | V128: 0.00 | W128: 0.00 | X128: 0.00 | Y128: 0.00 | Z128: 31.73 | AA128: 108.62 | AB128: 0.00 | AC128: 0.00 | AD128: 0.00 | AE128: 0.00 | AF128: 0.00 | AG128: 0.00 | AH128: 0.00 | AI128: 0.00 | AJ128: 0.00 | AK128: 1,901.29 | AL128: 45.35 | AM128: 0.00 | AN128: 0.00 | AO128: 0.00 | AP128: 8,335.38 | AQ128: 0.00 | AR128: 0.00 | AS128: 0.00 | AT128: 0.00 | AU128: 3,427.34 | AV128: 0.70 | AW128: 0.00 | AX128: 0.00 | AY128: 0.00 | AZ128: 0.00 | BA128: 0.00 | BB128: 0.70 | BC128: 41.02 | BD128: 1,638.71 | BE128: 0.00 | BF128: 839.86 | BG128: 0.00 | BH128: 0.00 | BI128: 0.00 | BJ128: 0.00 | BK128: 0.00 | BL128: 4,572.74 | BM128: 0.00 | BN128: 0.00 | BO128: 0.00 | BP128: 4,572.74 | BQ128: 0.00 | BR128: 0.00 | BS128: 0.00 | BT128: 0.00 | BU128: 0.00 | BV128: 269.15 | BW128: $ 9,586.84 | BX128: $ 539,259.71
A129: Aquatic | B129: Transformed | C129: Helobioma Darién –Tacarcuna | D129: Transitional transformed | E129: Fragmented forest with pastures and crops | F129: CHOCO | G129: JURADO | H129: 53.71 | I129: 0.00 | J129: 122.34 | K129: 122.34 | L129: 0.00 | M129: 0.00 | N129: 246.09 | O129: 0.00 | P129: 246.09 | Q129: 0.00 | R129: 0.00 | S129: 0.00 | T129: 0.00 | U129: 185.50 | V129: 0.00 | W129: 0.00 | X129: 0.00 | Y129: 0.00 | Z129: 31.73 | AA129: 108.62 | AB129: 0.00 | AC129: 0.00 | AD129: 0.00 | AE129: 0.00 | AF129: 0.00 | AG129: 0.00 | AH129: 0.00 | AI129: 0.00 | AJ129: 0.00 | AK129: 1,901.29 | AL129: 45.35 | AM129: 0.00 | AN129: 0.00 | AO129: 0.00 | AP129: 8,335.38 | AQ129: 0.00 | AR129: 0.00 | AS129: 0.00 | AT129: 0.00 | AU129: 3,427.34 | AV129: 0.70 | AW129: 0.00 | AX129: 0.00 | AY129: 0.00 | AZ129: 0.00 | BA129: 0.00 | BB129: 0.70 | BC129: 41.02 | BD129: 1,638.71 | BE129: 0.00 | BF129: 839.86 | BG129: 0.00 | BH129: 0.00 | BI129: 0.00 | BJ129: 0.00 | BK129: 0.00 | BL129: 4,572.74 | BM129: 0.00 | BN129: 0.00 | BO129: 0.00 | BP129: 4,572.74 | BQ129: 0.00 | BR129: 0.00 | BS129: 0.00 | BT129: 0.00 | BU129: 0.00 | BV129: 269.15 | BW129: $ 9,586.84 | BX129: $ 514,909.14
A130: Aquatic | B130: Transformed | C130: Helobioma Darién –Tacarcuna | D130: Transitional transformed | E130: Fragmented forest with secondary vegetation | F130: CHOCO | G130: JURADO | H130: 86.80 | I130: 0.00 | J130: 122.34 | K130: 122.34 | L130: 0.00 | M130: 0.00 | N130: 246.09 | O130: 0.00 | P130: 246.09 | Q130: 0.00 | R130: 0.00 | S130: 0.00 | T130: 0.00 | U130: 185.50 | V130: 0.00 | W130: 0.00 | X130: 0.00 | Y130: 0.00 | Z130: 31.73 | AA130: 108.62 | AB130: 0.00 | AC130: 0.00 | AD130: 0.00 | AE130: 0.00 | AF130: 0.00 | AG130: 0.00 | AH130: 0.00 | AI130: 0.00 | AJ130: 0.00 | AK130: 1,901.29 | AL130: 45.35 | AM130: 0.00 | AN130: 0.00 | AO130: 0.00 | AP130: 8,335.38 | AQ130: 0.00 | AR130: 0.00 | AS130: 0.00 | AT130: 0.00 | AU130: 3,427.34 | AV130: 0.70 | AW130: 0.00 | AX130: 0.00 | AY130: 0.00 | AZ130: 0.00 | BA130: 0.00 | BB130: 0.70 | BC130: 41.02 | BD130: 1,638.71 | BE130: 0.00 | BF130: 839.86 | BG130: 0.00 | BH130: 0.00 | BI130: 0.00 | BJ130: 0.00 | BK130: 0.00 | BL130: 4,572.74 | BM130: 0.00 | BN130: 0.00 | BO130: 0.00 | BP130: 4,572.74 | BQ130: 0.00 | BR130: 0.00 | BS130: 0.00 | BT130: 0.00 | BU130: 0.00 | BV130: 269.15 | BW130: $ 9,586.84 | BX130: $ 832,137.65
A131: Aquatic | B131: Transformed | C131: Helobioma Darién –Tacarcuna | D131: Transitional transformed | E131: Fragmented forest with secondary vegetation | F131: CHOCO | G131: JURADO | H131: 35.22 | I131: 0.00 | J131: 122.34 | K131: 122.34 | L131: 0.00 | M131: 0.00 | N131: 246.09 | O131: 0.00 | P131: =N131 -> 246.09 | Q131: 0.00 | R131: 0.00 | S131: 0.00 | T131: 0.00 | U131: 185.50 | V131: 0.00 | W131: 0.00 | X131: 0.00 | Y131: 0.00 | Z131: 31.73 | AA131: =(U131+Z131)/2 -> 108.62 | AB131: 0.00 | AC131: 0.00 | AD131: 0.00 | AE131: 0.00 | AF131: 0.00 | AG131: 0.00 | AH131: 0.00 | AI131: 0.00 | AJ131: 0.00 | AK131: 1,901.29 | AL131: 45.35 | AM131: 0.00 | AN131: 0.00 | AO131: 0.00 | AP131: 8,335.38 | AQ131: 0.00 | AR131: 0.00 | AS131: 0.00 | AT131: 0.00 | AU131: 3,427.34 | AV131: 0.70 | AW131: 0.00 | AX131: 0.00 | AY131: 0.00 | AZ131: 0.00 | BA131: 0.00 | BB131: 0.70 | BC131: 41.02 | BD131: 1,638.71 | BE131: 0.00 | BF131: =(BC131+BD131)/2 -> 839.86 | BG131: 0.00 | BH131: 0.00 | BI131: 0.00 | BJ131: 0.00 | BK131: 0.00 | BL131: 4,572.74 | BM131: 0.00 | BN131: 0.00 | BO131: 0.00 | BP131: 4,572.74 | BQ131: 0.00 | BR131: 0.00 | BS131: 0.00 | BT131: 0.00 | BU131: 0.00 | BV131: 269.15 | BW131: =K131+L131+P131+S131+AA131+AE131+AF131+AI131+AU131+BB131+BF131+BP131+BT131+BU131+BV131 -> $ 9,586.84 | BX131: =BW131*H131 -> $ 337,648.48
A132: Aquatic | B132: Transformed | C132: Helobioma Darién –Tacarcuna | D132: Transitional transformed | E132: Fragmented forest with secondary vegetation | F132: CHOCO | G132: JURADO | H132: 239.39 | I132: 0.00 | J132: 122.34 | K132: 122.34 | L132: 0.00 | M132: 0.00 | N132: 246.09 | O132: 0.00 | P132: 246.09 | Q132: 0.00 | R132: 0.00 | S132: 0.00 | T132: 0.00 | U132: 185.50 | V132: 0.00 | W132: 0.00 | X132: 0.00 | Y132: 0.00 | Z132: 31.73 | AA132: 108.62 | AB132: 0.00 | AC132: 0.00 | AD132: 0.00 | AE132: 0.00 | AF132: 0.00 | AG132: 0.00 | AH132: 0.00 | AI132: 0.00 | AJ132: 0.00 | AK132: 1,901.29 | AL132: 45.35 | AM132: 0.00 | AN132: 0.00 | AO132: 0.00 | AP132: 8,335.38 | AQ132: 0.00 | AR132: 0.00 | AS132: 0.00 | AT132: 0.00 | AU132: 3,427.34 | AV132: 0.70 | AW132: 0.00 | AX132: 0.00 | AY132: 0.00 | AZ132: 0.00 | BA132: 0.00 | BB132: 0.70 | BC132: 41.02 | BD132: 1,638.71 | BE132: 0.00 | BF132: 839.86 | BG132: 0.00 | BH132: 0.00 | BI132: 0.00 | BJ132: 0.00 | BK132: 0.00 | BL132: 4,572.74 | BM132: 0.00 | BN132: 0.00 | BO132: 0.00 | BP132: 4,572.74 | BQ132: 0.00 | BR132: 0.00 | BS132: 0.00 | BT132: 0.00 | BU132: 0.00 | BV132: 269.15 | BW132: $ 9,586.84 | BX132: $ 2,294,993.46
A133: Aquatic | B133: Transformed | C133: Helobioma Darién –Tacarcuna | D133: Transitional transformed | E133: Fragmented forest with secondary vegetation | F133: CHOCO | G133: JURADO | H133: 58.53 | I133: 0.00 | J133: 122.34 | K133: 122.34 | L133: 0.00 | M133: 0.00 | N133: 246.09 | O133: 0.00 | P133: 246.09 | Q133: 0.00 | R133: 0.00 | S133: 0.00 | T133: 0.00 | U133: 185.50 | V133: 0.00 | W133: 0.00 | X133: 0.00 | Y133: 0.00 | Z133: 31.73 | AA133: 108.62 | AB133: 0.00 | AC133: 0.00 | AD133: 0.00 | AE133: 0.00 | AF133: 0.00 | AG133: 0.00 | AH133: 0.00 | AI133: 0.00 | AJ133: 0.00 | AK133: 1,901.29 | AL133: 45.35 | AM133: 0.00 | AN133: 0.00 | AO133: 0.00 | AP133: 8,335.38 | AQ133: 0.00 | AR133: 0.00 | AS133: 0.00 | AT133: 0.00 | AU133: 3,427.34 | AV133: 0.70 | AW133: 0.00 | AX133: 0.00 | AY133: 0.00 | AZ133: 0.00 | BA133: 0.00 | BB133: 0.70 | BC133: 41.02 | BD133: 1,638.71 | BE133: 0.00 | BF133: 839.86 | BG133: 0.00 | BH133: 0.00 | BI133: 0.00 | BJ133: 0.00 | BK133: 0.00 | BL133: 4,572.74 | BM133: 0.00 | BN133: 0.00 | BO133: 0.00 | BP133: 4,572.74 | BQ133: 0.00 | BR133: 0.00 | BS133: 0.00 | BT133: 0.00 | BU133: 0.00 | BV133: 269.15 | BW133: $ 9,586.84 | BX133: $ 561,117.70
A134: Aquatic | B134: Transformed | C134: Helobioma Darién –Tacarcuna | D134: Transitional transformed | E134: Mosaic of crops and natural spaces | F134: CHOCO | G134: JURADO | H134: 79.70 | I134: 0.00 | J134: 122.34 | K134: 122.34 | L134: 0.00 | M134: 0.00 | N134: 246.09 | O134: 0.00 | P134: 246.09 | Q134: 0.00 | R134: 0.00 | S134: 0.00 | T134: 0.00 | U134: 185.50 | V134: 0.00 | W134: 0.00 | X134: 0.00 | Y134: 0.00 | Z134: 31.73 | AA134: 108.62 | AB134: 0.00 | AC134: 0.00 | AD134: 0.00 | AE134: 0.00 | AF134: 0.00 | AG134: 0.00 | AH134: 0.00 | AI134: 0.00 | AJ134: 0.00 | AK134: 1,901.29 | AL134: 45.35 | AM134: 0.00 | AN134: 0.00 | AO134: 0.00 | AP134: 8,335.38 | AQ134: 0.00 | AR134: 0.00 | AS134: 0.00 | AT134: 0.00 | AU134: 3,427.34 | AV134: 0.70 | AW134: 0.00 | AX134: 0.00 | AY134: 0.00 | AZ134: 0.00 | BA134: 0.00 | BB134: 0.70 | BC134: 41.02 | BD134: 1,638.71 | BE134: 0.00 | BF134: 839.86 | BG134: 0.00 | BH134: 0.00 | BI134: 0.00 | BJ134: 0.00 | BK134: 0.00 | BL134: 4,572.74 | BM134: 0.00 | BN134: 0.00 | BO134: 0.00 | BP134: 4,572.74 | BQ134: 0.00 | BR134: 0.00 | BS134: 0.00 | BT134: 0.00 | BU134: 0.00 | BV134: 269.15 | BW134: $ 9,586.84 | BX134: $ 764,071.09
A135: Aquatic | B135: Transformed | C135: Helobioma Darién –Tacarcuna | D135: Transitional transformed | E135: Mosaic of crops, pastures and natural spaces | F135: CHOCO | G135: JURADO | H135: 94.74 | I135: 0.00 | J135: 122.34 | K135: 122.34 | L135: 0.00 | M135: 0.00 | N135: 246.09 | O135: 0.00 | P135: 246.09 | Q135: 0.00 | R135: 0.00 | S135: 0.00 | T135: 0.00 | U135: 185.50 | V135: 0.00 | W135: 0.00 | X135: 0.00 | Y135: 0.00 | Z135: 31.73 | AA135: 108.62 | AB135: 0.00 | AC135: 0.00 | AD135: 0.00 | AE135: 0.00 | AF135: 0.00 | AG135: 0.00 | AH135: 0.00 | AI135: 0.00 | AJ135: 0.00 | AK135: 1,901.29 | AL135: 45.35 | AM135: 0.00 | AN135: 0.00 | AO135: 0.00 | AP135: 8,335.38 | AQ135: 0.00 | AR135: 0.00 | AS135: 0.00 | AT135: 0.00 | AU135: 3,427.34 | AV135: 0.70 | AW135: 0.00 | AX135: 0.00 | AY135: 0.00 | AZ135: 0.00 | BA135: 0.00 | BB135: 0.70 | BC135: 41.02 | BD135: 1,638.71 | BE135: 0.00 | BF135: 839.86 | BG135: 0.00 | BH135: 0.00 | BI135: 0.00 | BJ135: 0.00 | BK135: 0.00 | BL135: 4,572.74 | BM135: 0.00 | BN135: 0.00 | BO135: 0.00 | BP135: 4,572.74 | BQ135: 0.00 | BR135: 0.00 | BS135: 0.00 | BT135: 0.00 | BU135: 0.00 | BV135: 269.15 | BW135: $ 9,586.84 | BX135: $ 908,257.16
A136: Aquatic | B136: Transformed | C136: Helobioma Darién –Tacarcuna | D136: Transitional transformed | E136: Mosaic of crops, pastures and natural spaces | F136: CHOCO | G136: JURADO | H136: 58.89 | I136: 0.00 | J136: 122.34 | K136: 122.34 | L136: 0.00 | M136: 0.00 | N136: 246.09 | O136: 0.00 | P136: 246.09 | Q136: 0.00 | R136: 0.00 | S136: 0.00 | T136: 0.00 | U136: 185.50 | V136: 0.00 | W136: 0.00 | X136: 0.00 | Y136: 0.00 | Z136: 31.73 | AA136: 108.62 | AB136: 0.00 | AC136: 0.00 | AD136: 0.00 | AE136: 0.00 | AF136: 0.00 | AG136: 0.00 | AH136: 0.00 | AI136: 0.00 | AJ136: 0.00 | AK136: 1,901.29 | AL136: 45.35 | AM136: 0.00 | AN136: 0.00 | AO136: 0.00 | AP136: 8,335.38 | AQ136: 0.00 | AR136: 0.00 | AS136: 0.00 | AT136: 0.00 | AU136: 3,427.34 | AV136: 0.70 | AW136: 0.00 | AX136: 0.00 | AY136: 0.00 | AZ136: 0.00 | BA136: 0.00 | BB136: 0.70 | BC136: 41.02 | BD136: 1,638.71 | BE136: 0.00 | BF136: 839.86 | BG136: 0.00 | BH136: 0.00 | BI136: 0.00 | BJ136: 0.00 | BK136: 0.00 | BL136: 4,572.74 | BM136: 0.00 | BN136: 0.00 | BO136: 0.00 | BP136: 4,572.74 | BQ136: 0.00 | BR136: 0.00 | BS136: 0.00 | BT136: 0.00 | BU136: 0.00 | BV136: 269.15 | BW136: $ 9,586.84 | BX136: $ 564,568.97
A137: Aquatic | B137: Transformed | C137: Helobioma Darién –Tacarcuna | D137: Transitional transformed | E137: Mosaic of crops, pastures and natural spaces | F137: CHOCO | G137: JURADO | H137: 79.96 | I137: 0.00 | J137: 122.34 | K137: 122.34 | L137: 0.00 | M137: 0.00 | N137: 246.09 | O137: 0.00 | P137: 246.09 | Q137: 0.00 | R137: 0.00 | S137: 0.00 | T137: 0.00 | U137: 185.50 | V137: 0.00 | W137: 0.00 | X137: 0.00 | Y137: 0.00 | Z137: 31.73 | AA137: 108.62 | AB137: 0.00 | AC137: 0.00 | AD137: 0.00 | AE137: 0.00 | AF137: 0.00 | AG137: 0.00 | AH137: 0.00 | AI137: 0.00 | AJ137: 0.00 | AK137: 1,901.29 | AL137: 45.35 | AM137: 0.00 | AN137: 0.00 | AO137: 0.00 | AP137: 8,335.38 | AQ137: 0.00 | AR137: 0.00 | AS137: 0.00 | AT137: 0.00 | AU137: 3,427.34 | AV137: 0.70 | AW137: 0.00 | AX137: 0.00 | AY137: 0.00 | AZ137: 0.00 | BA137: 0.00 | BB137: 0.70 | BC137: 41.02 | BD137: 1,638.71 | BE137: 0.00 | BF137: 839.86 | BG137: 0.00 | BH137: 0.00 | BI137: 0.00 | BJ137: 0.00 | BK137: 0.00 | BL137: 4,572.74 | BM137: 0.00 | BN137: 0.00 | BO137: 0.00 | BP137: 4,572.74 | BQ137: 0.00 | BR137: 0.00 | BS137: 0.00 | BT137: 0.00 | BU137: 0.00 | BV137: 269.15 | BW137: $ 9,586.84 | BX137: $ 766,563.67
A138: Aquatic | B138: Transformed | C138: Helobioma Darién –Tacarcuna | D138: Transitional transformed | E138: Mosaic of crops, pastures and natural spaces | F138: CHOCO | G138: JURADO | H138: 150.11 | I138: 0.00 | J138: 122.34 | K138: 122.34 | L138: 0.00 | M138: 0.00 | N138: 246.09 | O138: 0.00 | P138: 246.09 | Q138: 0.00 | R138: 0.00 | S138: 0.00 | T138: 0.00 | U138: 185.50 | V138: 0.00 | W138: 0.00 | X138: 0.00 | Y138: 0.00 | Z138: 31.73 | AA138: 108.62 | AB138: 0.00 | AC138: 0.00 | AD138: 0.00 | AE138: 0.00 | AF138: 0.00 | AG138: 0.00 | AH138: 0.00 | AI138: 0.00 | AJ138: 0.00 | AK138: 1,901.29 | AL138: 45.35 | AM138: 0.00 | AN138: 0.00 | AO138: 0.00 | AP138: 8,335.38 | AQ138: 0.00 | AR138: 0.00 | AS138: 0.00 | AT138: 0.00 | AU138: 3,427.34 | AV138: 0.70 | AW138: 0.00 | AX138: 0.00 | AY138: 0.00 | AZ138: 0.00 | BA138: 0.00 | BB138: 0.70 | BC138: 41.02 | BD138: 1,638.71 | BE138: 0.00 | BF138: 839.86 | BG138: 0.00 | BH138: 0.00 | BI138: 0.00 | BJ138: 0.00 | BK138: 0.00 | BL138: 4,572.74 | BM138: 0.00 | BN138: 0.00 | BO138: 0.00 | BP138: 4,572.74 | BQ138: 0.00 | BR138: 0.00 | BS138: 0.00 | BT138: 0.00 | BU138: 0.00 | BV138: 269.15 | BW138: $ 9,586.84 | BX138: $ 1,439,080.45
A139: Aquatic | B139: Transformed | C139: Helobioma Darién –Tacarcuna | D139: Transitional transformed | E139: Mosaic of crops, pastures and natural spaces | F139: CHOCO | G139: JURADO | H139: 97.80 | I139: 0.00 | J139: 122.34 | K139: 122.34 | L139: 0.00 | M139: 0.00 | N139: 246.09 | O139: 0.00 | P139: 246.09 | Q139: 0.00 | R139: 0.00 | S139: 0.00 | T139: 0.00 | U139: 185.50 | V139: 0.00 | W139: 0.00 | X139: 0.00 | Y139: 0.00 | Z139: 31.73 | AA139: 108.62 | AB139: 0.00 | AC139: 0.00 | AD139: 0.00 | AE139: 0.00 | AF139: 0.00 | AG139: 0.00 | AH139: 0.00 | AI139: 0.00 | AJ139: 0.00 | AK139: 1,901.29 | AL139: 45.35 | AM139: 0.00 | AN139: 0.00 | AO139: 0.00 | AP139: 8,335.38 | AQ139: 0.00 | AR139: 0.00 | AS139: 0.00 | AT139: 0.00 | AU139: 3,427.34 | AV139: 0.70 | AW139: 0.00 | AX139: 0.00 | AY139: 0.00 | AZ139: 0.00 | BA139: 0.00 | BB139: 0.70 | BC139: 41.02 | BD139: 1,638.71 | BE139: 0.00 | BF139: 839.86 | BG139: 0.00 | BH139: 0.00 | BI139: 0.00 | BJ139: 0.00 | BK139: 0.00 | BL139: 4,572.74 | BM139: 0.00 | BN139: 0.00 | BO139: 0.00 | BP139: 4,572.74 | BQ139: 0.00 | BR139: 0.00 | BS139: 0.00 | BT139: 0.00 | BU139: 0.00 | BV139: 269.15 | BW139: $ 9,586.84 | BX139: $ 937,592.88
A140: Aquatic | B140: Transformed | C140: Helobioma Darién –Tacarcuna | D140: Transitional transformed | E140: Mosaic of crops, pastures and natural spaces | F140: CHOCO | G140: JURADO | H140: 25.82 | I140: 0.00 | J140: 122.34 | K140: 122.34 | L140: 0.00 | M140: 0.00 | N140: 246.09 | O140: 0.00 | P140: 246.09 | Q140: 0.00 | R140: 0.00 | S140: 0.00 | T140: 0.00 | U140: 185.50 | V140: 0.00 | W140: 0.00 | X140: 0.00 | Y140: 0.00 | Z140: 31.73 | AA140: 108.62 | AB140: 0.00 | AC140: 0.00 | AD140: 0.00 | AE140: 0.00 | AF140: 0.00 | AG140: 0.00 | AH140: 0.00 | AI140: 0.00 | AJ140: 0.00 | AK140: 1,901.29 | AL140: 45.35 | AM140: 0.00 | AN140: 0.00 | AO140: 0.00 | AP140: 8,335.38 | AQ140: 0.00 | AR140: 0.00 | AS140: 0.00 | AT140: 0.00 | AU140: 3,427.34 | AV140: 0.70 | AW140: 0.00 | AX140: 0.00 | AY140: 0.00 | AZ140: 0.00 | BA140: 0.00 | BB140: 0.70 | BC140: 41.02 | BD140: 1,638.71 | BE140: 0.00 | BF140: 839.86 | BG140: 0.00 | BH140: 0.00 | BI140: 0.00 | BJ140: 0.00 | BK140: 0.00 | BL140: 4,572.74 | BM140: 0.00 | BN140: 0.00 | BO140: 0.00 | BP140: 4,572.74 | BQ140: 0.00 | BR140: 0.00 | BS140: 0.00 | BT140: 0.00 | BU140: 0.00 | BV140: 269.15 | BW140: $ 9,586.84 | BX140: $ 247,532.19
A141: Aquatic | B141: Transformed | C141: Helobioma Darién –Tacarcuna | D141: Transitional transformed | E141: Mosaic of crops, pastures and natural spaces | F141: CHOCO | G141: JURADO | H141: 44.74 | I141: 0.00 | J141: 122.34 | K141: 122.34 | L141: 0.00 | M141: 0.00 | N141: 246.09 | O141: 0.00 | P141: 246.09 | Q141: 0.00 | R141: 0.00 | S141: 0.00 | T141: 0.00 | U141: 185.50 | V141: 0.00 | W141: 0.00 | X141: 0.00 | Y141: 0.00 | Z141: 31.73 | AA141: 108.62 | AB141: 0.00 | AC141: 0.00 | AD141: 0.00 | AE141: 0.00 | AF141: 0.00 | AG141: 0.00 | AH141: 0.00 | AI141: 0.00 | AJ141: 0.00 | AK141: 1,901.29 | AL141: 45.35 | AM141: 0.00 | AN141: 0.00 | AO141: 0.00 | AP141: 8,335.38 | AQ141: 0.00 | AR141: 0.00 | AS141: 0.00 | AT141: 0.00 | AU141: 3,427.34 | AV141: 0.70 | AW141: 0.00 | AX141: 0.00 | AY141: 0.00 | AZ141: 0.00 | BA141: 0.00 | BB141: 0.70 | BC141: 41.02 | BD141: 1,638.71 | BE141: 0.00 | BF141: 839.86 | BG141: 0.00 | BH141: 0.00 | BI141: 0.00 | BJ141: 0.00 | BK141: 0.00 | BL141: 4,572.74 | BM141: 0.00 | BN141: 0.00 | BO141: 0.00 | BP141: 4,572.74 | BQ141: 0.00 | BR141: 0.00 | BS141: 0.00 | BT141: 0.00 | BU141: 0.00 | BV141: 269.15 | BW141: $ 9,586.84 | BX141: $ 428,915.19
A142: Aquatic | B142: Transformed | C142: Helobioma Darién –Tacarcuna | D142: Transitional transformed | E142: Mosaic of crops, pastures and natural spaces | F142: CHOCO | G142: JURADO | H142: 79.00 | I142: 0.00 | J142: 122.34 | K142: 122.34 | L142: 0.00 | M142: 0.00 | N142: 246.09 | O142: 0.00 | P142: 246.09 | Q142: 0.00 | R142: 0.00 | S142: 0.00 | T142: 0.00 | U142: 185.50 | V142: 0.00 | W142: 0.00 | X142: 0.00 | Y142: 0.00 | Z142: 31.73 | AA142: 108.62 | AB142: 0.00 | AC142: 0.00 | AD142: 0.00 | AE142: 0.00 | AF142: 0.00 | AG142: 0.00 | AH142: 0.00 | AI142: 0.00 | AJ142: 0.00 | AK142: 1,901.29 | AL142: 45.35 | AM142: 0.00 | AN142: 0.00 | AO142: 0.00 | AP142: 8,335.38 | AQ142: 0.00 | AR142: 0.00 | AS142: 0.00 | AT142: 0.00 | AU142: 3,427.34 | AV142: 0.70 | AW142: 0.00 | AX142: 0.00 | AY142: 0.00 | AZ142: 0.00 | BA142: 0.00 | BB142: 0.70 | BC142: 41.02 | BD142: 1,638.71 | BE142: 0.00 | BF142: 839.86 | BG142: 0.00 | BH142: 0.00 | BI142: 0.00 | BJ142: 0.00 | BK142: 0.00 | BL142: 4,572.74 | BM142: 0.00 | BN142: 0.00 | BO142: 0.00 | BP142: 4,572.74 | BQ142: 0.00 | BR142: 0.00 | BS142: 0.00 | BT142: 0.00 | BU142: 0.00 | BV142: 269.15 | BW142: $ 9,586.84 | BX142: $ 757,360.30
A143: Aquatic | B143: Transformed | C143: Helobioma Darién –Tacarcuna | D143: Transitional transformed | E143: Mosaic of crops, pastures and natural spaces | F143: CHOCO | G143: JURADO | H143: 75.77 | I143: 0.00 | J143: 122.34 | K143: 122.34 | L143: 0.00 | M143: 0.00 | N143: 246.09 | O143: 0.00 | P143: 246.09 | Q143: 0.00 | R143: 0.00 | S143: 0.00 | T143: 0.00 | U143: 185.50 | V143: 0.00 | W143: 0.00 | X143: 0.00 | Y143: 0.00 | Z143: 31.73 | AA143: 108.62 | AB143: 0.00 | AC143: 0.00 | AD143: 0.00 | AE143: 0.00 | AF143: 0.00 | AG143: 0.00 | AH143: 0.00 | AI143: 0.00 | AJ143: 0.00 | AK143: 1,901.29 | AL143: 45.35 | AM143: 0.00 | AN143: 0.00 | AO143: 0.00 | AP143: 8,335.38 | AQ143: 0.00 | AR143: 0.00 | AS143: 0.00 | AT143: 0.00 | AU143: 3,427.34 | AV143: 0.70 | AW143: 0.00 | AX143: 0.00 | AY143: 0.00 | AZ143: 0.00 | BA143: 0.00 | BB143: 0.70 | BC143: 41.02 | BD143: 1,638.71 | BE143: 0.00 | BF143: 839.86 | BG143: 0.00 | BH143: 0.00 | BI143: 0.00 | BJ143: 0.00 | BK143: 0.00 | BL143: 4,572.74 | BM143: 0.00 | BN143: 0.00 | BO143: 0.00 | BP143: 4,572.74 | BQ143: 0.00 | BR143: 0.00 | BS143: 0.00 | BT143: 0.00 | BU143: 0.00 | BV143: 269.15 | BW143: $ 9,586.84 | BX143: $ 726,394.81
A144: Aquatic | B144: Transformed | C144: Helobioma Darién –Tacarcuna | D144: Transitional transformed | E144: Mosaic of crops, pastures and natural spaces | F144: CHOCO | G144: JURADO | H144: 85.84 | I144: 0.00 | J144: 122.34 | K144: 122.34 | L144: 0.00 | M144: 0.00 | N144: 246.09 | O144: 0.00 | P144: 246.09 | Q144: 0.00 | R144: 0.00 | S144: 0.00 | T144: 0.00 | U144: 185.50 | V144: 0.00 | W144: 0.00 | X144: 0.00 | Y144: 0.00 | Z144: 31.73 | AA144: 108.62 | AB144: 0.00 | AC144: 0.00 | AD144: 0.00 | AE144: 0.00 | AF144: 0.00 | AG144: 0.00 | AH144: 0.00 | AI144: 0.00 | AJ144: 0.00 | AK144: 1,901.29 | AL144: 45.35 | AM144: 0.00 | AN144: 0.00 | AO144: 0.00 | AP144: 8,335.38 | AQ144: 0.00 | AR144: 0.00 | AS144: 0.00 | AT144: 0.00 | AU144: 3,427.34 | AV144: 0.70 | AW144: 0.00 | AX144: 0.00 | AY144: 0.00 | AZ144: 0.00 | BA144: 0.00 | BB144: 0.70 | BC144: 41.02 | BD144: 1,638.71 | BE144: 0.00 | BF144: 839.86 | BG144: 0.00 | BH144: 0.00 | BI144: 0.00 | BJ144: 0.00 | BK144: 0.00 | BL144: 4,572.74 | BM144: 0.00 | BN144: 0.00 | BO144: 0.00 | BP144: 4,572.74 | BQ144: 0.00 | BR144: 0.00 | BS144: 0.00 | BT144: 0.00 | BU144: 0.00 | BV144: 269.15 | BW144: $ 9,586.84 | BX144: $ 822,934.29
A145: Aquatic | B145: Transformed | C145: Helobioma Darién –Tacarcuna | D145: Transitional transformed | E145: Mosaic of crops, pastures and natural spaces | F145: CHOCO | G145: JURADO | H145: 306.84 | I145: 0.00 | J145: 122.34 | K145: 122.34 | L145: 0.00 | M145: 0.00 | N145: 246.09 | O145: 0.00 | P145: 246.09 | Q145: 0.00 | R145: 0.00 | S145: 0.00 | T145: 0.00 | U145: 185.50 | V145: 0.00 | W145: 0.00 | X145: 0.00 | Y145: 0.00 | Z145: 31.73 | AA145: 108.62 | AB145: 0.00 | AC145: 0.00 | AD145: 0.00 | AE145: 0.00 | AF145: 0.00 | AG145: 0.00 | AH145: 0.00 | AI145: 0.00 | AJ145: 0.00 | AK145: 1,901.29 | AL145: 45.35 | AM145: 0.00 | AN145: 0.00 | AO145: 0.00 | AP145: 8,335.38 | AQ145: 0.00 | AR145: 0.00 | AS145: 0.00 | AT145: 0.00 | AU145: 3,427.34 | AV145: 0.70 | AW145: 0.00 | AX145: 0.00 | AY145: 0.00 | AZ145: 0.00 | BA145: 0.00 | BB145: 0.70 | BC145: 41.02 | BD145: 1,638.71 | BE145: 0.00 | BF145: 839.86 | BG145: 0.00 | BH145: 0.00 | BI145: 0.00 | BJ145: 0.00 | BK145: 0.00 | BL145: 4,572.74 | BM145: 0.00 | BN145: 0.00 | BO145: 0.00 | BP145: 4,572.74 | BQ145: 0.00 | BR145: 0.00 | BS145: 0.00 | BT145: 0.00 | BU145: 0.00 | BV145: 269.15 | BW145: $ 9,586.84 | BX145: $ 2,941,625.77
A146: Aquatic | B146: Transformed | C146: Helobioma Darién –Tacarcuna | D146: Transitional transformed | E146: Mosaic of crops, pastures and natural spaces | F146: CHOCO | G146: JURADO | H146: 206.27 | I146: 0.00 | J146: 122.34 | K146: 122.34 | L146: 0.00 | M146: 0.00 | N146: 246.09 | O146: 0.00 | P146: 246.09 | Q146: 0.00 | R146: 0.00 | S146: 0.00 | T146: 0.00 | U146: 185.50 | V146: 0.00 | W146: 0.00 | X146: 0.00 | Y146: 0.00 | Z146: 31.73 | AA146: 108.62 | AB146: 0.00 | AC146: 0.00 | AD146: 0.00 | AE146: 0.00 | AF146: 0.00 | AG146: 0.00 | AH146: 0.00 | AI146: 0.00 | AJ146: 0.00 | AK146: 1,901.29 | AL146: 45.35 | AM146: 0.00 | AN146: 0.00 | AO146: 0.00 | AP146: 8,335.38 | AQ146: 0.00 | AR146: 0.00 | AS146: 0.00 | AT146: 0.00 | AU146: 3,427.34 | AV146: 0.70 | AW146: 0.00 | AX146: 0.00 | AY146: 0.00 | AZ146: 0.00 | BA146: 0.00 | BB146: 0.70 | BC146: 41.02 | BD146: 1,638.71 | BE146: 0.00 | BF146: 839.86 | BG146: 0.00 | BH146: 0.00 | BI146: 0.00 | BJ146: 0.00 | BK146: 0.00 | BL146: 4,572.74 | BM146: 0.00 | BN146: 0.00 | BO146: 0.00 | BP146: 4,572.74 | BQ146: 0.00 | BR146: 0.00 | BS146: 0.00 | BT146: 0.00 | BU146: 0.00 | BV146: 269.15 | BW146: $ 9,586.84 | BX146: $ 1,977,477.34
A147: Aquatic | B147: Transformed | C147: Helobioma Darién –Tacarcuna | D147: Transitional transformed | E147: Mosaic of pastures and natural spaces | F147: CHOCO | G147: JURADO | H147: 46.55 | I147: 0.00 | J147: 122.34 | K147: 122.34 | L147: 0.00 | M147: 0.00 | N147: 246.09 | O147: 0.00 | P147: 246.09 | Q147: 0.00 | R147: 0.00 | S147: 0.00 | T147: 0.00 | U147: 185.50 | V147: 0.00 | W147: 0.00 | X147: 0.00 | Y147: 0.00 | Z147: 31.73 | AA147: 108.62 | AB147: 0.00 | AC147: 0.00 | AD147: 0.00 | AE147: 0.00 | AF147: 0.00 | AG147: 0.00 | AH147: 0.00 | AI147: 0.00 | AJ147: 0.00 | AK147: 1,901.29 | AL147: 45.35 | AM147: 0.00 | AN147: 0.00 | AO147: 0.00 | AP147: 8,335.38 | AQ147: 0.00 | AR147: 0.00 | AS147: 0.00 | AT147: 0.00 | AU147: 3,427.34 | AV147: 0.70 | AW147: 0.00 | AX147: 0.00 | AY147: 0.00 | AZ147: 0.00 | BA147: 0.00 | BB147: 0.70 | BC147: 41.02 | BD147: 1,638.71 | BE147: 0.00 | BF147: 839.86 | BG147: 0.00 | BH147: 0.00 | BI147: 0.00 | BJ147: 0.00 | BK147: 0.00 | BL147: 4,572.74 | BM147: 0.00 | BN147: 0.00 | BO147: 0.00 | BP147: 4,572.74 | BQ147: 0.00 | BR147: 0.00 | BS147: 0.00 | BT147: 0.00 | BU147: 0.00 | BV147: 269.15 | BW147: $ 9,586.84 | BX147: $ 446,267.37
A148: Aquatic | B148: Transformed | C148: Helobioma Darién –Tacarcuna | D148: Transitional transformed | E148: Secondary vegetation | F148: CHOCO | G148: JURADO | H148: 99.77 | I148: 0.00 | J148: 122.34 | K148: 122.34 | L148: 0.00 | M148: 0.00 | N148: 246.09 | O148: 0.00 | P148: 246.09 | Q148: 0.00 | R148: 0.00 | S148: 0.00 | T148: 0.00 | U148: 185.50 | V148: 0.00 | W148: 0.00 | X148: 0.00 | Y148: 0.00 | Z148: 31.73 | AA148: 108.62 | AB148: 0.00 | AC148: 0.00 | AD148: 0.00 | AE148: 0.00 | AF148: 0.00 | AG148: 0.00 | AH148: 0.00 | AI148: 0.00 | AJ148: 0.00 | AK148: 1,901.29 | AL148: 45.35 | AM148: 0.00 | AN148: 0.00 | AO148: 0.00 | AP148: 8,335.38 | AQ148: 0.00 | AR148: 0.00 | AS148: 0.00 | AT148: 0.00 | AU148: 3,427.34 | AV148: 0.70 | AW148: 0.00 | AX148: 0.00 | AY148: 0.00 | AZ148: 0.00 | BA148: 0.00 | BB148: 0.70 | BC148: 41.02 | BD148: 1,638.71 | BE148: 0.00 | BF148: 839.86 | BG148: 0.00 | BH148: 0.00 | BI148: 0.00 | BJ148: 0.00 | BK148: 0.00 | BL148: 4,572.74 | BM148: 0.00 | BN148: 0.00 | BO148: 0.00 | BP148: 4,572.74 | BQ148: 0.00 | BR148: 0.00 | BS148: 0.00 | BT148: 0.00 | BU148: 0.00 | BV148: 269.15 | BW148: $ 9,586.84 | BX148: $ 956,478.96
A149: Aquatic | B149: Transformed | C149: Helobioma Darién –Tacarcuna | D149: Transitional transformed | E149: Secondary vegetation | F149: CHOCO | G149: JURADO | H149: 51.53 | I149: 0.00 | J149: 122.34 | K149: 122.34 | L149: 0.00 | M149: 0.00 | N149: 246.09 | O149: 0.00 | P149: 246.09 | Q149: 0.00 | R149: 0.00 | S149: 0.00 | T149: 0.00 | U149: 185.50 | V149: 0.00 | W149: 0.00 | X149: 0.00 | Y149: 0.00 | Z149: 31.73 | AA149: 108.62 | AB149: 0.00 | AC149: 0.00 | AD149: 0.00 | AE149: 0.00 | AF149: 0.00 | AG149: 0.00 | AH149: 0.00 | AI149: 0.00 | AJ149: 0.00 | AK149: 1,901.29 | AL149: 45.35 | AM149: 0.00 | AN149: 0.00 | AO149: 0.00 | AP149: 8,335.38 | AQ149: 0.00 | AR149: 0.00 | AS149: 0.00 | AT149: 0.00 | AU149: 3,427.34 | AV149: 0.70 | AW149: 0.00 | AX149: 0.00 | AY149: 0.00 | AZ149: 0.00 | BA149: 0.00 | BB149: 0.70 | BC149: 41.02 | BD149: 1,638.71 | BE149: 0.00 | BF149: 839.86 | BG149: 0.00 | BH149: 0.00 | BI149: 0.00 | BJ149: 0.00 | BK149: 0.00 | BL149: 4,572.74 | BM149: 0.00 | BN149: 0.00 | BO149: 0.00 | BP149: 4,572.74 | BQ149: 0.00 | BR149: 0.00 | BS149: 0.00 | BT149: 0.00 | BU149: 0.00 | BV149: 269.15 | BW149: $ 9,586.84 | BX149: $ 494,009.83
A150: Aquatic | B150: Transformed | C150: Helobioma Darién –Tacarcuna | D150: Transitional transformed | E150: Secondary vegetation | F150: CHOCO | G150: JURADO | H150: 56.47 | I150: 0.00 | J150: 122.34 | K150: 122.34 | L150: 0.00 | M150: 0.00 | N150: 246.09 | O150: 0.00 | P150: 246.09 | Q150: 0.00 | R150: 0.00 | S150: 0.00 | T150: 0.00 | U150: 185.50 | V150: 0.00 | W150: 0.00 | X150: 0.00 | Y150: 0.00 | Z150: 31.73 | AA150: 108.62 | AB150: 0.00 | AC150: 0.00 | AD150: 0.00 | AE150: 0.00 | AF150: 0.00 | AG150: 0.00 | AH150: 0.00 | AI150: 0.00 | AJ150: 0.00 | AK150: 1,901.29 | AL150: 45.35 | AM150: 0.00 | AN150: 0.00 | AO150: 0.00 | AP150: 8,335.38 | AQ150: 0.00 | AR150: 0.00 | AS150: 0.00 | AT150: 0.00 | AU150: 3,427.34 | AV150: 0.70 | AW150: 0.00 | AX150: 0.00 | AY150: 0.00 | AZ150: 0.00 | BA150: 0.00 | BB150: 0.70 | BC150: 41.02 | BD150: 1,638.71 | BE150: 0.00 | BF150: 839.86 | BG150: 0.00 | BH150: 0.00 | BI150: 0.00 | BJ150: 0.00 | BK150: 0.00 | BL150: 4,572.74 | BM150: 0.00 | BN150: 0.00 | BO150: 0.00 | BP150: 4,572.74 | BQ150: 0.00 | BR150: 0.00 | BS150: 0.00 | BT150: 0.00 | BU150: 0.00 | BV150: 269.15 | BW150: $ 9,586.84 | BX150: $ 541,368.82
A151: Aquatic | B151: Transformed | C151: Helobioma Darién –Tacarcuna | D151: Transitional transformed | E151: Secondary vegetation | F151: CHOCO | G151: JURADO | H151: 41.67 | I151: 0.00 | J151: 122.34 | K151: 122.34 | L151: 0.00 | M151: 0.00 | N151: 246.09 | O151: 0.00 | P151: 246.09 | Q151: 0.00 | R151: 0.00 | S151: 0.00 | T151: 0.00 | U151: 185.50 | V151: 0.00 | W151: 0.00 | X151: 0.00 | Y151: 0.00 | Z151: 31.73 | AA151: 108.62 | AB151: 0.00 | AC151: 0.00 | AD151: 0.00 | AE151: 0.00 | AF151: 0.00 | AG151: 0.00 | AH151: 0.00 | AI151: 0.00 | AJ151: 0.00 | AK151: 1,901.29 | AL151: 45.35 | AM151: 0.00 | AN151: 0.00 | AO151: 0.00 | AP151: 8,335.38 | AQ151: 0.00 | AR151: 0.00 | AS151: 0.00 | AT151: 0.00 | AU151: 3,427.34 | AV151: 0.70 | AW151: 0.00 | AX151: 0.00 | AY151: 0.00 | AZ151: 0.00 | BA151: 0.00 | BB151: 0.70 | BC151: 41.02 | BD151: 1,638.71 | BE151: 0.00 | BF151: 839.86 | BG151: 0.00 | BH151: 0.00 | BI151: 0.00 | BJ151: 0.00 | BK151: 0.00 | BL151: 4,572.74 | BM151: 0.00 | BN151: 0.00 | BO151: 0.00 | BP151: 4,572.74 | BQ151: 0.00 | BR151: 0.00 | BS151: 0.00 | BT151: 0.00 | BU151: 0.00 | BV151: 269.15 | BW151: $ 9,586.84 | BX151: $ 399,483.59
A152: Aquatic | B152: Transformed | C152: Helobioma San Juan | D152: Transitional transformed | E152: Secondary vegetation | F152: CHOCO | G152: MEDIO BAUDO | H152: 62.52 | I152: 0.00 | J152: 122.34 | K152: 122.34 | L152: 0.00 | M152: 0.00 | N152: 246.09 | O152: 0.00 | P152: 246.09 | Q152: 0.00 | R152: 0.00 | S152: 0.00 | T152: 0.00 | U152: 185.50 | V152: 0.00 | W152: 0.00 | X152: 0.00 | Y152: 0.00 | Z152: 31.73 | AA152: 108.62 | AB152: 0.00 | AC152: 0.00 | AD152: 0.00 | AE152: 0.00 | AF152: 0.00 | AG152: 0.00 | AH152: 0.00 | AI152: 0.00 | AJ152: 0.00 | AK152: 1,901.29 | AL152: 45.35 | AM152: 0.00 | AN152: 0.00 | AO152: 0.00 | AP152: 8,335.38 | AQ152: 0.00 | AR152: 0.00 | AS152: 0.00 | AT152: 0.00 | AU152: 3,427.34 | AV152: 0.70 | AW152: 0.00 | AX152: 0.00 | AY152: 0.00 | AZ152: 0.00 | BA152: 0.00 | BB152: 0.70 | BC152: 41.02 | BD152: 1,638.71 | BE152: 0.00 | BF152: 839.86 | BG152: 0.00 | BH152: 0.00 | BI152: 0.00 | BJ152: 0.00 | BK152: 0.00 | BL152: 4,572.74 | BM152: 0.00 | BN152: 0.00 | BO152: 0.00 | BP152: 4,572.74 | BQ152: 0.00 | BR152: 0.00 | BS152: 0.00 | BT152: 0.00 | BU152: 0.00 | BV152: 269.15 | BW152: $ 9,586.84 | BX152: $ 599,369.19
A153: Aquatic | B153: Transformed | C153: Helobioma San Juan | D153: Transitional transformed | E153: Fragmented forest with secondary vegetation | F153: CHOCO | G153: BAJO BAUDO | H153: 184.69 | I153: 0.00 | J153: 122.34 | K153: 122.34 | L153: 0.00 | M153: 0.00 | N153: 246.09 | O153: 0.00 | P153: 246.09 | Q153: 0.00 | R153: 0.00 | S153: 0.00 | T153: 0.00 | U153: 185.50 | V153: 0.00 | W153: 0.00 | X153: 0.00 | Y153: 0.00 | Z153: 31.73 | AA153: 108.62 | AB153: 0.00 | AC153: 0.00 | AD153: 0.00 | AE153: 0.00 | AF153: 0.00 | AG153: 0.00 | AH153: 0.00 | AI153: 0.00 | AJ153: 0.00 | AK153: 1,901.29 | AL153: 45.35 | AM153: 0.00 | AN153: 0.00 | AO153: 0.00 | AP153: 8,335.38 | AQ153: 0.00 | AR153: 0.00 | AS153: 0.00 | AT153: 0.00 | AU153: 3,427.34 | AV153: 0.70 | AW153: 0.00 | AX153: 0.00 | AY153: 0.00 | AZ153: 0.00 | BA153: 0.00 | BB153: 0.70 | BC153: 41.02 | BD153: 1,638.71 | BE153: 0.00 | BF153: 839.86 | BG153: 0.00 | BH153: 0.00 | BI153: 0.00 | BJ153: 0.00 | BK153: 0.00 | BL153: 4,572.74 | BM153: 0.00 | BN153: 0.00 | BO153: 0.00 | BP153: 4,572.74 | BQ153: 0.00 | BR153: 0.00 | BS153: 0.00 | BT153: 0.00 | BU153: 0.00 | BV153: 269.15 | BW153: $ 9,586.84 | BX153: $ 1,770,593.35
A154: Aquatic | B154: Transformed | C154: Helobioma San Juan | D154: Transitional transformed | E154: Fragmented forest with secondary vegetation | F154: CHOCO | G154: BAJO BAUDO | H154: 50.83 | I154: 0.00 | J154: 122.34 | K154: 122.34 | L154: 0.00 | M154: 0.00 | N154: 246.09 | O154: 0.00 | P154: 246.09 | Q154: 0.00 | R154: 0.00 | S154: 0.00 | T154: 0.00 | U154: 185.50 | V154: 0.00 | W154: 0.00 | X154: 0.00 | Y154: 0.00 | Z154: 31.73 | AA154: 108.62 | AB154: 0.00 | AC154: 0.00 | AD154: 0.00 | AE154: 0.00 | AF154: 0.00 | AG154: 0.00 | AH154: 0.00 | AI154: 0.00 | AJ154: 0.00 | AK154: 1,901.29 | AL154: 45.35 | AM154: 0.00 | AN154: 0.00 | AO154: 0.00 | AP154: 8,335.38 | AQ154: 0.00 | AR154: 0.00 | AS154: 0.00 | AT154: 0.00 | AU154: 3,427.34 | AV154: 0.70 | AW154: 0.00 | AX154: 0.00 | AY154: 0.00 | AZ154: 0.00 | BA154: 0.00 | BB154: 0.70 | BC154: 41.02 | BD154: 1,638.71 | BE154: 0.00 | BF154: 839.86 | BG154: 0.00 | BH154: 0.00 | BI154: 0.00 | BJ154: 0.00 | BK154: 0.00 | BL154: 4,572.74 | BM154: 0.00 | BN154: 0.00 | BO154: 0.00 | BP154: 4,572.74 | BQ154: 0.00 | BR154: 0.00 | BS154: 0.00 | BT154: 0.00 | BU154: 0.00 | BV154: 269.15 | BW154: $ 9,586.84 | BX154: $ 487,299.04
A155: Aquatic | B155: Transformed | C155: Helobioma San Juan | D155: Transitional transformed | E155: Fragmented forest with secondary vegetation | F155: CHOCO | G155: BAJO BAUDO | H155: 60.74 | I155: 0.00 | J155: 122.34 | K155: 122.34 | L155: 0.00 | M155: 0.00 | N155: 246.09 | O155: 0.00 | P155: 246.09 | Q155: 0.00 | R155: 0.00 | S155: 0.00 | T155: 0.00 | U155: 185.50 | V155: 0.00 | W155: 0.00 | X155: 0.00 | Y155: 0.00 | Z155: 31.73 | AA155: 108.62 | AB155: 0.00 | AC155: 0.00 | AD155: 0.00 | AE155: 0.00 | AF155: 0.00 | AG155: 0.00 | AH155: 0.00 | AI155: 0.00 | AJ155: 0.00 | AK155: 1,901.29 | AL155: 45.35 | AM155: 0.00 | AN155: 0.00 | AO155: 0.00 | AP155: 8,335.38 | AQ155: 0.00 | AR155: 0.00 | AS155: 0.00 | AT155: 0.00 | AU155: 3,427.34 | AV155: 0.70 | AW155: 0.00 | AX155: 0.00 | AY155: 0.00 | AZ155: 0.00 | BA155: 0.00 | BB155: 0.70 | BC155: 41.02 | BD155: 1,638.71 | BE155: 0.00 | BF155: 839.86 | BG155: 0.00 | BH155: 0.00 | BI155: 0.00 | BJ155: 0.00 | BK155: 0.00 | BL155: 4,572.74 | BM155: 0.00 | BN155: 0.00 | BO155: 0.00 | BP155: 4,572.74 | BQ155: 0.00 | BR155: 0.00 | BS155: 0.00 | BT155: 0.00 | BU155: 0.00 | BV155: 269.15 | BW155: $ 9,586.84 | BX155: $ 582,304.62
A156: Aquatic | B156: Transformed | C156: Helobioma San Juan | D156: Transitional transformed | E156: Fragmented forest with secondary vegetation | F156: CHOCO | G156: BAJO BAUDO | H156: 146.18 | I156: 0.00 | J156: 122.34 | K156: 122.34 | L156: 0.00 | M156: 0.00 | N156: 246.09 | O156: 0.00 | P156: 246.09 | Q156: 0.00 | R156: 0.00 | S156: 0.00 | T156: 0.00 | U156: 185.50 | V156: 0.00 | W156: 0.00 | X156: 0.00 | Y156: 0.00 | Z156: 31.73 | AA156: 108.62 | AB156: 0.00 | AC156: 0.00 | AD156: 0.00 | AE156: 0.00 | AF156: 0.00 | AG156: 0.00 | AH156: 0.00 | AI156: 0.00 | AJ156: 0.00 | AK156: 1,901.29 | AL156: 45.35 | AM156: 0.00 | AN156: 0.00 | AO156: 0.00 | AP156: 8,335.38 | AQ156: 0.00 | AR156: 0.00 | AS156: 0.00 | AT156: 0.00 | AU156: 3,427.34 | AV156: 0.70 | AW156: 0.00 | AX156: 0.00 | AY156: 0.00 | AZ156: 0.00 | BA156: 0.00 | BB156: 0.70 | BC156: 41.02 | BD156: 1,638.71 | BE156: 0.00 | BF156: 839.86 | BG156: 0.00 | BH156: 0.00 | BI156: 0.00 | BJ156: 0.00 | BK156: 0.00 | BL156: 4,572.74 | BM156: 0.00 | BN156: 0.00 | BO156: 0.00 | BP156: 4,572.74 | BQ156: 0.00 | BR156: 0.00 | BS156: 0.00 | BT156: 0.00 | BU156: 0.00 | BV156: 269.15 | BW156: $ 9,586.84 | BX156: $ 1,401,404.17
A157: Aquatic | B157: Transformed | C157: Helobioma San Juan | D157: Transitional transformed | E157: Mosaic of crops, pastures and natural spaces | F157: CHOCO | G157: MEDIO BAUDO | H157: 39.03 | I157: 0.00 | J157: 122.34 | K157: 122.34 | L157: 0.00 | M157: 0.00 | N157: 246.09 | O157: 0.00 | P157: 246.09 | Q157: 0.00 | R157: 0.00 | S157: 0.00 | T157: 0.00 | U157: 185.50 | V157: 0.00 | W157: 0.00 | X157: 0.00 | Y157: 0.00 | Z157: 31.73 | AA157: 108.62 | AB157: 0.00 | AC157: 0.00 | AD157: 0.00 | AE157: 0.00 | AF157: 0.00 | AG157: 0.00 | AH157: 0.00 | AI157: 0.00 | AJ157: 0.00 | AK157: 1,901.29 | AL157: 45.35 | AM157: 0.00 | AN157: 0.00 | AO157: 0.00 | AP157: 8,335.38 | AQ157: 0.00 | AR157: 0.00 | AS157: 0.00 | AT157: 0.00 | AU157: 3,427.34 | AV157: 0.70 | AW157: 0.00 | AX157: 0.00 | AY157: 0.00 | AZ157: 0.00 | BA157: 0.00 | BB157: =AV157 -> 0.70 | BC157: 41.02 | BD157: 1,638.71 | BE157: 0.00 | BF157: 839.86 | BG157: 0.00 | BH157: 0.00 | BI157: 0.00 | BJ157: 0.00 | BK157: 0.00 | BL157: 4,572.74 | BM157: 0.00 | BN157: 0.00 | BO157: 0.00 | BP157: 4,572.74 | BQ157: 0.00 | BR157: 0.00 | BS157: 0.00 | BT157: 0.00 | BU157: 0.00 | BV157: 269.15 | BW157: $ 9,586.84 | BX157: $ 374,174.34
A158: Aquatic | B158: Transformed | C158: Helobioma San Juan | D158: Transitional transformed | E158: Mosaic of crops, pastures and natural spaces | F158: CHOCO | G158: MEDIO BAUDO | H158: 35.19 | I158: 0.00 | J158: 122.34 | K158: 122.34 | L158: 0.00 | M158: 0.00 | N158: 246.09 | O158: 0.00 | P158: 246.09 | Q158: 0.00 | R158: 0.00 | S158: 0.00 | T158: 0.00 | U158: 185.50 | V158: 0.00 | W158: 0.00 | X158: 0.00 | Y158: 0.00 | Z158: 31.73 | AA158: 108.62 | AB158: 0.00 | AC158: 0.00 | AD158: 0.00 | AE158: 0.00 | AF158: 0.00 | AG158: 0.00 | AH158: 0.00 | AI158: 0.00 | AJ158: 0.00 | AK158: 1,901.29 | AL158: 45.35 | AM158: 0.00 | AN158: 0.00 | AO158: 0.00 | AP158: 8,335.38 | AQ158: 0.00 | AR158: 0.00 | AS158: 0.00 | AT158: 0.00 | AU158: 3,427.34 | AV158: 0.70 | AW158: 0.00 | AX158: 0.00 | AY158: 0.00 | AZ158: 0.00 | BA158: 0.00 | BB158: 0.70 | BC158: 41.02 | BD158: 1,638.71 | BE158: 0.00 | BF158: 839.86 | BG158: 0.00 | BH158: 0.00 | BI158: 0.00 | BJ158: 0.00 | BK158: 0.00 | BL158: 4,572.74 | BM158: 0.00 | BN158: 0.00 | BO158: 0.00 | BP158: 4,572.74 | BQ158: 0.00 | BR158: 0.00 | BS158: 0.00 | BT158: 0.00 | BU158: 0.00 | BV158: 269.15 | BW158: $ 9,586.84 | BX158: $ 337,360.87
A159: Aquatic | B159: Transformed | C159: Helobioma San Juan | D159: Transitional transformed | E159: Mosaic of pastures and natural spaces | F159: CHOCO | G159: MEDIO BAUDO | H159: 98.09 | I159: 0.00 | J159: 122.34 | K159: 122.34 | L159: 0.00 | M159: 0.00 | N159: 246.09 | O159: 0.00 | P159: 246.09 | Q159: 0.00 | R159: 0.00 | S159: 0.00 | T159: 0.00 | U159: 185.50 | V159: 0.00 | W159: 0.00 | X159: 0.00 | Y159: 0.00 | Z159: 31.73 | AA159: 108.62 | AB159: 0.00 | AC159: 0.00 | AD159: 0.00 | AE159: 0.00 | AF159: 0.00 | AG159: 0.00 | AH159: 0.00 | AI159: 0.00 | AJ159: 0.00 | AK159: 1,901.29 | AL159: 45.35 | AM159: 0.00 | AN159: 0.00 | AO159: 0.00 | AP159: 8,335.38 | AQ159: 0.00 | AR159: 0.00 | AS159: 0.00 | AT159: 0.00 | AU159: 3,427.34 | AV159: 0.70 | AW159: 0.00 | AX159: 0.00 | AY159: 0.00 | AZ159: 0.00 | BA159: 0.00 | BB159: 0.70 | BC159: 41.02 | BD159: 1,638.71 | BE159: 0.00 | BF159: 839.86 | BG159: 0.00 | BH159: 0.00 | BI159: 0.00 | BJ159: 0.00 | BK159: 0.00 | BL159: 4,572.74 | BM159: 0.00 | BN159: 0.00 | BO159: 0.00 | BP159: 4,572.74 | BQ159: 0.00 | BR159: 0.00 | BS159: 0.00 | BT159: 0.00 | BU159: 0.00 | BV159: 269.15 | BW159: $ 9,586.84 | BX159: $ 940,373.07
A160: Aquatic | B160: Transformed | C160: Helobioma San Juan | D160: Transitional transformed | E160: Secondary vegetation | F160: CHOCO | G160: BAJO BAUDO | H160: 382.15 | I160: 0.00 | J160: 122.34 | K160: 122.34 | L160: 0.00 | M160: 0.00 | N160: 246.09 | O160: 0.00 | P160: 246.09 | Q160: 0.00 | R160: 0.00 | S160: 0.00 | T160: 0.00 | U160: 185.50 | V160: 0.00 | W160: 0.00 | X160: 0.00 | Y160: 0.00 | Z160: 31.73 | AA160: 108.62 | AB160: 0.00 | AC160: 0.00 | AD160: 0.00 | AE160: 0.00 | AF160: 0.00 | AG160: 0.00 | AH160: 0.00 | AI160: 0.00 | AJ160: 0.00 | AK160: 1,901.29 | AL160: 45.35 | AM160: 0.00 | AN160: 0.00 | AO160: 0.00 | AP160: 8,335.38 | AQ160: 0.00 | AR160: 0.00 | AS160: 0.00 | AT160: 0.00 | AU160: 3,427.34 | AV160: 0.70 | AW160: 0.00 | AX160: 0.00 | AY160: 0.00 | AZ160: 0.00 | BA160: 0.00 | BB160: 0.70 | BC160: 41.02 | BD160: 1,638.71 | BE160: 0.00 | BF160: 839.86 | BG160: 0.00 | BH160: 0.00 | BI160: 0.00 | BJ160: 0.00 | BK160: 0.00 | BL160: 4,572.74 | BM160: 0.00 | BN160: 0.00 | BO160: 0.00 | BP160: 4,572.74 | BQ160: 0.00 | BR160: 0.00 | BS160: 0.00 | BT160: 0.00 | BU160: 0.00 | BV160: 269.15 | BW160: $ 9,586.84 | BX160: $ 3,663,610.64
A161: Aquatic | B161: Transformed | C161: Helobioma San Juan | D161: Transitional transformed | E161: Secondary vegetation | F161: CHOCO | G161: BAJO BAUDO | H161: 102.59 | I161: 0.00 | J161: 122.34 | K161: 122.34 | L161: 0.00 | M161: 0.00 | N161: 246.09 | O161: 0.00 | P161: 246.09 | Q161: 0.00 | R161: 0.00 | S161: 0.00 | T161: 0.00 | U161: 185.50 | V161: 0.00 | W161: 0.00 | X161: 0.00 | Y161: 0.00 | Z161: 31.73 | AA161: 108.62 | AB161: 0.00 | AC161: 0.00 | AD161: 0.00 | AE161: 0.00 | AF161: 0.00 | AG161: 0.00 | AH161: 0.00 | AI161: 0.00 | AJ161: 0.00 | AK161: 1,901.29 | AL161: 45.35 | AM161: 0.00 | AN161: 0.00 | AO161: 0.00 | AP161: 8,335.38 | AQ161: 0.00 | AR161: 0.00 | AS161: 0.00 | AT161: 0.00 | AU161: 3,427.34 | AV161: 0.70 | AW161: 0.00 | AX161: 0.00 | AY161: 0.00 | AZ161: 0.00 | BA161: 0.00 | BB161: 0.70 | BC161: 41.02 | BD161: 1,638.71 | BE161: 0.00 | BF161: 839.86 | BG161: 0.00 | BH161: 0.00 | BI161: 0.00 | BJ161: 0.00 | BK161: 0.00 | BL161: 4,572.74 | BM161: 0.00 | BN161: 0.00 | BO161: 0.00 | BP161: 4,572.74 | BQ161: 0.00 | BR161: 0.00 | BS161: 0.00 | BT161: 0.00 | BU161: 0.00 | BV161: 269.15 | BW161: $ 9,586.84 | BX161: $ 983,513.84
A162: Aquatic | B162: Transformed | C162: Helobioma San Juan | D162: Transitional transformed | E162: Secondary vegetation | F162: CHOCO | G162: BAJO BAUDO | H162: 418.98 | I162: 0.00 | J162: 122.34 | K162: =J162 -> 122.34 | L162: 0.00 | M162: 0.00 | N162: 246.09 | O162: 0.00 | P162: 246.09 | Q162: 0.00 | R162: 0.00 | S162: 0.00 | T162: 0.00 | U162: 185.50 | V162: 0.00 | W162: 0.00 | X162: 0.00 | Y162: 0.00 | Z162: 31.73 | AA162: 108.62 | AB162: 0.00 | AC162: 0.00 | AD162: 0.00 | AE162: 0.00 | AF162: 0.00 | AG162: 0.00 | AH162: 0.00 | AI162: 0.00 | AJ162: 0.00 | AK162: 1,901.29 | AL162: 45.35 | AM162: 0.00 | AN162: 0.00 | AO162: 0.00 | AP162: 8,335.38 | AQ162: 0.00 | AR162: 0.00 | AS162: 0.00 | AT162: 0.00 | AU162: =(AK162+AL162+AP162)/3 -> 3,427.34 | AV162: 0.70 | AW162: 0.00 | AX162: 0.00 | AY162: 0.00 | AZ162: 0.00 | BA162: 0.00 | BB162: 0.70 | BC162: 41.02 | BD162: 1,638.71 | BE162: 0.00 | BF162: 839.86 | BG162: 0.00 | BH162: 0.00 | BI162: 0.00 | BJ162: 0.00 | BK162: 0.00 | BL162: 4,572.74 | BM162: 0.00 | BN162: 0.00 | BO162: 0.00 | BP162: =BL162 -> 4,572.74 | BQ162: 0.00 | BR162: 0.00 | BS162: 0.00 | BT162: 0.00 | BU162: 0.00 | BV162: 269.15 | BW162: $ 9,586.84 | BX162: $ 4,016,693.93
A163: Aquatic | B163: Transformed | C163: Helobioma San Juan | D163: Transitional transformed | E163: Fragmented forest with pastures and crops | F163: CHOCO | G163: BAJO BAUDO | H163: 121.85 | I163: 0.00 | J163: 122.34 | K163: 122.34 | L163: 0.00 | M163: 0.00 | N163: 246.09 | O163: 0.00 | P163: 246.09 | Q163: 0.00 | R163: 0.00 | S163: 0.00 | T163: 0.00 | U163: 185.50 | V163: 0.00 | W163: 0.00 | X163: 0.00 | Y163: 0.00 | Z163: 31.73 | AA163: 108.62 | AB163: 0.00 | AC163: 0.00 | AD163: 0.00 | AE163: 0.00 | AF163: 0.00 | AG163: 0.00 | AH163: 0.00 | AI163: 0.00 | AJ163: 0.00 | AK163: 1,901.29 | AL163: 45.35 | AM163: 0.00 | AN163: 0.00 | AO163: 0.00 | AP163: 8,335.38 | AQ163: 0.00 | AR163: 0.00 | AS163: 0.00 | AT163: 0.00 | AU163: 3,427.34 | AV163: 0.70 | AW163: 0.00 | AX163: 0.00 | AY163: 0.00 | AZ163: 0.00 | BA163: 0.00 | BB163: 0.70 | BC163: 41.02 | BD163: 1,638.71 | BE163: 0.00 | BF163: 839.86 | BG163: 0.00 | BH163: 0.00 | BI163: 0.00 | BJ163: 0.00 | BK163: 0.00 | BL163: 4,572.74 | BM163: 0.00 | BN163: 0.00 | BO163: 0.00 | BP163: 4,572.74 | BQ163: 0.00 | BR163: 0.00 | BS163: 0.00 | BT163: 0.00 | BU163: 0.00 | BV163: 269.15 | BW163: $ 9,586.84 | BX163: $ 1,168,156.37
A164: Aquatic | B164: Transformed | C164: Helobioma San Juan | D164: Transitional transformed | E164: Fragmented forest with pastures and crops | F164: CHOCO | G164: BAJO BAUDO | H164: 54.39 | I164: 0.00 | J164: 122.34 | K164: 122.34 | L164: 0.00 | M164: 0.00 | N164: 246.09 | O164: 0.00 | P164: 246.09 | Q164: 0.00 | R164: 0.00 | S164: 0.00 | T164: 0.00 | U164: 185.50 | V164: 0.00 | W164: 0.00 | X164: 0.00 | Y164: 0.00 | Z164: 31.73 | AA164: 108.62 | AB164: 0.00 | AC164: 0.00 | AD164: 0.00 | AE164: 0.00 | AF164: 0.00 | AG164: 0.00 | AH164: 0.00 | AI164: 0.00 | AJ164: 0.00 | AK164: 1,901.29 | AL164: 45.35 | AM164: 0.00 | AN164: 0.00 | AO164: 0.00 | AP164: 8,335.38 | AQ164: 0.00 | AR164: 0.00 | AS164: 0.00 | AT164: 0.00 | AU164: 3,427.34 | AV164: 0.70 | AW164: 0.00 | AX164: 0.00 | AY164: 0.00 | AZ164: 0.00 | BA164: 0.00 | BB164: 0.70 | BC164: 41.02 | BD164: 1,638.71 | BE164: 0.00 | BF164: 839.86 | BG164: 0.00 | BH164: 0.00 | BI164: 0.00 | BJ164: 0.00 | BK164: 0.00 | BL164: 4,572.74 | BM164: 0.00 | BN164: 0.00 | BO164: 0.00 | BP164: 4,572.74 | BQ164: 0.00 | BR164: 0.00 | BS164: 0.00 | BT164: 0.00 | BU164: 0.00 | BV164: 269.15 | BW164: $ 9,586.84 | BX164: $ 521,428.19
A165: Aquatic | B165: Transformed | C165: Helobioma San Juan | D165: Transitional transformed | E165: Fragmented forest with pastures and crops | F165: CHOCO | G165: BAJO BAUDO | H165: 205.20 | I165: 0.00 | J165: 122.34 | K165: 122.34 | L165: 0.00 | M165: 0.00 | N165: 246.09 | O165: 0.00 | P165: 246.09 | Q165: 0.00 | R165: 0.00 | S165: 0.00 | T165: 0.00 | U165: 185.50 | V165: 0.00 | W165: 0.00 | X165: 0.00 | Y165: 0.00 | Z165: 31.73 | AA165: 108.62 | AB165: 0.00 | AC165: 0.00 | AD165: 0.00 | AE165: 0.00 | AF165: 0.00 | AG165: 0.00 | AH165: 0.00 | AI165: 0.00 | AJ165: 0.00 | AK165: 1,901.29 | AL165: 45.35 | AM165: 0.00 | AN165: 0.00 | AO165: 0.00 | AP165: 8,335.38 | AQ165: 0.00 | AR165: 0.00 | AS165: 0.00 | AT165: 0.00 | AU165: 3,427.34 | AV165: 0.70 | AW165: 0.00 | AX165: 0.00 | AY165: 0.00 | AZ165: 0.00 | BA165: 0.00 | BB165: 0.70 | BC165: 41.02 | BD165: 1,638.71 | BE165: 0.00 | BF165: 839.86 | BG165: 0.00 | BH165: 0.00 | BI165: 0.00 | BJ165: 0.00 | BK165: 0.00 | BL165: 4,572.74 | BM165: 0.00 | BN165: 0.00 | BO165: 0.00 | BP165: 4,572.74 | BQ165: 0.00 | BR165: 0.00 | BS165: 0.00 | BT165: 0.00 | BU165: 0.00 | BV165: 269.15 | BW165: $ 9,586.84 | BX165: $ 1,967,219.42
A166: Aquatic | B166: Transformed | C166: Helobioma San Juan | D166: Transitional transformed | E166: Fragmented forest with secondary vegetation | F166: CHOCO | G166: BAJO BAUDO | H166: 75.18 | I166: 0.00 | J166: 122.34 | K166: 122.34 | L166: 0.00 | M166: 0.00 | N166: 246.09 | O166: 0.00 | P166: 246.09 | Q166: 0.00 | R166: 0.00 | S166: 0.00 | T166: 0.00 | U166: 185.50 | V166: 0.00 | W166: 0.00 | X166: 0.00 | Y166: 0.00 | Z166: 31.73 | AA166: 108.62 | AB166: 0.00 | AC166: 0.00 | AD166: 0.00 | AE166: 0.00 | AF166: 0.00 | AG166: 0.00 | AH166: 0.00 | AI166: 0.00 | AJ166: 0.00 | AK166: 1,901.29 | AL166: 45.35 | AM166: 0.00 | AN166: 0.00 | AO166: 0.00 | AP166: 8,335.38 | AQ166: 0.00 | AR166: 0.00 | AS166: 0.00 | AT166: 0.00 | AU166: 3,427.34 | AV166: 0.70 | AW166: 0.00 | AX166: 0.00 | AY166: 0.00 | AZ166: 0.00 | BA166: 0.00 | BB166: 0.70 | BC166: 41.02 | BD166: 1,638.71 | BE166: 0.00 | BF166: 839.86 | BG166: 0.00 | BH166: 0.00 | BI166: 0.00 | BJ166: 0.00 | BK166: 0.00 | BL166: 4,572.74 | BM166: 0.00 | BN166: 0.00 | BO166: 0.00 | BP166: 4,572.74 | BQ166: 0.00 | BR166: 0.00 | BS166: 0.00 | BT166: 0.00 | BU166: 0.00 | BV166: 269.15 | BW166: $ 9,586.84 | BX166: $ 720,738.58
A167: Aquatic | B167: Transformed | C167: Helobioma San Juan | D167: Transitional transformed | E167: Fragmented forest with secondary vegetation | F167: CHOCO | G167: BAJO BAUDO | H167: 49.12 | I167: 0.00 | J167: 122.34 | K167: 122.34 | L167: 0.00 | M167: 0.00 | N167: 246.09 | O167: 0.00 | P167: 246.09 | Q167: 0.00 | R167: 0.00 | S167: 0.00 | T167: 0.00 | U167: 185.50 | V167: 0.00 | W167: 0.00 | X167: 0.00 | Y167: 0.00 | Z167: 31.73 | AA167: 108.62 | AB167: 0.00 | AC167: 0.00 | AD167: 0.00 | AE167: 0.00 | AF167: 0.00 | AG167: 0.00 | AH167: 0.00 | AI167: 0.00 | AJ167: 0.00 | AK167: 1,901.29 | AL167: 45.35 | AM167: 0.00 | AN167: 0.00 | AO167: 0.00 | AP167: 8,335.38 | AQ167: 0.00 | AR167: 0.00 | AS167: 0.00 | AT167: 0.00 | AU167: 3,427.34 | AV167: 0.70 | AW167: 0.00 | AX167: 0.00 | AY167: 0.00 | AZ167: 0.00 | BA167: 0.00 | BB167: 0.70 | BC167: 41.02 | BD167: 1,638.71 | BE167: 0.00 | BF167: 839.86 | BG167: 0.00 | BH167: 0.00 | BI167: 0.00 | BJ167: 0.00 | BK167: 0.00 | BL167: 4,572.74 | BM167: 0.00 | BN167: 0.00 | BO167: 0.00 | BP167: 4,572.74 | BQ167: 0.00 | BR167: 0.00 | BS167: 0.00 | BT167: 0.00 | BU167: 0.00 | BV167: 269.15 | BW167: $ 9,586.84 | BX167: $ 470,905.55
A168: Aquatic | B168: Transformed | C168: Helobioma San Juan | D168: Transitional transformed | E168: Fragmented forest with secondary vegetation | F168: CHOCO | G168: BAJO BAUDO | H168: 145.36 | I168: 0.00 | J168: 122.34 | K168: 122.34 | L168: 0.00 | M168: 0.00 | N168: 246.09 | O168: 0.00 | P168: 246.09 | Q168: 0.00 | R168: 0.00 | S168: 0.00 | T168: 0.00 | U168: 185.50 | V168: 0.00 | W168: 0.00 | X168: 0.00 | Y168: 0.00 | Z168: 31.73 | AA168: 108.62 | AB168: 0.00 | AC168: 0.00 | AD168: 0.00 | AE168: 0.00 | AF168: 0.00 | AG168: 0.00 | AH168: 0.00 | AI168: 0.00 | AJ168: 0.00 | AK168: 1,901.29 | AL168: 45.35 | AM168: 0.00 | AN168: 0.00 | AO168: 0.00 | AP168: 8,335.38 | AQ168: 0.00 | AR168: 0.00 | AS168: 0.00 | AT168: 0.00 | AU168: 3,427.34 | AV168: 0.70 | AW168: 0.00 | AX168: 0.00 | AY168: 0.00 | AZ168: 0.00 | BA168: 0.00 | BB168: 0.70 | BC168: 41.02 | BD168: 1,638.71 | BE168: 0.00 | BF168: 839.86 | BG168: 0.00 | BH168: 0.00 | BI168: 0.00 | BJ168: 0.00 | BK168: 0.00 | BL168: 4,572.74 | BM168: 0.00 | BN168: 0.00 | BO168: 0.00 | BP168: 4,572.74 | BQ168: 0.00 | BR168: 0.00 | BS168: 0.00 | BT168: 0.00 | BU168: 0.00 | BV168: 269.15 | BW168: $ 9,586.84 | BX168: $ 1,393,542.96
A169: Aquatic | B169: Transformed | C169: Helobioma San Juan | D169: Transitional transformed | E169: Fragmented forest with secondary vegetation | F169: CHOCO | G169: BAJO BAUDO | H169: 85.97 | I169: 0.00 | J169: 122.34 | K169: 122.34 | L169: 0.00 | M169: 0.00 | N169: 246.09 | O169: 0.00 | P169: 246.09 | Q169: 0.00 | R169: 0.00 | S169: 0.00 | T169: 0.00 | U169: 185.50 | V169: 0.00 | W169: 0.00 | X169: 0.00 | Y169: 0.00 | Z169: 31.73 | AA169: 108.62 | AB169: 0.00 | AC169: 0.00 | AD169: 0.00 | AE169: 0.00 | AF169: 0.00 | AG169: 0.00 | AH169: 0.00 | AI169: 0.00 | AJ169: 0.00 | AK169: 1,901.29 | AL169: 45.35 | AM169: 0.00 | AN169: 0.00 | AO169: 0.00 | AP169: 8,335.38 | AQ169: 0.00 | AR169: 0.00 | AS169: 0.00 | AT169: 0.00 | AU169: 3,427.34 | AV169: 0.70 | AW169: 0.00 | AX169: 0.00 | AY169: 0.00 | AZ169: 0.00 | BA169: 0.00 | BB169: 0.70 | BC169: 41.02 | BD169: 1,638.71 | BE169: 0.00 | BF169: 839.86 | BG169: 0.00 | BH169: 0.00 | BI169: 0.00 | BJ169: 0.00 | BK169: 0.00 | BL169: 4,572.74 | BM169: 0.00 | BN169: 0.00 | BO169: 0.00 | BP169: 4,572.74 | BQ169: 0.00 | BR169: 0.00 | BS169: 0.00 | BT169: 0.00 | BU169: 0.00 | BV169: 269.15 | BW169: $ 9,586.84 | BX169: $ 824,180.57
A170: Aquatic | B170: Transformed | C170: Helobioma San Juan | D170: Transitional transformed | E170: Mosaic of crops, pastures and natural spaces | F170: CHOCO | G170: BAJO BAUDO | H170: 98.41 | I170: 0.00 | J170: 122.34 | K170: 122.34 | L170: 0.00 | M170: 0.00 | N170: 246.09 | O170: 0.00 | P170: 246.09 | Q170: 0.00 | R170: 0.00 | S170: 0.00 | T170: 0.00 | U170: 185.50 | V170: 0.00 | W170: 0.00 | X170: 0.00 | Y170: 0.00 | Z170: 31.73 | AA170: 108.62 | AB170: 0.00 | AC170: 0.00 | AD170: 0.00 | AE170: 0.00 | AF170: 0.00 | AG170: 0.00 | AH170: 0.00 | AI170: 0.00 | AJ170: 0.00 | AK170: 1,901.29 | AL170: 45.35 | AM170: 0.00 | AN170: 0.00 | AO170: 0.00 | AP170: 8,335.38 | AQ170: 0.00 | AR170: 0.00 | AS170: 0.00 | AT170: 0.00 | AU170: 3,427.34 | AV170: 0.70 | AW170: 0.00 | AX170: 0.00 | AY170: 0.00 | AZ170: 0.00 | BA170: 0.00 | BB170: 0.70 | BC170: 41.02 | BD170: 1,638.71 | BE170: 0.00 | BF170: 839.86 | BG170: 0.00 | BH170: 0.00 | BI170: 0.00 | BJ170: 0.00 | BK170: 0.00 | BL170: 4,572.74 | BM170: 0.00 | BN170: 0.00 | BO170: 0.00 | BP170: 4,572.74 | BQ170: 0.00 | BR170: 0.00 | BS170: 0.00 | BT170: 0.00 | BU170: 0.00 | BV170: 269.15 | BW170: $ 9,586.84 | BX170: $ 943,440.86
A171: Aquatic | B171: Transformed | C171: Helobioma San Juan | D171: Transitional transformed | E171: Mosaic of crops, pastures and natural spaces | F171: CHOCO | G171: BAJO BAUDO | H171: 81.83 | I171: 0.00 | J171: 122.34 | K171: 122.34 | L171: 0.00 | M171: 0.00 | N171: 246.09 | O171: 0.00 | P171: 246.09 | Q171: 0.00 | R171: 0.00 | S171: 0.00 | T171: 0.00 | U171: 185.50 | V171: 0.00 | W171: 0.00 | X171: 0.00 | Y171: 0.00 | Z171: 31.73 | AA171: 108.62 | AB171: 0.00 | AC171: 0.00 | AD171: 0.00 | AE171: 0.00 | AF171: 0.00 | AG171: 0.00 | AH171: 0.00 | AI171: 0.00 | AJ171: 0.00 | AK171: 1,901.29 | AL171: 45.35 | AM171: 0.00 | AN171: 0.00 | AO171: 0.00 | AP171: 8,335.38 | AQ171: 0.00 | AR171: 0.00 | AS171: 0.00 | AT171: 0.00 | AU171: 3,427.34 | AV171: 0.70 | AW171: 0.00 | AX171: 0.00 | AY171: 0.00 | AZ171: 0.00 | BA171: 0.00 | BB171: 0.70 | BC171: 41.02 | BD171: 1,638.71 | BE171: 0.00 | BF171: 839.86 | BG171: 0.00 | BH171: 0.00 | BI171: 0.00 | BJ171: 0.00 | BK171: 0.00 | BL171: 4,572.74 | BM171: 0.00 | BN171: 0.00 | BO171: 0.00 | BP171: 4,572.74 | BQ171: 0.00 | BR171: 0.00 | BS171: 0.00 | BT171: 0.00 | BU171: 0.00 | BV171: 269.15 | BW171: $ 9,586.84 | BX171: $ 784,491.06
A172: Aquatic | B172: Transformed | C172: Helobioma San Juan | D172: Transitional transformed | E172: Mosaic of crops, pastures and natural spaces | F172: CHOCO | G172: BAJO BAUDO | H172: 165.14 | I172: 0.00 | J172: 122.34 | K172: 122.34 | L172: 0.00 | M172: 0.00 | N172: 246.09 | O172: 0.00 | P172: 246.09 | Q172: 0.00 | R172: 0.00 | S172: 0.00 | T172: 0.00 | U172: 185.50 | V172: 0.00 | W172: 0.00 | X172: 0.00 | Y172: 0.00 | Z172: 31.73 | AA172: 108.62 | AB172: 0.00 | AC172: 0.00 | AD172: 0.00 | AE172: 0.00 | AF172: 0.00 | AG172: 0.00 | AH172: 0.00 | AI172: 0.00 | AJ172: 0.00 | AK172: 1,901.29 | AL172: 45.35 | AM172: 0.00 | AN172: 0.00 | AO172: 0.00 | AP172: 8,335.38 | AQ172: 0.00 | AR172: 0.00 | AS172: 0.00 | AT172: 0.00 | AU172: 3,427.34 | AV172: 0.70 | AW172: 0.00 | AX172: 0.00 | AY172: 0.00 | AZ172: 0.00 | BA172: 0.00 | BB172: 0.70 | BC172: 41.02 | BD172: 1,638.71 | BE172: 0.00 | BF172: 839.86 | BG172: 0.00 | BH172: 0.00 | BI172: 0.00 | BJ172: 0.00 | BK172: 0.00 | BL172: 4,572.74 | BM172: 0.00 | BN172: 0.00 | BO172: 0.00 | BP172: 4,572.74 | BQ172: 0.00 | BR172: 0.00 | BS172: 0.00 | BT172: 0.00 | BU172: 0.00 | BV172: 269.15 | BW172: $ 9,586.84 | BX172: $ 1,583,170.64
A173: Aquatic | B173: Transformed | C173: Helobioma San Juan | D173: Transitional transformed | E173: Mosaic of crops, pastures and natural spaces | F173: CHOCO | G173: BAJO BAUDO | H173: 97.33 | I173: 0.00 | J173: 122.34 | K173: 122.34 | L173: 0.00 | M173: 0.00 | N173: 246.09 | O173: 0.00 | P173: 246.09 | Q173: 0.00 | R173: 0.00 | S173: 0.00 | T173: 0.00 | U173: 185.50 | V173: 0.00 | W173: 0.00 | X173: 0.00 | Y173: 0.00 | Z173: 31.73 | AA173: 108.62 | AB173: 0.00 | AC173: 0.00 | AD173: 0.00 | AE173: 0.00 | AF173: 0.00 | AG173: 0.00 | AH173: 0.00 | AI173: 0.00 | AJ173: 0.00 | AK173: 1,901.29 | AL173: 45.35 | AM173: 0.00 | AN173: 0.00 | AO173: 0.00 | AP173: 8,335.38 | AQ173: 0.00 | AR173: 0.00 | AS173: 0.00 | AT173: 0.00 | AU173: 3,427.34 | AV173: 0.70 | AW173: 0.00 | AX173: 0.00 | AY173: 0.00 | AZ173: 0.00 | BA173: 0.00 | BB173: 0.70 | BC173: 41.02 | BD173: 1,638.71 | BE173: 0.00 | BF173: 839.86 | BG173: 0.00 | BH173: 0.00 | BI173: 0.00 | BJ173: 0.00 | BK173: 0.00 | BL173: 4,572.74 | BM173: 0.00 | BN173: 0.00 | BO173: 0.00 | BP173: 4,572.74 | BQ173: 0.00 | BR173: 0.00 | BS173: 0.00 | BT173: 0.00 | BU173: 0.00 | BV173: 269.15 | BW173: $ 9,586.84 | BX173: $ 933,087.07
A174: Aquatic | B174: Transformed | C174: Helobioma San Juan | D174: Transitional transformed | E174: Mosaic of crops, pastures and natural spaces | F174: CHOCO | G174: BAJO BAUDO | H174: 55.81 | I174: 0.00 | J174: 122.34 | K174: 122.34 | L174: 0.00 | M174: 0.00 | N174: 246.09 | O174: 0.00 | P174: 246.09 | Q174: 0.00 | R174: 0.00 | S174: 0.00 | T174: 0.00 | U174: 185.50 | V174: 0.00 | W174: 0.00 | X174: 0.00 | Y174: 0.00 | Z174: 31.73 | AA174: 108.62 | AB174: 0.00 | AC174: 0.00 | AD174: 0.00 | AE174: 0.00 | AF174: 0.00 | AG174: 0.00 | AH174: 0.00 | AI174: 0.00 | AJ174: 0.00 | AK174: 1,901.29 | AL174: 45.35 | AM174: 0.00 | AN174: 0.00 | AO174: 0.00 | AP174: 8,335.38 | AQ174: 0.00 | AR174: 0.00 | AS174: 0.00 | AT174: 0.00 | AU174: 3,427.34 | AV174: 0.70 | AW174: 0.00 | AX174: 0.00 | AY174: 0.00 | AZ174: 0.00 | BA174: 0.00 | BB174: 0.70 | BC174: 41.02 | BD174: 1,638.71 | BE174: 0.00 | BF174: 839.86 | BG174: 0.00 | BH174: 0.00 | BI174: 0.00 | BJ174: 0.00 | BK174: 0.00 | BL174: 4,572.74 | BM174: 0.00 | BN174: 0.00 | BO174: 0.00 | BP174: 4,572.74 | BQ174: 0.00 | BR174: 0.00 | BS174: 0.00 | BT174: 0.00 | BU174: 0.00 | BV174: 269.15 | BW174: $ 9,586.84 | BX174: $ 535,041.50
A175: Aquatic | B175: Transformed | C175: Helobioma San Juan | D175: Transitional transformed | E175: Mosaic of crops, pastures and natural spaces | F175: CHOCO | G175: MEDIO BAUDO | H175: 77.54 | I175: 0.00 | J175: 122.34 | K175: 122.34 | L175: 0.00 | M175: 0.00 | N175: 246.09 | O175: 0.00 | P175: 246.09 | Q175: 0.00 | R175: 0.00 | S175: 0.00 | T175: 0.00 | U175: 185.50 | V175: 0.00 | W175: 0.00 | X175: 0.00 | Y175: 0.00 | Z175: 31.73 | AA175: 108.62 | AB175: 0.00 | AC175: 0.00 | AD175: 0.00 | AE175: 0.00 | AF175: 0.00 | AG175: 0.00 | AH175: 0.00 | AI175: 0.00 | AJ175: 0.00 | AK175: 1,901.29 | AL175: 45.35 | AM175: 0.00 | AN175: 0.00 | AO175: 0.00 | AP175: 8,335.38 | AQ175: 0.00 | AR175: 0.00 | AS175: 0.00 | AT175: 0.00 | AU175: 3,427.34 | AV175: 0.70 | AW175: 0.00 | AX175: 0.00 | AY175: 0.00 | AZ175: 0.00 | BA175: 0.00 | BB175: 0.70 | BC175: 41.02 | BD175: 1,638.71 | BE175: 0.00 | BF175: 839.86 | BG175: 0.00 | BH175: 0.00 | BI175: 0.00 | BJ175: 0.00 | BK175: 0.00 | BL175: 4,572.74 | BM175: 0.00 | BN175: 0.00 | BO175: 0.00 | BP175: 4,572.74 | BQ175: 0.00 | BR175: 0.00 | BS175: 0.00 | BT175: 0.00 | BU175: 0.00 | BV175: 269.15 | BW175: $ 9,586.84 | BX175: $ 743,363.52
A176: Aquatic | B176: Transformed | C176: Helobioma San Juan | D176: Transitional transformed | E176: Mosaic of pastures and natural spaces | F176: CHOCO | G176: BAJO BAUDO | H176: 114.87 | I176: 0.00 | J176: 122.34 | K176: 122.34 | L176: 0.00 | M176: 0.00 | N176: 246.09 | O176: 0.00 | P176: 246.09 | Q176: 0.00 | R176: 0.00 | S176: 0.00 | T176: 0.00 | U176: 185.50 | V176: 0.00 | W176: 0.00 | X176: 0.00 | Y176: 0.00 | Z176: 31.73 | AA176: 108.62 | AB176: 0.00 | AC176: 0.00 | AD176: 0.00 | AE176: 0.00 | AF176: 0.00 | AG176: 0.00 | AH176: 0.00 | AI176: 0.00 | AJ176: 0.00 | AK176: 1,901.29 | AL176: 45.35 | AM176: 0.00 | AN176: 0.00 | AO176: 0.00 | AP176: 8,335.38 | AQ176: 0.00 | AR176: 0.00 | AS176: 0.00 | AT176: 0.00 | AU176: 3,427.34 | AV176: 0.70 | AW176: 0.00 | AX176: 0.00 | AY176: 0.00 | AZ176: 0.00 | BA176: 0.00 | BB176: 0.70 | BC176: 41.02 | BD176: 1,638.71 | BE176: 0.00 | BF176: 839.86 | BG176: 0.00 | BH176: 0.00 | BI176: 0.00 | BJ176: 0.00 | BK176: 0.00 | BL176: 4,572.74 | BM176: 0.00 | BN176: 0.00 | BO176: 0.00 | BP176: 4,572.74 | BQ176: 0.00 | BR176: 0.00 | BS176: 0.00 | BT176: 0.00 | BU176: 0.00 | BV176: 269.15 | BW176: $ 9,586.84 | BX176: $ 1,101,240.23
A177: Aquatic | B177: Transformed | C177: Helobioma San Juan | D177: Transitional transformed | E177: Secondary vegetation | F177: CHOCO | G177: BAJO BAUDO | H177: 37.48 | I177: 0.00 | J177: 122.34 | K177: 122.34 | L177: 0.00 | M177: 0.00 | N177: 246.09 | O177: 0.00 | P177: 246.09 | Q177: 0.00 | R177: 0.00 | S177: 0.00 | T177: 0.00 | U177: 185.50 | V177: 0.00 | W177: 0.00 | X177: 0.00 | Y177: 0.00 | Z177: 31.73 | AA177: 108.62 | AB177: 0.00 | AC177: 0.00 | AD177: 0.00 | AE177: 0.00 | AF177: 0.00 | AG177: 0.00 | AH177: 0.00 | AI177: 0.00 | AJ177: 0.00 | AK177: 1,901.29 | AL177: 45.35 | AM177: 0.00 | AN177: 0.00 | AO177: 0.00 | AP177: 8,335.38 | AQ177: 0.00 | AR177: 0.00 | AS177: 0.00 | AT177: 0.00 | AU177: 3,427.34 | AV177: 0.70 | AW177: 0.00 | AX177: 0.00 | AY177: 0.00 | AZ177: 0.00 | BA177: 0.00 | BB177: 0.70 | BC177: 41.02 | BD177: 1,638.71 | BE177: 0.00 | BF177: 839.86 | BG177: 0.00 | BH177: 0.00 | BI177: 0.00 | BJ177: 0.00 | BK177: 0.00 | BL177: 4,572.74 | BM177: 0.00 | BN177: 0.00 | BO177: 0.00 | BP177: 4,572.74 | BQ177: 0.00 | BR177: 0.00 | BS177: 0.00 | BT177: 0.00 | BU177: 0.00 | BV177: 269.15 | BW177: $ 9,586.84 | BX177: $ 359,314.74
A178: Aquatic | B178: Transformed | C178: Helobioma San Juan | D178: Transitional transformed | E178: Secondary vegetation | F178: CHOCO | G178: BAJO BAUDO | H178: 76.39 | I178: 0.00 | J178: 122.34 | K178: 122.34 | L178: 0.00 | M178: 0.00 | N178: 246.09 | O178: 0.00 | P178: 246.09 | Q178: 0.00 | R178: 0.00 | S178: 0.00 | T178: 0.00 | U178: 185.50 | V178: 0.00 | W178: 0.00 | X178: 0.00 | Y178: 0.00 | Z178: 31.73 | AA178: 108.62 | AB178: 0.00 | AC178: 0.00 | AD178: 0.00 | AE178: 0.00 | AF178: 0.00 | AG178: 0.00 | AH178: 0.00 | AI178: 0.00 | AJ178: 0.00 | AK178: 1,901.29 | AL178: 45.35 | AM178: 0.00 | AN178: 0.00 | AO178: 0.00 | AP178: 8,335.38 | AQ178: 0.00 | AR178: 0.00 | AS178: 0.00 | AT178: 0.00 | AU178: 3,427.34 | AV178: 0.70 | AW178: 0.00 | AX178: 0.00 | AY178: 0.00 | AZ178: 0.00 | BA178: 0.00 | BB178: 0.70 | BC178: 41.02 | BD178: 1,638.71 | BE178: 0.00 | BF178: 839.86 | BG178: 0.00 | BH178: 0.00 | BI178: 0.00 | BJ178: 0.00 | BK178: 0.00 | BL178: 4,572.74 | BM178: 0.00 | BN178: 0.00 | BO178: 0.00 | BP178: 4,572.74 | BQ178: 0.00 | BR178: 0.00 | BS178: 0.00 | BT178: 0.00 | BU178: 0.00 | BV178: 269.15 | BW178: $ 9,586.84 | BX178: $ 732,338.65
A179: Aquatic | B179: Transformed | C179: Helobioma San Juan | D179: Transitional transformed | E179: Secondary vegetation | F179: CHOCO | G179: BAJO BAUDO | H179: 68.02 | I179: 0.00 | J179: 122.34 | K179: 122.34 | L179: 0.00 | M179: 0.00 | N179: 246.09 | O179: 0.00 | P179: 246.09 | Q179: 0.00 | R179: 0.00 | S179: 0.00 | T179: 0.00 | U179: 185.50 | V179: 0.00 | W179: 0.00 | X179: 0.00 | Y179: 0.00 | Z179: 31.73 | AA179: 108.62 | AB179: 0.00 | AC179: 0.00 | AD179: 0.00 | AE179: 0.00 | AF179: 0.00 | AG179: 0.00 | AH179: 0.00 | AI179: 0.00 | AJ179: 0.00 | AK179: 1,901.29 | AL179: 45.35 | AM179: 0.00 | AN179: 0.00 | AO179: 0.00 | AP179: 8,335.38 | AQ179: 0.00 | AR179: 0.00 | AS179: 0.00 | AT179: 0.00 | AU179: 3,427.34 | AV179: 0.70 | AW179: 0.00 | AX179: 0.00 | AY179: 0.00 | AZ179: 0.00 | BA179: 0.00 | BB179: 0.70 | BC179: 41.02 | BD179: 1,638.71 | BE179: 0.00 | BF179: 839.86 | BG179: 0.00 | BH179: 0.00 | BI179: 0.00 | BJ179: 0.00 | BK179: 0.00 | BL179: 4,572.74 | BM179: 0.00 | BN179: 0.00 | BO179: 0.00 | BP179: 4,572.74 | BQ179: 0.00 | BR179: 0.00 | BS179: 0.00 | BT179: 0.00 | BU179: 0.00 | BV179: 269.15 | BW179: $ 9,586.84 | BX179: $ 652,096.81
A180: Aquatic | B180: Transformed | C180: Helobioma San Juan | D180: Transitional transformed | E180: Secondary vegetation | F180: CHOCO | G180: BAJO BAUDO | H180: 81.29 | I180: 0.00 | J180: 122.34 | K180: 122.34 | L180: 0.00 | M180: 0.00 | N180: 246.09 | O180: 0.00 | P180: 246.09 | Q180: 0.00 | R180: 0.00 | S180: 0.00 | T180: 0.00 | U180: 185.50 | V180: 0.00 | W180: 0.00 | X180: 0.00 | Y180: 0.00 | Z180: 31.73 | AA180: 108.62 | AB180: 0.00 | AC180: 0.00 | AD180: 0.00 | AE180: 0.00 | AF180: 0.00 | AG180: 0.00 | AH180: 0.00 | AI180: 0.00 | AJ180: 0.00 | AK180: 1,901.29 | AL180: 45.35 | AM180: 0.00 | AN180: 0.00 | AO180: 0.00 | AP180: 8,335.38 | AQ180: 0.00 | AR180: 0.00 | AS180: 0.00 | AT180: 0.00 | AU180: 3,427.34 | AV180: 0.70 | AW180: 0.00 | AX180: 0.00 | AY180: 0.00 | AZ180: 0.00 | BA180: 0.00 | BB180: 0.70 | BC180: 41.02 | BD180: 1,638.71 | BE180: 0.00 | BF180: 839.86 | BG180: 0.00 | BH180: 0.00 | BI180: 0.00 | BJ180: 0.00 | BK180: 0.00 | BL180: 4,572.74 | BM180: 0.00 | BN180: 0.00 | BO180: 0.00 | BP180: 4,572.74 | BQ180: 0.00 | BR180: 0.00 | BS180: 0.00 | BT180: 0.00 | BU180: 0.00 | BV180: 269.15 | BW180: $ 9,586.84 | BX180: $ 779,314.17
A181: Aquatic | B181: Transformed | C181: Helobioma San Juan | D181: Transitional transformed | E181: Open areas without vegetation | F181: CHOCO | G181: BAHIA SOLANO | H181: 57.10 | I181: 0.00 | J181: 122.34 | K181: 122.34 | L181: 0.00 | M181: 0.00 | N181: 246.09 | O181: 0.00 | P181: 246.09 | Q181: 0.00 | R181: 0.00 | S181: 0.00 | T181: 0.00 | U181: 185.50 | V181: 0.00 | W181: 0.00 | X181: 0.00 | Y181: 0.00 | Z181: 31.73 | AA181: 108.62 | AB181: 0.00 | AC181: 0.00 | AD181: 0.00 | AE181: 0.00 | AF181: 0.00 | AG181: 0.00 | AH181: 0.00 | AI181: 0.00 | AJ181: 0.00 | AK181: 1,901.29 | AL181: 45.35 | AM181: 0.00 | AN181: 0.00 | AO181: 0.00 | AP181: 8,335.38 | AQ181: 0.00 | AR181: 0.00 | AS181: 0.00 | AT181: 0.00 | AU181: 3,427.34 | AV181: 0.70 | AW181: 0.00 | AX181: 0.00 | AY181: 0.00 | AZ181: 0.00 | BA181: 0.00 | BB181: 0.70 | BC181: 41.02 | BD181: 1,638.71 | BE181: 0.00 | BF181: 839.86 | BG181: 0.00 | BH181: 0.00 | BI181: 0.00 | BJ181: 0.00 | BK181: 0.00 | BL181: 4,572.74 | BM181: 0.00 | BN181: 0.00 | BO181: 0.00 | BP181: 4,572.74 | BQ181: 0.00 | BR181: 0.00 | BS181: 0.00 | BT181: 0.00 | BU181: 0.00 | BV181: 269.15 | BW181: $ 9,586.84 | BX181: $ 547,408.52
A182: Aquatic | B182: Transformed | C182: Helobioma San Juan | D182: Transitional transformed | E182: Fragmented forest with pastures and crops | F182: CHOCO | G182: BAJO BAUDO | H182: 168.19 | I182: 0.00 | J182: 122.34 | K182: 122.34 | L182: 0.00 | M182: 0.00 | N182: 246.09 | O182: 0.00 | P182: 246.09 | Q182: 0.00 | R182: 0.00 | S182: 0.00 | T182: 0.00 | U182: 185.50 | V182: 0.00 | W182: 0.00 | X182: 0.00 | Y182: 0.00 | Z182: 31.73 | AA182: 108.62 | AB182: 0.00 | AC182: 0.00 | AD182: 0.00 | AE182: 0.00 | AF182: 0.00 | AG182: 0.00 | AH182: 0.00 | AI182: 0.00 | AJ182: 0.00 | AK182: 1,901.29 | AL182: 45.35 | AM182: 0.00 | AN182: 0.00 | AO182: 0.00 | AP182: 8,335.38 | AQ182: 0.00 | AR182: 0.00 | AS182: 0.00 | AT182: 0.00 | AU182: 3,427.34 | AV182: 0.70 | AW182: 0.00 | AX182: 0.00 | AY182: 0.00 | AZ182: 0.00 | BA182: 0.00 | BB182: 0.70 | BC182: 41.02 | BD182: 1,638.71 | BE182: 0.00 | BF182: 839.86 | BG182: 0.00 | BH182: 0.00 | BI182: 0.00 | BJ182: 0.00 | BK182: 0.00 | BL182: 4,572.74 | BM182: 0.00 | BN182: 0.00 | BO182: 0.00 | BP182: 4,572.74 | BQ182: 0.00 | BR182: 0.00 | BS182: 0.00 | BT182: 0.00 | BU182: 0.00 | BV182: 269.15 | BW182: $ 9,586.84 | BX182: $ 1,612,410.50
A183: Aquatic | B183: Transformed | C183: Helobioma San Juan | D183: Transitional transformed | E183: Fragmented forest with pastures and crops | F183: CHOCO | G183: BAJO BAUDO | H183: 26.04 | I183: 0.00 | J183: 122.34 | K183: 122.34 | L183: 0.00 | M183: 0.00 | N183: 246.09 | O183: 0.00 | P183: 246.09 | Q183: 0.00 | R183: 0.00 | S183: 0.00 | T183: 0.00 | U183: 185.50 | V183: 0.00 | W183: 0.00 | X183: 0.00 | Y183: 0.00 | Z183: 31.73 | AA183: 108.62 | AB183: 0.00 | AC183: 0.00 | AD183: 0.00 | AE183: 0.00 | AF183: 0.00 | AG183: 0.00 | AH183: 0.00 | AI183: 0.00 | AJ183: 0.00 | AK183: 1,901.29 | AL183: 45.35 | AM183: 0.00 | AN183: 0.00 | AO183: 0.00 | AP183: 8,335.38 | AQ183: 0.00 | AR183: 0.00 | AS183: 0.00 | AT183: 0.00 | AU183: 3,427.34 | AV183: 0.70 | AW183: 0.00 | AX183: 0.00 | AY183: 0.00 | AZ183: 0.00 | BA183: 0.00 | BB183: 0.70 | BC183: 41.02 | BD183: 1,638.71 | BE183: 0.00 | BF183: 839.86 | BG183: 0.00 | BH183: 0.00 | BI183: 0.00 | BJ183: 0.00 | BK183: 0.00 | BL183: 4,572.74 | BM183: 0.00 | BN183: 0.00 | BO183: 0.00 | BP183: 4,572.74 | BQ183: 0.00 | BR183: 0.00 | BS183: 0.00 | BT183: 0.00 | BU183: 0.00 | BV183: 269.15 | BW183: $ 9,586.84 | BX183: $ 249,641.30
A184: Aquatic | B184: Transformed | C184: Helobioma San Juan | D184: Transitional transformed | E184: Fragmented forest with pastures and crops | F184: CHOCO | G184: BAJO BAUDO | H184: 110.00 | I184: 0.00 | J184: 122.34 | K184: 122.34 | L184: 0.00 | M184: 0.00 | N184: 246.09 | O184: 0.00 | P184: 246.09 | Q184: 0.00 | R184: 0.00 | S184: 0.00 | T184: 0.00 | U184: 185.50 | V184: 0.00 | W184: 0.00 | X184: 0.00 | Y184: 0.00 | Z184: 31.73 | AA184: 108.62 | AB184: 0.00 | AC184: 0.00 | AD184: 0.00 | AE184: 0.00 | AF184: 0.00 | AG184: 0.00 | AH184: 0.00 | AI184: 0.00 | AJ184: 0.00 | AK184: 1,901.29 | AL184: 45.35 | AM184: 0.00 | AN184: 0.00 | AO184: 0.00 | AP184: 8,335.38 | AQ184: 0.00 | AR184: 0.00 | AS184: 0.00 | AT184: 0.00 | AU184: 3,427.34 | AV184: 0.70 | AW184: 0.00 | AX184: 0.00 | AY184: 0.00 | AZ184: 0.00 | BA184: 0.00 | BB184: 0.70 | BC184: 41.02 | BD184: 1,638.71 | BE184: 0.00 | BF184: 839.86 | BG184: 0.00 | BH184: 0.00 | BI184: 0.00 | BJ184: 0.00 | BK184: 0.00 | BL184: 4,572.74 | BM184: 0.00 | BN184: 0.00 | BO184: 0.00 | BP184: 4,572.74 | BQ184: 0.00 | BR184: 0.00 | BS184: 0.00 | BT184: 0.00 | BU184: 0.00 | BV184: 269.15 | BW184: $ 9,586.84 | BX184: $ 1,054,552.32
A185: Aquatic | B185: Transformed | C185: Helobioma San Juan | D185: Transitional transformed | E185: Fragmented forest with pastures and crops | F185: CHOCO | G185: BAJO BAUDO | H185: 65.74 | I185: 0.00 | J185: 122.34 | K185: 122.34 | L185: 0.00 | M185: 0.00 | N185: 246.09 | O185: 0.00 | P185: 246.09 | Q185: 0.00 | R185: 0.00 | S185: 0.00 | T185: 0.00 | U185: 185.50 | V185: 0.00 | W185: 0.00 | X185: 0.00 | Y185: 0.00 | Z185: 31.73 | AA185: 108.62 | AB185: 0.00 | AC185: 0.00 | AD185: 0.00 | AE185: 0.00 | AF185: 0.00 | AG185: 0.00 | AH185: 0.00 | AI185: 0.00 | AJ185: 0.00 | AK185: 1,901.29 | AL185: 45.35 | AM185: 0.00 | AN185: 0.00 | AO185: 0.00 | AP185: 8,335.38 | AQ185: 0.00 | AR185: 0.00 | AS185: 0.00 | AT185: 0.00 | AU185: 3,427.34 | AV185: 0.70 | AW185: 0.00 | AX185: 0.00 | AY185: 0.00 | AZ185: 0.00 | BA185: 0.00 | BB185: 0.70 | BC185: 41.02 | BD185: 1,638.71 | BE185: 0.00 | BF185: 839.86 | BG185: 0.00 | BH185: 0.00 | BI185: 0.00 | BJ185: 0.00 | BK185: 0.00 | BL185: 4,572.74 | BM185: 0.00 | BN185: 0.00 | BO185: 0.00 | BP185: 4,572.74 | BQ185: 0.00 | BR185: 0.00 | BS185: 0.00 | BT185: 0.00 | BU185: 0.00 | BV185: 269.15 | BW185: $ 9,586.84 | BX185: $ 630,238.82
A186: Aquatic | B186: Transformed | C186: Helobioma San Juan | D186: Transitional transformed | E186: Fragmented forest with pastures and crops | F186: CHOCO | G186: BAJO BAUDO | H186: 38.29 | I186: 0.00 | J186: 122.34 | K186: 122.34 | L186: 0.00 | M186: 0.00 | N186: 246.09 | O186: 0.00 | P186: 246.09 | Q186: 0.00 | R186: 0.00 | S186: 0.00 | T186: 0.00 | U186: 185.50 | V186: 0.00 | W186: 0.00 | X186: 0.00 | Y186: 0.00 | Z186: 31.73 | AA186: 108.62 | AB186: 0.00 | AC186: 0.00 | AD186: 0.00 | AE186: 0.00 | AF186: 0.00 | AG186: 0.00 | AH186: 0.00 | AI186: 0.00 | AJ186: 0.00 | AK186: 1,901.29 | AL186: 45.35 | AM186: 0.00 | AN186: 0.00 | AO186: 0.00 | AP186: 8,335.38 | AQ186: 0.00 | AR186: 0.00 | AS186: 0.00 | AT186: 0.00 | AU186: 3,427.34 | AV186: 0.70 | AW186: 0.00 | AX186: 0.00 | AY186: 0.00 | AZ186: 0.00 | BA186: 0.00 | BB186: 0.70 | BC186: 41.02 | BD186: 1,638.71 | BE186: 0.00 | BF186: 839.86 | BG186: 0.00 | BH186: 0.00 | BI186: 0.00 | BJ186: 0.00 | BK186: 0.00 | BL186: 4,572.74 | BM186: 0.00 | BN186: 0.00 | BO186: 0.00 | BP186: 4,572.74 | BQ186: 0.00 | BR186: 0.00 | BS186: 0.00 | BT186: 0.00 | BU186: 0.00 | BV186: 269.15 | BW186: $ 9,586.84 | BX186: $ 367,080.08
A187: Aquatic | B187: Transformed | C187: Helobioma San Juan | D187: Transitional transformed | E187: Fragmented forest with pastures and crops | F187: CHOCO | G187: NUQUI | H187: 582.33 | I187: 0.00 | J187: 122.34 | K187: 122.34 | L187: 0.00 | M187: 0.00 | N187: 246.09 | O187: 0.00 | P187: 246.09 | Q187: 0.00 | R187: 0.00 | S187: 0.00 | T187: 0.00 | U187: 185.50 | V187: 0.00 | W187: 0.00 | X187: 0.00 | Y187: 0.00 | Z187: 31.73 | AA187: 108.62 | AB187: 0.00 | AC187: 0.00 | AD187: 0.00 | AE187: 0.00 | AF187: 0.00 | AG187: 0.00 | AH187: 0.00 | AI187: 0.00 | AJ187: 0.00 | AK187: 1,901.29 | AL187: 45.35 | AM187: 0.00 | AN187: 0.00 | AO187: 0.00 | AP187: 8,335.38 | AQ187: 0.00 | AR187: 0.00 | AS187: 0.00 | AT187: 0.00 | AU187: 3,427.34 | AV187: 0.70 | AW187: 3.35 | AX187: 0.00 | AY187: 0.00 | AZ187: 0.00 | BA187: 0.00 | BB187: =(AV187+AW187)/2 -> 2.03 | BC187: 41.02 | BD187: 1,638.71 | BE187: 0.00 | BF187: 839.86 | BG187: 0.00 | BH187: 0.00 | BI187: 0.00 | BJ187: 0.00 | BK187: 0.00 | BL187: 4,572.74 | BM187: 0.00 | BN187: 0.00 | BO187: 0.00 | BP187: 4,572.74 | BQ187: 0.00 | BR187: 0.00 | BS187: 0.00 | BT187: 0.00 | BU187: 0.00 | BV187: 269.15 | BW187: $ 9,588.16 | BX187: $ 5,583,475.72
A188: Aquatic | B188: Transformed | C188: Helobioma San Juan | D188: Transitional transformed | E188: Fragmented forest with pastures and crops | F188: CHOCO | G188: NUQUI | H188: 156.91 | I188: 0.00 | J188: 122.34 | K188: 122.34 | L188: 0.00 | M188: 0.00 | N188: 246.09 | O188: 0.00 | P188: 246.09 | Q188: 0.00 | R188: 0.00 | S188: 0.00 | T188: 0.00 | U188: 185.50 | V188: 0.00 | W188: 0.00 | X188: 0.00 | Y188: 0.00 | Z188: 31.73 | AA188: 108.62 | AB188: 0.00 | AC188: 0.00 | AD188: 0.00 | AE188: 0.00 | AF188: 0.00 | AG188: 0.00 | AH188: 0.00 | AI188: 0.00 | AJ188: 0.00 | AK188: 1,901.29 | AL188: 45.35 | AM188: 0.00 | AN188: 0.00 | AO188: 0.00 | AP188: 8,335.38 | AQ188: 0.00 | AR188: 0.00 | AS188: 0.00 | AT188: 0.00 | AU188: 3,427.34 | AV188: 0.70 | AW188: 3.35 | AX188: 0.00 | AY188: 0.00 | AZ188: 0.00 | BA188: 0.00 | BB188: 2.03 | BC188: 41.02 | BD188: 1,638.71 | BE188: 0.00 | BF188: 839.86 | BG188: 0.00 | BH188: 0.00 | BI188: 0.00 | BJ188: 0.00 | BK188: 0.00 | BL188: 4,572.74 | BM188: 0.00 | BN188: 0.00 | BO188: 0.00 | BP188: 4,572.74 | BQ188: 0.00 | BR188: 0.00 | BS188: 0.00 | BT188: 0.00 | BU188: 0.00 | BV188: 269.15 | BW188: $ 9,588.16 | BX188: $ 1,504,478.86
A189: Aquatic | B189: Transformed | C189: Helobioma San Juan | D189: Transitional transformed | E189: Fragmented forest with pastures and crops | F189: CHOCO | G189: NUQUI | H189: 231.92 | I189: 0.00 | J189: 122.34 | K189: 122.34 | L189: 0.00 | M189: 0.00 | N189: 246.09 | O189: 0.00 | P189: 246.09 | Q189: 0.00 | R189: 0.00 | S189: 0.00 | T189: 0.00 | U189: 185.50 | V189: 0.00 | W189: 0.00 | X189: 0.00 | Y189: 0.00 | Z189: 31.73 | AA189: 108.62 | AB189: 0.00 | AC189: 0.00 | AD189: 0.00 | AE189: 0.00 | AF189: 0.00 | AG189: 0.00 | AH189: 0.00 | AI189: 0.00 | AJ189: 0.00 | AK189: 1,901.29 | AL189: 45.35 | AM189: 0.00 | AN189: 0.00 | AO189: 0.00 | AP189: 8,335.38 | AQ189: 0.00 | AR189: 0.00 | AS189: 0.00 | AT189: 0.00 | AU189: 3,427.34 | AV189: 0.70 | AW189: 3.35 | AX189: 0.00 | AY189: 0.00 | AZ189: 0.00 | BA189: 0.00 | BB189: 2.03 | BC189: 41.02 | BD189: 1,638.71 | BE189: 0.00 | BF189: 839.86 | BG189: 0.00 | BH189: 0.00 | BI189: 0.00 | BJ189: 0.00 | BK189: 0.00 | BL189: 4,572.74 | BM189: 0.00 | BN189: 0.00 | BO189: 0.00 | BP189: 4,572.74 | BQ189: 0.00 | BR189: 0.00 | BS189: 0.00 | BT189: 0.00 | BU189: 0.00 | BV189: 269.15 | BW189: $ 9,588.16 | BX189: $ 2,223,687.06
A190: Aquatic | B190: Transformed | C190: Helobioma San Juan | D190: Transitional transformed | E190: Fragmented forest with pastures and crops | F190: CHOCO | G190: NUQUI | H190: 176.99 | I190: 0.00 | J190: 122.34 | K190: 122.34 | L190: 0.00 | M190: 0.00 | N190: 246.09 | O190: 0.00 | P190: 246.09 | Q190: 0.00 | R190: 0.00 | S190: 0.00 | T190: 0.00 | U190: 185.50 | V190: 0.00 | W190: 0.00 | X190: 0.00 | Y190: 0.00 | Z190: 31.73 | AA190: 108.62 | AB190: 0.00 | AC190: 0.00 | AD190: 0.00 | AE190: 0.00 | AF190: 0.00 | AG190: 0.00 | AH190: 0.00 | AI190: 0.00 | AJ190: 0.00 | AK190: 1,901.29 | AL190: 45.35 | AM190: 0.00 | AN190: 0.00 | AO190: 0.00 | AP190: 8,335.38 | AQ190: 0.00 | AR190: 0.00 | AS190: 0.00 | AT190: 0.00 | AU190: 3,427.34 | AV190: 0.70 | AW190: 3.35 | AX190: 0.00 | AY190: 0.00 | AZ190: 0.00 | BA190: 0.00 | BB190: 2.03 | BC190: 41.02 | BD190: 1,638.71 | BE190: 0.00 | BF190: 839.86 | BG190: 0.00 | BH190: 0.00 | BI190: 0.00 | BJ190: 0.00 | BK190: 0.00 | BL190: 4,572.74 | BM190: 0.00 | BN190: 0.00 | BO190: 0.00 | BP190: 4,572.74 | BQ190: 0.00 | BR190: 0.00 | BS190: 0.00 | BT190: 0.00 | BU190: 0.00 | BV190: 269.15 | BW190: $ 9,588.16 | BX190: $ 1,697,009.20
A191: Aquatic | B191: Transformed | C191: Helobioma San Juan | D191: Transitional transformed | E191: Fragmented forest with pastures and crops | F191: CHOCO | G191: NUQUI | H191: 207.08 | I191: 0.00 | J191: 122.34 | K191: 122.34 | L191: 0.00 | M191: 0.00 | N191: 246.09 | O191: 0.00 | P191: 246.09 | Q191: 0.00 | R191: 0.00 | S191: 0.00 | T191: 0.00 | U191: 185.50 | V191: 0.00 | W191: 0.00 | X191: 0.00 | Y191: 0.00 | Z191: 31.73 | AA191: 108.62 | AB191: 0.00 | AC191: 0.00 | AD191: 0.00 | AE191: 0.00 | AF191: 0.00 | AG191: 0.00 | AH191: 0.00 | AI191: 0.00 | AJ191: 0.00 | AK191: 1,901.29 | AL191: 45.35 | AM191: 0.00 | AN191: 0.00 | AO191: 0.00 | AP191: 8,335.38 | AQ191: 0.00 | AR191: 0.00 | AS191: 0.00 | AT191: 0.00 | AU191: 3,427.34 | AV191: 0.70 | AW191: 3.35 | AX191: 0.00 | AY191: 0.00 | AZ191: 0.00 | BA191: 0.00 | BB191: 2.03 | BC191: 41.02 | BD191: 1,638.71 | BE191: 0.00 | BF191: 839.86 | BG191: 0.00 | BH191: 0.00 | BI191: 0.00 | BJ191: 0.00 | BK191: 0.00 | BL191: 4,572.74 | BM191: 0.00 | BN191: 0.00 | BO191: 0.00 | BP191: 4,572.74 | BQ191: 0.00 | BR191: 0.00 | BS191: 0.00 | BT191: 0.00 | BU191: 0.00 | BV191: 269.15 | BW191: $ 9,588.16 | BX191: $ 1,985,517.06
A192: Aquatic | B192: Transformed | C192: Helobioma San Juan | D192: Transitional transformed | E192: Fragmented forest with pastures and crops | F192: CHOCO | G192: NUQUI | H192: 54.50 | I192: 0.00 | J192: 122.34 | K192: 122.34 | L192: 0.00 | M192: 0.00 | N192: 246.09 | O192: 0.00 | P192: 246.09 | Q192: 0.00 | R192: 0.00 | S192: 0.00 | T192: 0.00 | U192: 185.50 | V192: 0.00 | W192: 0.00 | X192: 0.00 | Y192: 0.00 | Z192: 31.73 | AA192: 108.62 | AB192: 0.00 | AC192: 0.00 | AD192: 0.00 | AE192: 0.00 | AF192: 0.00 | AG192: 0.00 | AH192: 0.00 | AI192: 0.00 | AJ192: 0.00 | AK192: 1,901.29 | AL192: 45.35 | AM192: 0.00 | AN192: 0.00 | AO192: 0.00 | AP192: 8,335.38 | AQ192: 0.00 | AR192: 0.00 | AS192: 0.00 | AT192: 0.00 | AU192: 3,427.34 | AV192: 0.70 | AW192: 3.35 | AX192: 0.00 | AY192: 0.00 | AZ192: 0.00 | BA192: 0.00 | BB192: 2.03 | BC192: 41.02 | BD192: 1,638.71 | BE192: 0.00 | BF192: 839.86 | BG192: 0.00 | BH192: 0.00 | BI192: 0.00 | BJ192: 0.00 | BK192: 0.00 | BL192: 4,572.74 | BM192: 0.00 | BN192: 0.00 | BO192: 0.00 | BP192: 4,572.74 | BQ192: 0.00 | BR192: 0.00 | BS192: 0.00 | BT192: 0.00 | BU192: 0.00 | BV192: 269.15 | BW192: $ 9,588.16 | BX192: $ 522,554.95
A193: Aquatic | B193: Transformed | C193: Helobioma San Juan | D193: Transitional transformed | E193: Fragmented forest with pastures and crops | F193: CHOCO | G193: NUQUI | H193: 150.54 | I193: 0.00 | J193: 122.34 | K193: 122.34 | L193: 0.00 | M193: 0.00 | N193: 246.09 | O193: 0.00 | P193: 246.09 | Q193: 0.00 | R193: 0.00 | S193: 0.00 | T193: 0.00 | U193: 185.50 | V193: 0.00 | W193: 0.00 | X193: 0.00 | Y193: 0.00 | Z193: 31.73 | AA193: 108.62 | AB193: 0.00 | AC193: 0.00 | AD193: 0.00 | AE193: 0.00 | AF193: 0.00 | AG193: 0.00 | AH193: 0.00 | AI193: 0.00 | AJ193: 0.00 | AK193: 1,901.29 | AL193: 45.35 | AM193: 0.00 | AN193: 0.00 | AO193: 0.00 | AP193: 8,335.38 | AQ193: 0.00 | AR193: 0.00 | AS193: 0.00 | AT193: 0.00 | AU193: 3,427.34 | AV193: 0.70 | AW193: 3.35 | AX193: 0.00 | AY193: 0.00 | AZ193: 0.00 | BA193: 0.00 | BB193: 2.03 | BC193: 41.02 | BD193: 1,638.71 | BE193: 0.00 | BF193: 839.86 | BG193: 0.00 | BH193: 0.00 | BI193: 0.00 | BJ193: 0.00 | BK193: 0.00 | BL193: 4,572.74 | BM193: 0.00 | BN193: 0.00 | BO193: 0.00 | BP193: 4,572.74 | BQ193: 0.00 | BR193: 0.00 | BS193: 0.00 | BT193: 0.00 | BU193: 0.00 | BV193: 269.15 | BW193: $ 9,588.16 | BX193: $ 1,443,402.25
A194: Aquatic | B194: Transformed | C194: Helobioma San Juan | D194: Transitional transformed | E194: Fragmented forest with pastures and crops | F194: CHOCO | G194: NUQUI | H194: 42.25 | I194: 0.00 | J194: 122.34 | K194: 122.34 | L194: 0.00 | M194: 0.00 | N194: 246.09 | O194: 0.00 | P194: 246.09 | Q194: 0.00 | R194: 0.00 | S194: 0.00 | T194: 0.00 | U194: 185.50 | V194: 0.00 | W194: 0.00 | X194: 0.00 | Y194: 0.00 | Z194: 31.73 | AA194: 108.62 | AB194: 0.00 | AC194: 0.00 | AD194: 0.00 | AE194: 0.00 | AF194: 0.00 | AG194: 0.00 | AH194: 0.00 | AI194: 0.00 | AJ194: 0.00 | AK194: 1,901.29 | AL194: 45.35 | AM194: 0.00 | AN194: 0.00 | AO194: 0.00 | AP194: 8,335.38 | AQ194: 0.00 | AR194: 0.00 | AS194: 0.00 | AT194: 0.00 | AU194: 3,427.34 | AV194: 0.70 | AW194: 3.35 | AX194: 0.00 | AY194: 0.00 | AZ194: 0.00 | BA194: 0.00 | BB194: 2.03 | BC194: 41.02 | BD194: 1,638.71 | BE194: 0.00 | BF194: 839.86 | BG194: 0.00 | BH194: 0.00 | BI194: 0.00 | BJ194: 0.00 | BK194: 0.00 | BL194: 4,572.74 | BM194: 0.00 | BN194: 0.00 | BO194: 0.00 | BP194: 4,572.74 | BQ194: 0.00 | BR194: 0.00 | BS194: 0.00 | BT194: 0.00 | BU194: 0.00 | BV194: 269.15 | BW194: $ 9,588.16 | BX194: $ 405,099.94
A195: Aquatic | B195: Transformed | C195: Helobioma San Juan | D195: Transitional transformed | E195: Fragmented forest with pastures and crops | F195: CHOCO | G195: BAHIA SOLANO | H195: 290.01 | I195: 0.00 | J195: 122.34 | K195: 122.34 | L195: 0.00 | M195: 0.00 | N195: 246.09 | O195: 0.00 | P195: =N195 -> 246.09 | Q195: 0.00 | R195: 0.00 | S195: 0.00 | T195: 0.00 | U195: 185.50 | V195: 0.00 | W195: 0.00 | X195: 0.00 | Y195: 0.00 | Z195: 31.73 | AA195: =(U195+Z195)/2 -> 108.62 | AB195: 0.00 | AC195: 0.00 | AD195: 0.00 | AE195: 0.00 | AF195: 0.00 | AG195: 0.00 | AH195: 0.00 | AI195: 0.00 | AJ195: 0.00 | AK195: 1,901.29 | AL195: 45.35 | AM195: 0.00 | AN195: 0.00 | AO195: 0.00 | AP195: 8,335.38 | AQ195: 0.00 | AR195: 0.00 | AS195: 0.00 | AT195: 0.00 | AU195: 3,427.34 | AV195: 0.70 | AW195: 0.00 | AX195: 0.00 | AY195: 0.00 | AZ195: 0.00 | BA195: 0.00 | BB195: =AV195 -> 0.70 | BC195: 41.02 | BD195: 1,638.71 | BE195: 0.00 | BF195: =(BC195+BD195)/2 -> 839.86 | BG195: 0.00 | BH195: 0.00 | BI195: 0.00 | BJ195: 0.00 | BK195: 0.00 | BL195: 4,572.74 | BM195: 0.00 | BN195: 0.00 | BO195: 0.00 | BP195: 4,572.74 | BQ195: 0.00 | BR195: 0.00 | BS195: 0.00 | BT195: 0.00 | BU195: 0.00 | BV195: 269.15 | BW195: =K195+L195+P195+S195+AA195+AE195+AF195+AI195+AU195+BB195+BF195+BP195+BT195+BU195+BV195 -> $ 9,586.84 | BX195: =BW195*H195 -> $ 2,780,279.27
A196: Aquatic | B196: Transformed | C196: Helobioma San Juan | D196: Transitional transformed | E196: Fragmented forest with pastures and crops | F196: CHOCO | G196: BAHIA SOLANO | H196: 145.27 | I196: 0.00 | J196: 122.34 | K196: 122.34 | L196: 0.00 | M196: 0.00 | N196: 246.09 | O196: 0.00 | P196: 246.09 | Q196: 0.00 | R196: 0.00 | S196: 0.00 | T196: 0.00 | U196: 185.50 | V196: 0.00 | W196: 0.00 | X196: 0.00 | Y196: 0.00 | Z196: 31.73 | AA196: 108.62 | AB196: 0.00 | AC196: 0.00 | AD196: 0.00 | AE196: 0.00 | AF196: 0.00 | AG196: 0.00 | AH196: 0.00 | AI196: 0.00 | AJ196: 0.00 | AK196: 1,901.29 | AL196: 45.35 | AM196: 0.00 | AN196: 0.00 | AO196: 0.00 | AP196: 8,335.38 | AQ196: 0.00 | AR196: 0.00 | AS196: 0.00 | AT196: 0.00 | AU196: 3,427.34 | AV196: 0.70 | AW196: 0.00 | AX196: 0.00 | AY196: 0.00 | AZ196: 0.00 | BA196: 0.00 | BB196: 0.70 | BC196: 41.02 | BD196: 1,638.71 | BE196: 0.00 | BF196: 839.86 | BG196: 0.00 | BH196: 0.00 | BI196: 0.00 | BJ196: 0.00 | BK196: 0.00 | BL196: 4,572.74 | BM196: 0.00 | BN196: 0.00 | BO196: 0.00 | BP196: 4,572.74 | BQ196: 0.00 | BR196: 0.00 | BS196: 0.00 | BT196: 0.00 | BU196: 0.00 | BV196: 269.15 | BW196: $ 9,586.84 | BX196: $ 1,392,680.15
A197: Aquatic | B197: Transformed | C197: Helobioma San Juan | D197: Transitional transformed | E197: Fragmented forest with pastures and crops | F197: CHOCO | G197: BAHIA SOLANO | H197: 1,003.13 | I197: 0.00 | J197: 122.34 | K197: 122.34 | L197: 0.00 | M197: 0.00 | N197: 246.09 | O197: 0.00 | P197: 246.09 | Q197: 0.00 | R197: 0.00 | S197: 0.00 | T197: 0.00 | U197: 185.50 | V197: 0.00 | W197: 0.00 | X197: 0.00 | Y197: 0.00 | Z197: 31.73 | AA197: 108.62 | AB197: 0.00 | AC197: 0.00 | AD197: 0.00 | AE197: 0.00 | AF197: 0.00 | AG197: 0.00 | AH197: 0.00 | AI197: 0.00 | AJ197: 0.00 | AK197: 1,901.29 | AL197: 45.35 | AM197: 0.00 | AN197: 0.00 | AO197: 0.00 | AP197: 8,335.38 | AQ197: 0.00 | AR197: 0.00 | AS197: 0.00 | AT197: 0.00 | AU197: 3,427.34 | AV197: 0.70 | AW197: 0.00 | AX197: 0.00 | AY197: 0.00 | AZ197: 0.00 | BA197: 0.00 | BB197: 0.70 | BC197: 41.02 | BD197: 1,638.71 | BE197: 0.00 | BF197: 839.86 | BG197: 0.00 | BH197: 0.00 | BI197: 0.00 | BJ197: 0.00 | BK197: 0.00 | BL197: 4,572.74 | BM197: 0.00 | BN197: 0.00 | BO197: 0.00 | BP197: 4,572.74 | BQ197: 0.00 | BR197: 0.00 | BS197: 0.00 | BT197: 0.00 | BU197: 0.00 | BV197: 269.15 | BW197: $ 9,586.84 | BX197: $ 9,616,846.11
A198: Aquatic | B198: Transformed | C198: Helobioma San Juan | D198: Transitional transformed | E198: Fragmented forest with pastures and crops | F198: CHOCO | G198: BAHIA SOLANO | H198: 65.52 | I198: 0.00 | J198: 122.34 | K198: 122.34 | L198: 0.00 | M198: 0.00 | N198: 246.09 | O198: 0.00 | P198: 246.09 | Q198: 0.00 | R198: 0.00 | S198: 0.00 | T198: 0.00 | U198: 185.50 | V198: 0.00 | W198: 0.00 | X198: 0.00 | Y198: 0.00 | Z198: 31.73 | AA198: 108.62 | AB198: 0.00 | AC198: 0.00 | AD198: 0.00 | AE198: 0.00 | AF198: 0.00 | AG198: 0.00 | AH198: 0.00 | AI198: 0.00 | AJ198: 0.00 | AK198: 1,901.29 | AL198: 45.35 | AM198: 0.00 | AN198: 0.00 | AO198: 0.00 | AP198: 8,335.38 | AQ198: 0.00 | AR198: 0.00 | AS198: 0.00 | AT198: 0.00 | AU198: 3,427.34 | AV198: 0.70 | AW198: 0.00 | AX198: 0.00 | AY198: 0.00 | AZ198: 0.00 | BA198: 0.00 | BB198: 0.70 | BC198: 41.02 | BD198: 1,638.71 | BE198: 0.00 | BF198: 839.86 | BG198: 0.00 | BH198: 0.00 | BI198: 0.00 | BJ198: 0.00 | BK198: 0.00 | BL198: 4,572.74 | BM198: 0.00 | BN198: 0.00 | BO198: 0.00 | BP198: 4,572.74 | BQ198: 0.00 | BR198: 0.00 | BS198: 0.00 | BT198: 0.00 | BU198: 0.00 | BV198: 269.15 | BW198: $ 9,586.84 | BX198: $ 628,129.71
A199: Aquatic | B199: Transformed | C199: Helobioma San Juan | D199: Transitional transformed | E199: Fragmented forest with pastures and crops | F199: CHOCO | G199: BAHIA SOLANO | H199: 733.04 | I199: 0.00 | J199: 122.34 | K199: 122.34 | L199: 0.00 | M199: 0.00 | N199: 246.09 | O199: 0.00 | P199: 246.09 | Q199: 0.00 | R199: 0.00 | S199: 0.00 | T199: 0.00 | U199: 185.50 | V199: 0.00 | W199: 0.00 | X199: 0.00 | Y199: 0.00 | Z199: 31.73 | AA199: 108.62 | AB199: 0.00 | AC199: 0.00 | AD199: 0.00 | AE199: 0.00 | AF199: 0.00 | AG199: 0.00 | AH199: 0.00 | AI199: 0.00 | AJ199: 0.00 | AK199: 1,901.29 | AL199: 45.35 | AM199: 0.00 | AN199: 0.00 | AO199: 0.00 | AP199: 8,335.38 | AQ199: 0.00 | AR199: 0.00 | AS199: 0.00 | AT199: 0.00 | AU199: 3,427.34 | AV199: 0.70 | AW199: 0.00 | AX199: 0.00 | AY199: 0.00 | AZ199: 0.00 | BA199: 0.00 | BB199: 0.70 | BC199: 41.02 | BD199: 1,638.71 | BE199: 0.00 | BF199: 839.86 | BG199: 0.00 | BH199: 0.00 | BI199: 0.00 | BJ199: 0.00 | BK199: 0.00 | BL199: 4,572.74 | BM199: 0.00 | BN199: 0.00 | BO199: 0.00 | BP199: 4,572.74 | BQ199: 0.00 | BR199: 0.00 | BS199: 0.00 | BT199: 0.00 | BU199: 0.00 | BV199: 269.15 | BW199: $ 9,586.84 | BX199: $ 7,027,536.68
A200: Aquatic | B200: Transformed | C200: Helobioma San Juan | D200: Transitional transformed | E200: Fragmented forest with pastures and crops | F200: CHOCO | G200: BAHIA SOLANO | H200: 780.26 | I200: 0.00 | J200: 122.34 | K200: 122.34 | L200: 0.00 | M200: 0.00 | N200: 246.09 | O200: 0.00 | P200: 246.09 | Q200: 0.00 | R200: 0.00 | S200: 0.00 | T200: 0.00 | U200: 185.50 | V200: 0.00 | W200: 0.00 | X200: 0.00 | Y200: 0.00 | Z200: 31.73 | AA200: 108.62 | AB200: 0.00 | AC200: 0.00 | AD200: 0.00 | AE200: 0.00 | AF200: 0.00 | AG200: 0.00 | AH200: 0.00 | AI200: 0.00 | AJ200: 0.00 | AK200: 1,901.29 | AL200: 45.35 | AM200: 0.00 | AN200: 0.00 | AO200: 0.00 | AP200: 8,335.38 | AQ200: 0.00 | AR200: 0.00 | AS200: 0.00 | AT200: 0.00 | AU200: 3,427.34 | AV200: 0.70 | AW200: 0.00 | AX200: 0.00 | AY200: 0.00 | AZ200: 0.00 | BA200: 0.00 | BB200: 0.70 | BC200: 41.02 | BD200: 1,638.71 | BE200: 0.00 | BF200: 839.86 | BG200: 0.00 | BH200: 0.00 | BI200: 0.00 | BJ200: 0.00 | BK200: 0.00 | BL200: 4,572.74 | BM200: 0.00 | BN200: 0.00 | BO200: 0.00 | BP200: 4,572.74 | BQ200: 0.00 | BR200: 0.00 | BS200: 0.00 | BT200: 0.00 | BU200: 0.00 | BV200: 269.15 | BW200: $ 9,586.84 | BX200: $ 7,480,227.23
... 925 more rows
